{"text_format":"1","workbook":"xlsx","n_sheets":5,"sheets":["Berechnung","Info Grundschutz","Info Mobile Brandbelastung","Info Immobile Brandbelastung","Info Zusätzl. Löschw.Entn."],"not_rendered":{"charts":0,"images":1,"macros":1,"external_links":0,"defined_names":2,"comments":1,"pivot_tables":0},"unopened":[],"bounds":{"document_bytes":16777216,"sheet_cells":100000,"rows_first":2000,"rows_last":500,"rows_between":2000,"halvings":0,"cell_chars":16384,"cell_head_chars":4096},"cells_cut":0,"cells_raw":0,"read":"whole","date_system":"1900"}

{"sheet":"Berechnung","index":0,"n_rows":76,"n_cols":10,"rows_kept":76,"cut":false,"hidden":false,"merged":[[54,1,55,1],[66,2,71,2],[0,0,3,4],[5,0,7,4],[28,1,28,4],[8,2,8,4],[9,2,9,4],[45,4,46,4],[42,1,42,4],[52,1,52,4],[59,1,59,4],[4,0,4,4],[15,1,18,1],[56,1,57,1],[56,2,57,2],[75,2,75,4],[10,2,12,4],[73,2,73,4],[74,2,74,4],[56,3,57,3],[56,4,57,4],[54,3,55,3],[54,4,55,4],[54,2,55,2],[15,2,16,2]]}
[]
[]
[]
[]
["BRANDVERHÜTUNGSSTELLE"]
["Objektbezogene Löschwasserbedarfsermittlung gemäß TRVB F 137 (Ausgabe 2003)"]
[]
[]
[null,"Objekt:"]
[null,"Brandabschnitt:"]
[null,"Eingabefelder","Das Berechnungsblatt wurde von der Brandverhütungsstelle Burgenland erstellt. \nDieses Formblatt dient zur Berechnung des Löschwasserbedarfes für den Objektschutz. \nFür Berechnungsergebnisse wird keine Haftung übernommen.\n(Version 1.2)."]
[null,"Berechnet"]
[null,"Ergebnisse"]
[]
[null,"Erforderlicher Grundschutz gemäß Tabelle 1 (TRVB F 137)","Auswählen:",{"$f":"IFERROR(IF(C16=\"Bitte Auswahl treffen!\",\"\",VLOOKUP(C16,'Info Grundschutz'!A3:C7,3,0)),)","v":""},"l/min"]
[null,{"$f":"IF(C16=\"Bitte Auswahl treffen!\",\"\",VLOOKUP(C16,'Info Grundschutz'!A3:B7,2,0))","v":""},"Bitte Auswahl treffen!"]
["1.0"]
[]
[]
[null,"Erforderlicher Lieferdauer des Löschwassers gemäß Tabelle 1 (TRVB F 137)",null,{"$f":"IFERROR(IF(C16=\"Bitte Auswahl treffen!\",\"\",VLOOKUP(C16,'Info Grundschutz'!A3:E7,5,0)),\"\")","v":""},"Std."]
[null,"siehe Tabellenblatt \"Info Grundschutz\""]
[]
["2004-01-01","Tatsächlich vorhandener Löschwasserbedarf für den Grundschutz in l/min (Hydrant, ...)",null,null,"l/min"]
[null,"Tatsächlich vorhandener Löschwasserbedarf für den Grundschutz in m³ (Zisterne, ...) für 90 min",null,null,"m³"]
[null,"Summe tatsächlich vorhandener Löschwasserbedarf für den Grundschutz",null,{"$f":"IF(AND(D23=\"\",D24=\"\"),\"\",D23+D24*1000/90)","v":""},"l/min"]
[null,null,{"$f":"IF(C16=\"Bitte Auswahl treffen!\",\"\",IF(D25=\"\",\"\",IF(D26>=0,\"Ausreichend:\",\"Nicht Ausreichend:\")))","v":""},{"$f":"IF(C16=\"Bitte Auswahl treffen!\",\"\",IF(D25=\"\",\"\",D25-D15))","v":""},"l/min"]
["2019-02-01","Zusätzlich vorhandene Löschwasserentnahmestellen","Keine",null,{"$f":"IFERROR(IF(C27=\"Keine\",\"\",VLOOKUP(C27,Tabelle1[],2,0)),\"\")","v":""}]
[]
["2.0","Löschwasserbedarf für den Objektschutz"]
[]
[null,"Spezifische Löschwasserrate für die immobilen Brandbelastung"]
[]
["1900-01-02T02:24:00","Wände und Decke     nichtbrennbar      qLWi = 0,00     l/(m²min)","Auswählen:"]
[null,"Wände oder Decke    brennbar              qLWi = 0,50     l/(m²min)","Bitte Auswahl treffen!",{"$f":"IFERROR(IF(C34=\"Bitte Auswahl treffen!\",\"\",VLOOKUP(C34,'Info Immobile Brandbelastung'!A2:B5,2,0)),\"\")","v":""},"l/min"]
[null,"Wände und Decke     brennbar              qLWi = 1,00     l/(m²min)"]
[]
["2004-02-02","Spezifische Löschwasserrate für die mobile Brandbelastung und","Auswählen oder Textsuche:"]
[null,"Nutzung gemäß Anhang A ","Bitte Auswahl treffen!",{"$f":"IFERROR(IF(C38=\"Bitte Auswahl treffen!\",\"\",IF(C38=\"Sonstige\",\"\",VLOOKUP(C38,'Info Mobile Brandbelastung'!A2:B427,2,0))),\"\")","v":""},"l/min"]
[null,"siehe Tabellenblatt \"Info Mobile Brandbelastung\"",null,null,{"$f":"IF(C38=\"Sonstige\",\"l/min\",\"\")","v":""}]
[]
[null,"Brandabschnittsfläche (Berechnungsfläche)","AB",null," m²"]
[]
[null,"Rechnerische Brandfläche (AB = Brandabschnittsfläche)   Zutreffendes Ankreuzen (x)"]
[null,"Keine Brandschutzeinrichtung vorhanden Brandabschnittsfläche oder Gesamtnutzfläche (AB)  "]
[null,"Automatische Brandmeldeanlage gem. TRVB S 123 mit autom. Weiterleitung (AB = 2000 m²) "]
["3.0","Betriebsfeuerwehr mit ständigem Bereitschaftsdienst und autom. Brandmeldeanlage "]
[null,"gemäß TRVB S 123 (AB = 1200 m²) "]
[null,"Automatische Löschanlage mit automatischer Alarmweiterleitung (AB = 750 m²)"]
[]
[null,"Resultierende Brandabschnittsfläche","AB",{"$f":"IF(OR(E44=TRUE,E45=TRUE,E46=TRUE,E48=TRUE),IF(E48=TRUE,IF(D41>750,750,D41),IF(E46=TRUE,IF(D41>1200,1200,D41),IF(E45=TRUE,IF(D41>2000,2000,D41),D41))),\"\")","v":""}," m²"]
[]
[]
[null,"Löschwasserrate für den Objektschutz"]
[]
[null,"Lagerguthöhen ","hL",null," m"]
["4.0"]
[null,{"$f":"IF(D55>2.5,\"Löschwasserrate für den Objektschutz mit Lagerguthöhen über 2,50; QLWO = (qLWi + qLWM) . (AB + 4.(hL - 2,50).AB 0,5) \",\"Löschwasserrate für den Objektschutz mit Lagerguthöhen unter 2,50; QLWO = (qLWi + qLWM) l/m²(min) . AB m²\")","v":"Löschwasserrate für den Objektschutz mit Lagerguthöhen unter 2,50; QLWO = (qLWi + qLWM) l/m²(min) . AB m²"},"QLWO",{"$f":"IF(AND(D39=\"\",C38=\"Sonstige\"),\"\",IF(OR(E44=TRUE,E45=TRUE,E46=TRUE,E48=TRUE),IF(OR(C38=\"Bitte Auswahl treffen!\",C34=\"Bitte Auswahl treffen!\"),\"\",IF(C38=\"Sonstige\",IF(D55>2.5,(SUM(D34+D39)*(D50+4*(D55-2.5)*(D50^0.5))),SUM(D34+D39)*D50),IF(D55>2.5,(SUM(D34+D38)*(D50+4*(D55-2.5)*(D50^0.5))),SUM(D34+D38)*D50))),\"\"))","v":""},"l/min"]
[]
[]
[null,"Löschwasserbereitstellung "]
[]
[]
[null,"Tatsächlich vorhandene Löschwassermenge","QLWG",{"$f":"IF(AND(D25=\"\",D27=\"\"),\"\",IF(AND(D39=\"\",C38=\"Sonstige\"),\"\",IF(D25=\"\",0,D25)+IF(E27=\"m³\",D27*1000/90,IF(E27=\"l/min\",D27,0))))","v":""},"l/min"]
["5.0"]
[null,"Löschwasserrate für den Objektschutz","QLWO",{"$f":"IF(AND(D39=\"\",C38=\"Sonstige\"),\"\",D57)","v":""},"l/min"]
[]
[null,null,{"$f":"IF(D65>10000,\"Bei einem Löschwasserbedarf von mehr als 10.000 l/min sind zusätzliche Brandschutzvorkehrungen zu treffen, um einen Löschwasserbedarf von unter \n10.000 l/min für den Objektschutz zu erreichen.\",\"\")","v":"Bei einem Löschwasserbedarf von mehr als 10.000 l/min sind zusätzliche Brandschutzvorkehrungen zu treffen, um einen Löschwasserbedarf von unter \n10.000 l/min für den Objektschutz zu erreichen."}]
[null,"zusätzliche Löschwasserbereitstellung",null,{"$f":"IF(OR(D65>10000,AND(D39=\"\",C38=\"Sonstige\")),\"\",IF(D65-D63<=0,0,D65-D63))","v":""},"l/min"]
[null,"oder"]
[null,"zusätzlicher Löschwasservorrat für 90 Minuten",null,{"$f":"IF(OR(D65>10000,AND(D39=\"\",C38=\"Sonstige\")),\"\",(D68*90)/1000)","v":""}," m³"]
[]
[null,"Löschwasserrückhaltung gemäß TRVB F 137",null,{"$f":"IF(OR(D65>10000,AND(D39=\"\",C38=\"Sonstige\")),\"\",(D65*90*0.75)/1000)","v":""}," m³"]
[null,null,null,null,null,null,null,null,null," "]
[null,"Datum:"]
[null,"Bearbeiter/Firma:"]
[null,"Unterschrift:","__________________________________________________________"]

{"sheet":"Info Grundschutz","index":1,"n_rows":7,"n_cols":11,"rows_kept":7,"cut":false,"hidden":false,"merged":[[0,7,0,10]]}
["Abkürzung","Bebauungsart","Löschwasserrate \nin l/min","Löschwasserrate \nin l/s","Lieferdauer \nmind. Std.","Löschwasservorrat\nin m³2",null,"Erforderliche Löschwasserrate in Abhängigkeit der maximalen Entfernung der Löschwasserentnahmestellen zum Objekt"]
["Bitte Auswahl treffen!",null,null,null,null,null,null,"bis 60 m\nl/min","bis 100 m\nl/min","bis 250 m\nl/min","bis 500 m\nl/min"]
["STREUSIEDLUNGEN","STREUSIEDLUNGEN (off. Bauw.): Ebenerdige\nBebauung (1 Geschoß); Einzelobj. bis\nmax. 150 m2 bebaute Fläche",800,13.3,1,50,null,"-",800,"-","-"]
["ORTSGEBIETE - bis höchst. 3 Gesch.","ORTSGEBIETE mit offener od. geschl. Bauw.\n- bis höchst. 3 Gesch.; landw. sowie gewerbl. Objekte, ohne besondere Brandgefahr",1600,26.7,2,200,null,"-",800,"weitere\n800","-"]
["ORTSGEBIETE- mehr als 3 Gesch.","ORTSGEBIETE  mit  offener  Bauweise,  mehr als 3 Gesch.; geschl. Bebauung in Wohnge- biet; gemischt genutzte Gebäude, ohne bes. Brandgefahr",2400,40,2,300,null,"-",800,"weitere\n800","weitere\n800"]
["BETRIEBS-,  INDUSTRIE,  HANDELS-  UND GEWERBEGEBIETE","BETRIEBS-,  INDUSTRIE,  HANDELS-  UND GEWERBEGEBIETE\nzusätzlich ist eine objektsbezogene Berech- nung gemäß Pkt. 5. erforderlich",3200,53.3,3,600,null,800,"-","weitere\n1200","weitere\n1200"]
["ALTSTADTGEBIETE und STADTZENTREN","ALTSTADTGEBIETE und STADTZENTREN",3200,53.3,3,600,null,800,"-","weitere\n1200","weitere\n1200"]

{"sheet":"Info Mobile Brandbelastung","index":2,"n_rows":427,"n_cols":3,"rows_kept":427,"cut":false,"hidden":false,"merged":[]}
["Nutzung","qLwm [l/(m²min)]","Dropdown"]
["Bitte Auswahl treffen!",null,{"$f":"IFERROR(IF(OR(EXACT(Berechnung!$C$38,Tabelle2[Nutzung])),Tabelle2[[#This Row],[Nutzung]],INDEX(Tabelle2[Nutzung],_xlfn.AGGREGATE(15,6,(ROW(Tabelle2[Nutzung])-1)/(--SEARCH(Berechnung!$C$38,Tabelle2[Nutzung])>0),ROW()-1),1)),\"\")","v":"Bitte Auswahl treffen!"}]
["Abstellraum für diverse Waren",1.8,{"$f":"IFERROR(IF(OR(EXACT(Berechnung!$C$38,Tabelle2[Nutzung])),Tabelle2[[#This Row],[Nutzung]],INDEX(Tabelle2[Nutzung],_xlfn.AGGREGATE(15,6,(ROW(Tabelle2[Nutzung])-1)/(--SEARCH(Berechnung!$C$38,Tabelle2[Nutzung])>0),ROW()-1),1)),\"\")","v":"Abstellraum für diverse Waren"}]
["Altersheim",1.6,{"$f":"IFERROR(IF(OR(EXACT(Berechnung!$C$38,Tabelle2[Nutzung])),Tabelle2[[#This Row],[Nutzung]],INDEX(Tabelle2[Nutzung],_xlfn.AGGREGATE(15,6,(ROW(Tabelle2[Nutzung])-1)/(--SEARCH(Berechnung!$C$38,Tabelle2[Nutzung])>0),ROW()-1),1)),\"\")","v":"Altersheim"}]
["Aluminium, Verarbeitung",3.6,{"$f":"IFERROR(IF(OR(EXACT(Berechnung!$C$38,Tabelle2[Nutzung])),Tabelle2[[#This Row],[Nutzung]],INDEX(Tabelle2[Nutzung],_xlfn.AGGREGATE(15,6,(ROW(Tabelle2[Nutzung])-1)/(--SEARCH(Berechnung!$C$38,Tabelle2[Nutzung])>0),ROW()-1),1)),\"\")","v":"Aluminium, Verarbeitung"}]
["Antiquitäten, Verkauf",1.5,{"$f":"IFERROR(IF(OR(EXACT(Berechnung!$C$38,Tabelle2[Nutzung])),Tabelle2[[#This Row],[Nutzung]],INDEX(Tabelle2[Nutzung],_xlfn.AGGREGATE(15,6,(ROW(Tabelle2[Nutzung])-1)/(--SEARCH(Berechnung!$C$38,Tabelle2[Nutzung])>0),ROW()-1),1)),\"\")","v":"Antiquitäten, Verkauf"}]
["Apotheke (inkl. Lager)",4.3,{"$f":"IFERROR(IF(OR(EXACT(Berechnung!$C$38,Tabelle2[Nutzung])),Tabelle2[[#This Row],[Nutzung]],INDEX(Tabelle2[Nutzung],_xlfn.AGGREGATE(15,6,(ROW(Tabelle2[Nutzung])-1)/(--SEARCH(Berechnung!$C$38,Tabelle2[Nutzung])>0),ROW()-1),1)),\"\")","v":"Apotheke (inkl. Lager)"}]
["Archiv",1.2,{"$f":"IFERROR(IF(OR(EXACT(Berechnung!$C$38,Tabelle2[Nutzung])),Tabelle2[[#This Row],[Nutzung]],INDEX(Tabelle2[Nutzung],_xlfn.AGGREGATE(15,6,(ROW(Tabelle2[Nutzung])-1)/(--SEARCH(Berechnung!$C$38,Tabelle2[Nutzung])>0),ROW()-1),1)),\"\")","v":"Archiv"}]
["Armaturen",1.8,{"$f":"IFERROR(IF(OR(EXACT(Berechnung!$C$38,Tabelle2[Nutzung])),Tabelle2[[#This Row],[Nutzung]],INDEX(Tabelle2[Nutzung],_xlfn.AGGREGATE(15,6,(ROW(Tabelle2[Nutzung])-1)/(--SEARCH(Berechnung!$C$38,Tabelle2[Nutzung])>0),ROW()-1),1)),\"\")","v":"Armaturen"}]
["Arzneimittel (Grobdurchschnitt)",2.8,{"$f":"IFERROR(IF(OR(EXACT(Berechnung!$C$38,Tabelle2[Nutzung])),Tabelle2[[#This Row],[Nutzung]],INDEX(Tabelle2[Nutzung],_xlfn.AGGREGATE(15,6,(ROW(Tabelle2[Nutzung])-1)/(--SEARCH(Berechnung!$C$38,Tabelle2[Nutzung])>0),ROW()-1),1)),\"\")","v":"Arzneimittel (Grobdurchschnitt)"}]
["Arztpraxis",2,{"$f":"IFERROR(IF(OR(EXACT(Berechnung!$C$38,Tabelle2[Nutzung])),Tabelle2[[#This Row],[Nutzung]],INDEX(Tabelle2[Nutzung],_xlfn.AGGREGATE(15,6,(ROW(Tabelle2[Nutzung])-1)/(--SEARCH(Berechnung!$C$38,Tabelle2[Nutzung])>0),ROW()-1),1)),\"\")","v":"Arztpraxis"}]
["Asbestwaren",0.6,{"$f":"IFERROR(IF(OR(EXACT(Berechnung!$C$38,Tabelle2[Nutzung])),Tabelle2[[#This Row],[Nutzung]],INDEX(Tabelle2[Nutzung],_xlfn.AGGREGATE(15,6,(ROW(Tabelle2[Nutzung])-1)/(--SEARCH(Berechnung!$C$38,Tabelle2[Nutzung])>0),ROW()-1),1)),\"\")","v":"Asbestwaren"}]
["Asphalt (in Fässern, Blöcken)",3.8,{"$f":"IFERROR(IF(OR(EXACT(Berechnung!$C$38,Tabelle2[Nutzung])),Tabelle2[[#This Row],[Nutzung]],INDEX(Tabelle2[Nutzung],_xlfn.AGGREGATE(15,6,(ROW(Tabelle2[Nutzung])-1)/(--SEARCH(Berechnung!$C$38,Tabelle2[Nutzung])>0),ROW()-1),1)),\"\")","v":"Asphalt (in Fässern, Blöcken)"}]
["Ausstellung, Auto",3,{"$f":"IFERROR(IF(OR(EXACT(Berechnung!$C$38,Tabelle2[Nutzung])),Tabelle2[[#This Row],[Nutzung]],INDEX(Tabelle2[Nutzung],_xlfn.AGGREGATE(15,6,(ROW(Tabelle2[Nutzung])-1)/(--SEARCH(Berechnung!$C$38,Tabelle2[Nutzung])>0),ROW()-1),1)),\"\")","v":"Ausstellung, Auto"}]
["Ausstellung, Gemälde",1.7,{"$f":"IFERROR(IF(OR(EXACT(Berechnung!$C$38,Tabelle2[Nutzung])),Tabelle2[[#This Row],[Nutzung]],INDEX(Tabelle2[Nutzung],_xlfn.AGGREGATE(15,6,(ROW(Tabelle2[Nutzung])-1)/(--SEARCH(Berechnung!$C$38,Tabelle2[Nutzung])>0),ROW()-1),1)),\"\")","v":"Ausstellung, Gemälde"}]
["Ausstellung, Maschinen",1,{"$f":"IFERROR(IF(OR(EXACT(Berechnung!$C$38,Tabelle2[Nutzung])),Tabelle2[[#This Row],[Nutzung]],INDEX(Tabelle2[Nutzung],_xlfn.AGGREGATE(15,6,(ROW(Tabelle2[Nutzung])-1)/(--SEARCH(Berechnung!$C$38,Tabelle2[Nutzung])>0),ROW()-1),1)),\"\")","v":"Ausstellung, Maschinen"}]
["Ausstellung, Möbel",1.6,{"$f":"IFERROR(IF(OR(EXACT(Berechnung!$C$38,Tabelle2[Nutzung])),Tabelle2[[#This Row],[Nutzung]],INDEX(Tabelle2[Nutzung],_xlfn.AGGREGATE(15,6,(ROW(Tabelle2[Nutzung])-1)/(--SEARCH(Berechnung!$C$38,Tabelle2[Nutzung])>0),ROW()-1),1)),\"\")","v":"Ausstellung, Möbel"}]
["Auto, Garagen",3,{"$f":"IFERROR(IF(OR(EXACT(Berechnung!$C$38,Tabelle2[Nutzung])),Tabelle2[[#This Row],[Nutzung]],INDEX(Tabelle2[Nutzung],_xlfn.AGGREGATE(15,6,(ROW(Tabelle2[Nutzung])-1)/(--SEARCH(Berechnung!$C$38,Tabelle2[Nutzung])>0),ROW()-1),1)),\"\")","v":"Auto, Garagen"}]
["Auto, Lackiererei",4,{"$f":"IFERROR(IF(OR(EXACT(Berechnung!$C$38,Tabelle2[Nutzung])),Tabelle2[[#This Row],[Nutzung]],INDEX(Tabelle2[Nutzung],_xlfn.AGGREGATE(15,6,(ROW(Tabelle2[Nutzung])-1)/(--SEARCH(Berechnung!$C$38,Tabelle2[Nutzung])>0),ROW()-1),1)),\"\")","v":"Auto, Lackiererei"}]
["Auto, Montage",2.1,{"$f":"IFERROR(IF(OR(EXACT(Berechnung!$C$38,Tabelle2[Nutzung])),Tabelle2[[#This Row],[Nutzung]],INDEX(Tabelle2[Nutzung],_xlfn.AGGREGATE(15,6,(ROW(Tabelle2[Nutzung])-1)/(--SEARCH(Berechnung!$C$38,Tabelle2[Nutzung])>0),ROW()-1),1)),\"\")","v":"Auto, Montage"}]
["Auto, Reparaturwerkstätte",2.5,{"$f":"IFERROR(IF(OR(EXACT(Berechnung!$C$38,Tabelle2[Nutzung])),Tabelle2[[#This Row],[Nutzung]],INDEX(Tabelle2[Nutzung],_xlfn.AGGREGATE(15,6,(ROW(Tabelle2[Nutzung])-1)/(--SEARCH(Berechnung!$C$38,Tabelle2[Nutzung])>0),ROW()-1),1)),\"\")","v":"Auto, Reparaturwerkstätte"}]
["Autozubehör",1.7,{"$f":"IFERROR(IF(OR(EXACT(Berechnung!$C$38,Tabelle2[Nutzung])),Tabelle2[[#This Row],[Nutzung]],INDEX(Tabelle2[Nutzung],_xlfn.AGGREGATE(15,6,(ROW(Tabelle2[Nutzung])-1)/(--SEARCH(Berechnung!$C$38,Tabelle2[Nutzung])>0),ROW()-1),1)),\"\")","v":"Autozubehör"}]
["Backwaren, Großbäckerei",1.8,{"$f":"IFERROR(IF(OR(EXACT(Berechnung!$C$38,Tabelle2[Nutzung])),Tabelle2[[#This Row],[Nutzung]],INDEX(Tabelle2[Nutzung],_xlfn.AGGREGATE(15,6,(ROW(Tabelle2[Nutzung])-1)/(--SEARCH(Berechnung!$C$38,Tabelle2[Nutzung])>0),ROW()-1),1)),\"\")","v":"Backwaren, Großbäckerei"}]
["Bank, Schalterhalle",1.6,{"$f":"IFERROR(IF(OR(EXACT(Berechnung!$C$38,Tabelle2[Nutzung])),Tabelle2[[#This Row],[Nutzung]],INDEX(Tabelle2[Nutzung],_xlfn.AGGREGATE(15,6,(ROW(Tabelle2[Nutzung])-1)/(--SEARCH(Berechnung!$C$38,Tabelle2[Nutzung])>0),ROW()-1),1)),\"\")","v":"Bank, Schalterhalle"}]
["Bastgewebe",0.6,{"$f":"IFERROR(IF(OR(EXACT(Berechnung!$C$38,Tabelle2[Nutzung])),Tabelle2[[#This Row],[Nutzung]],INDEX(Tabelle2[Nutzung],_xlfn.AGGREGATE(15,6,(ROW(Tabelle2[Nutzung])-1)/(--SEARCH(Berechnung!$C$38,Tabelle2[Nutzung])>0),ROW()-1),1)),\"\")","v":"Bastgewebe"}]
["Besen (H)",1.5,{"$f":"IFERROR(IF(OR(EXACT(Berechnung!$C$38,Tabelle2[Nutzung])),Tabelle2[[#This Row],[Nutzung]],INDEX(Tabelle2[Nutzung],_xlfn.AGGREGATE(15,6,(ROW(Tabelle2[Nutzung])-1)/(--SEARCH(Berechnung!$C$38,Tabelle2[Nutzung])>0),ROW()-1),1)),\"\")","v":"Besen (H)"}]
["Besteck",1,{"$f":"IFERROR(IF(OR(EXACT(Berechnung!$C$38,Tabelle2[Nutzung])),Tabelle2[[#This Row],[Nutzung]],INDEX(Tabelle2[Nutzung],_xlfn.AGGREGATE(15,6,(ROW(Tabelle2[Nutzung])-1)/(--SEARCH(Berechnung!$C$38,Tabelle2[Nutzung])>0),ROW()-1),1)),\"\")","v":"Besteck"}]
["Bettfedernreinigung",2.5,{"$f":"IFERROR(IF(OR(EXACT(Berechnung!$C$38,Tabelle2[Nutzung])),Tabelle2[[#This Row],[Nutzung]],INDEX(Tabelle2[Nutzung],_xlfn.AGGREGATE(15,6,(ROW(Tabelle2[Nutzung])-1)/(--SEARCH(Berechnung!$C$38,Tabelle2[Nutzung])>0),ROW()-1),1)),\"\")","v":"Bettfedernreinigung"}]
["Bibliothek",0.8,{"$f":"IFERROR(IF(OR(EXACT(Berechnung!$C$38,Tabelle2[Nutzung])),Tabelle2[[#This Row],[Nutzung]],INDEX(Tabelle2[Nutzung],_xlfn.AGGREGATE(15,6,(ROW(Tabelle2[Nutzung])-1)/(--SEARCH(Berechnung!$C$38,Tabelle2[Nutzung])>0),ROW()-1),1)),\"\")","v":"Bibliothek"}]
["Bijouteriewaren",1.6,{"$f":"IFERROR(IF(OR(EXACT(Berechnung!$C$38,Tabelle2[Nutzung])),Tabelle2[[#This Row],[Nutzung]],INDEX(Tabelle2[Nutzung],_xlfn.AGGREGATE(15,6,(ROW(Tabelle2[Nutzung])-1)/(--SEARCH(Berechnung!$C$38,Tabelle2[Nutzung])>0),ROW()-1),1)),\"\")","v":"Bijouteriewaren"}]
["Bijouteriewaren, Verkauf",1.5,{"$f":"IFERROR(IF(OR(EXACT(Berechnung!$C$38,Tabelle2[Nutzung])),Tabelle2[[#This Row],[Nutzung]],INDEX(Tabelle2[Nutzung],_xlfn.AGGREGATE(15,6,(ROW(Tabelle2[Nutzung])-1)/(--SEARCH(Berechnung!$C$38,Tabelle2[Nutzung])>0),ROW()-1),1)),\"\")","v":"Bijouteriewaren, Verkauf"}]
["Bilderrahmen",1.7,{"$f":"IFERROR(IF(OR(EXACT(Berechnung!$C$38,Tabelle2[Nutzung])),Tabelle2[[#This Row],[Nutzung]],INDEX(Tabelle2[Nutzung],_xlfn.AGGREGATE(15,6,(ROW(Tabelle2[Nutzung])-1)/(--SEARCH(Berechnung!$C$38,Tabelle2[Nutzung])>0),ROW()-1),1)),\"\")","v":"Bilderrahmen"}]
["Bitumenaufbereitung",3.8,{"$f":"IFERROR(IF(OR(EXACT(Berechnung!$C$38,Tabelle2[Nutzung])),Tabelle2[[#This Row],[Nutzung]],INDEX(Tabelle2[Nutzung],_xlfn.AGGREGATE(15,6,(ROW(Tabelle2[Nutzung])-1)/(--SEARCH(Berechnung!$C$38,Tabelle2[Nutzung])>0),ROW()-1),1)),\"\")","v":"Bitumenaufbereitung"}]
["Blech, Blechwaren",1.1000000000000001,{"$f":"IFERROR(IF(OR(EXACT(Berechnung!$C$38,Tabelle2[Nutzung])),Tabelle2[[#This Row],[Nutzung]],INDEX(Tabelle2[Nutzung],_xlfn.AGGREGATE(15,6,(ROW(Tabelle2[Nutzung])-1)/(--SEARCH(Berechnung!$C$38,Tabelle2[Nutzung])>0),ROW()-1),1)),\"\")","v":"Blech, Blechwaren"}]
["Blechwaren, Auslieferung",1.1000000000000001,{"$f":"IFERROR(IF(OR(EXACT(Berechnung!$C$38,Tabelle2[Nutzung])),Tabelle2[[#This Row],[Nutzung]],INDEX(Tabelle2[Nutzung],_xlfn.AGGREGATE(15,6,(ROW(Tabelle2[Nutzung])-1)/(--SEARCH(Berechnung!$C$38,Tabelle2[Nutzung])>0),ROW()-1),1)),\"\")","v":"Blechwaren, Auslieferung"}]
["Bleistifte (H)",2.1,{"$f":"IFERROR(IF(OR(EXACT(Berechnung!$C$38,Tabelle2[Nutzung])),Tabelle2[[#This Row],[Nutzung]],INDEX(Tabelle2[Nutzung],_xlfn.AGGREGATE(15,6,(ROW(Tabelle2[Nutzung])-1)/(--SEARCH(Berechnung!$C$38,Tabelle2[Nutzung])>0),ROW()-1),1)),\"\")","v":"Bleistifte (H)"}]
["Bodenbeläge, brennbare (H)",2,{"$f":"IFERROR(IF(OR(EXACT(Berechnung!$C$38,Tabelle2[Nutzung])),Tabelle2[[#This Row],[Nutzung]],INDEX(Tabelle2[Nutzung],_xlfn.AGGREGATE(15,6,(ROW(Tabelle2[Nutzung])-1)/(--SEARCH(Berechnung!$C$38,Tabelle2[Nutzung])>0),ROW()-1),1)),\"\")","v":"Bodenbeläge, brennbare (H)"}]
["Bodenbeläge, Verkauf",1.5,{"$f":"IFERROR(IF(OR(EXACT(Berechnung!$C$38,Tabelle2[Nutzung])),Tabelle2[[#This Row],[Nutzung]],INDEX(Tabelle2[Nutzung],_xlfn.AGGREGATE(15,6,(ROW(Tabelle2[Nutzung])-1)/(--SEARCH(Berechnung!$C$38,Tabelle2[Nutzung])>0),ROW()-1),1)),\"\")","v":"Bodenbeläge, Verkauf"}]
["Bodenpflegemittel (H)",4.5,{"$f":"IFERROR(IF(OR(EXACT(Berechnung!$C$38,Tabelle2[Nutzung])),Tabelle2[[#This Row],[Nutzung]],INDEX(Tabelle2[Nutzung],_xlfn.AGGREGATE(15,6,(ROW(Tabelle2[Nutzung])-1)/(--SEARCH(Berechnung!$C$38,Tabelle2[Nutzung])>0),ROW()-1),1)),\"\")","v":"Bodenpflegemittel (H)"}]
["Bonbons (H)",3.9,{"$f":"IFERROR(IF(OR(EXACT(Berechnung!$C$38,Tabelle2[Nutzung])),Tabelle2[[#This Row],[Nutzung]],INDEX(Tabelle2[Nutzung],_xlfn.AGGREGATE(15,6,(ROW(Tabelle2[Nutzung])-1)/(--SEARCH(Berechnung!$C$38,Tabelle2[Nutzung])>0),ROW()-1),1)),\"\")","v":"Bonbons (H)"}]
["Bonbons, Wicklerei, Verpackung",3.2,{"$f":"IFERROR(IF(OR(EXACT(Berechnung!$C$38,Tabelle2[Nutzung])),Tabelle2[[#This Row],[Nutzung]],INDEX(Tabelle2[Nutzung],_xlfn.AGGREGATE(15,6,(ROW(Tabelle2[Nutzung])-1)/(--SEARCH(Berechnung!$C$38,Tabelle2[Nutzung])>0),ROW()-1),1)),\"\")","v":"Bonbons, Wicklerei, Verpackung"}]
["Boote, Holz (H)",1.6,{"$f":"IFERROR(IF(OR(EXACT(Berechnung!$C$38,Tabelle2[Nutzung])),Tabelle2[[#This Row],[Nutzung]],INDEX(Tabelle2[Nutzung],_xlfn.AGGREGATE(15,6,(ROW(Tabelle2[Nutzung])-1)/(--SEARCH(Berechnung!$C$38,Tabelle2[Nutzung])>0),ROW()-1),1)),\"\")","v":"Boote, Holz (H)"}]
["Boote, Kunststoff (H)",2.5,{"$f":"IFERROR(IF(OR(EXACT(Berechnung!$C$38,Tabelle2[Nutzung])),Tabelle2[[#This Row],[Nutzung]],INDEX(Tabelle2[Nutzung],_xlfn.AGGREGATE(15,6,(ROW(Tabelle2[Nutzung])-1)/(--SEARCH(Berechnung!$C$38,Tabelle2[Nutzung])>0),ROW()-1),1)),\"\")","v":"Boote, Kunststoff (H)"}]
["Brauerei",1.7,{"$f":"IFERROR(IF(OR(EXACT(Berechnung!$C$38,Tabelle2[Nutzung])),Tabelle2[[#This Row],[Nutzung]],INDEX(Tabelle2[Nutzung],_xlfn.AGGREGATE(15,6,(ROW(Tabelle2[Nutzung])-1)/(--SEARCH(Berechnung!$C$38,Tabelle2[Nutzung])>0),ROW()-1),1)),\"\")","v":"Brauerei"}]
["Buchbinderei",1.4,{"$f":"IFERROR(IF(OR(EXACT(Berechnung!$C$38,Tabelle2[Nutzung])),Tabelle2[[#This Row],[Nutzung]],INDEX(Tabelle2[Nutzung],_xlfn.AGGREGATE(15,6,(ROW(Tabelle2[Nutzung])-1)/(--SEARCH(Berechnung!$C$38,Tabelle2[Nutzung])>0),ROW()-1),1)),\"\")","v":"Buchbinderei"}]
["Bücher",0.8,{"$f":"IFERROR(IF(OR(EXACT(Berechnung!$C$38,Tabelle2[Nutzung])),Tabelle2[[#This Row],[Nutzung]],INDEX(Tabelle2[Nutzung],_xlfn.AGGREGATE(15,6,(ROW(Tabelle2[Nutzung])-1)/(--SEARCH(Berechnung!$C$38,Tabelle2[Nutzung])>0),ROW()-1),1)),\"\")","v":"Bücher"}]
["Bücher, Verkauf",1.2,{"$f":"IFERROR(IF(OR(EXACT(Berechnung!$C$38,Tabelle2[Nutzung])),Tabelle2[[#This Row],[Nutzung]],INDEX(Tabelle2[Nutzung],_xlfn.AGGREGATE(15,6,(ROW(Tabelle2[Nutzung])-1)/(--SEARCH(Berechnung!$C$38,Tabelle2[Nutzung])>0),ROW()-1),1)),\"\")","v":"Bücher, Verkauf"}]
["Büro",1.4,{"$f":"IFERROR(IF(OR(EXACT(Berechnung!$C$38,Tabelle2[Nutzung])),Tabelle2[[#This Row],[Nutzung]],INDEX(Tabelle2[Nutzung],_xlfn.AGGREGATE(15,6,(ROW(Tabelle2[Nutzung])-1)/(--SEARCH(Berechnung!$C$38,Tabelle2[Nutzung])>0),ROW()-1),1)),\"\")","v":"Büro"}]
["Büromaschinen (H)",1.7,{"$f":"IFERROR(IF(OR(EXACT(Berechnung!$C$38,Tabelle2[Nutzung])),Tabelle2[[#This Row],[Nutzung]],INDEX(Tabelle2[Nutzung],_xlfn.AGGREGATE(15,6,(ROW(Tabelle2[Nutzung])-1)/(--SEARCH(Berechnung!$C$38,Tabelle2[Nutzung])>0),ROW()-1),1)),\"\")","v":"Büromaschinen (H)"}]
["Büromaschinen, Verkauf",1.7,{"$f":"IFERROR(IF(OR(EXACT(Berechnung!$C$38,Tabelle2[Nutzung])),Tabelle2[[#This Row],[Nutzung]],INDEX(Tabelle2[Nutzung],_xlfn.AGGREGATE(15,6,(ROW(Tabelle2[Nutzung])-1)/(--SEARCH(Berechnung!$C$38,Tabelle2[Nutzung])>0),ROW()-1),1)),\"\")","v":"Büromaschinen, Verkauf"}]
["Büromaterial",1.4,{"$f":"IFERROR(IF(OR(EXACT(Berechnung!$C$38,Tabelle2[Nutzung])),Tabelle2[[#This Row],[Nutzung]],INDEX(Tabelle2[Nutzung],_xlfn.AGGREGATE(15,6,(ROW(Tabelle2[Nutzung])-1)/(--SEARCH(Berechnung!$C$38,Tabelle2[Nutzung])>0),ROW()-1),1)),\"\")","v":"Büromaterial"}]
["Bürstenwaren (H)",1.7,{"$f":"IFERROR(IF(OR(EXACT(Berechnung!$C$38,Tabelle2[Nutzung])),Tabelle2[[#This Row],[Nutzung]],INDEX(Tabelle2[Nutzung],_xlfn.AGGREGATE(15,6,(ROW(Tabelle2[Nutzung])-1)/(--SEARCH(Berechnung!$C$38,Tabelle2[Nutzung])>0),ROW()-1),1)),\"\")","v":"Bürstenwaren (H)"}]
["Celluloid (H)",9,{"$f":"IFERROR(IF(OR(EXACT(Berechnung!$C$38,Tabelle2[Nutzung])),Tabelle2[[#This Row],[Nutzung]],INDEX(Tabelle2[Nutzung],_xlfn.AGGREGATE(15,6,(ROW(Tabelle2[Nutzung])-1)/(--SEARCH(Berechnung!$C$38,Tabelle2[Nutzung])>0),ROW()-1),1)),\"\")","v":"Celluloid (H)"}]
["Chemische Reinigung",3,{"$f":"IFERROR(IF(OR(EXACT(Berechnung!$C$38,Tabelle2[Nutzung])),Tabelle2[[#This Row],[Nutzung]],INDEX(Tabelle2[Nutzung],_xlfn.AGGREGATE(15,6,(ROW(Tabelle2[Nutzung])-1)/(--SEARCH(Berechnung!$C$38,Tabelle2[Nutzung])>0),ROW()-1),1)),\"\")","v":"Chemische Reinigung"}]
["Dachpappe (H)",2.1,{"$f":"IFERROR(IF(OR(EXACT(Berechnung!$C$38,Tabelle2[Nutzung])),Tabelle2[[#This Row],[Nutzung]],INDEX(Tabelle2[Nutzung],_xlfn.AGGREGATE(15,6,(ROW(Tabelle2[Nutzung])-1)/(--SEARCH(Berechnung!$C$38,Tabelle2[Nutzung])>0),ROW()-1),1)),\"\")","v":"Dachpappe (H)"}]
["Datenverarbeitung",1.5,{"$f":"IFERROR(IF(OR(EXACT(Berechnung!$C$38,Tabelle2[Nutzung])),Tabelle2[[#This Row],[Nutzung]],INDEX(Tabelle2[Nutzung],_xlfn.AGGREGATE(15,6,(ROW(Tabelle2[Nutzung])-1)/(--SEARCH(Berechnung!$C$38,Tabelle2[Nutzung])>0),ROW()-1),1)),\"\")","v":"Datenverarbeitung"}]
["Dispersionsfarben (H)",3,{"$f":"IFERROR(IF(OR(EXACT(Berechnung!$C$38,Tabelle2[Nutzung])),Tabelle2[[#This Row],[Nutzung]],INDEX(Tabelle2[Nutzung],_xlfn.AGGREGATE(15,6,(ROW(Tabelle2[Nutzung])-1)/(--SEARCH(Berechnung!$C$38,Tabelle2[Nutzung])>0),ROW()-1),1)),\"\")","v":"Dispersionsfarben (H)"}]
["Draht (isoliert) (H)",1.5,{"$f":"IFERROR(IF(OR(EXACT(Berechnung!$C$38,Tabelle2[Nutzung])),Tabelle2[[#This Row],[Nutzung]],INDEX(Tabelle2[Nutzung],_xlfn.AGGREGATE(15,6,(ROW(Tabelle2[Nutzung])-1)/(--SEARCH(Berechnung!$C$38,Tabelle2[Nutzung])>0),ROW()-1),1)),\"\")","v":"Draht (isoliert) (H)"}]
["Drogeriewaren, Verkauf",3.3,{"$f":"IFERROR(IF(OR(EXACT(Berechnung!$C$38,Tabelle2[Nutzung])),Tabelle2[[#This Row],[Nutzung]],INDEX(Tabelle2[Nutzung],_xlfn.AGGREGATE(15,6,(ROW(Tabelle2[Nutzung])-1)/(--SEARCH(Berechnung!$C$38,Tabelle2[Nutzung])>0),ROW()-1),1)),\"\")","v":"Drogeriewaren, Verkauf"}]
["Druckfarben (H)",3.3,{"$f":"IFERROR(IF(OR(EXACT(Berechnung!$C$38,Tabelle2[Nutzung])),Tabelle2[[#This Row],[Nutzung]],INDEX(Tabelle2[Nutzung],_xlfn.AGGREGATE(15,6,(ROW(Tabelle2[Nutzung])-1)/(--SEARCH(Berechnung!$C$38,Tabelle2[Nutzung])>0),ROW()-1),1)),\"\")","v":"Druckfarben (H)"}]
["Drucksachen, Auslieferung",1.1000000000000001,{"$f":"IFERROR(IF(OR(EXACT(Berechnung!$C$38,Tabelle2[Nutzung])),Tabelle2[[#This Row],[Nutzung]],INDEX(Tabelle2[Nutzung],_xlfn.AGGREGATE(15,6,(ROW(Tabelle2[Nutzung])-1)/(--SEARCH(Berechnung!$C$38,Tabelle2[Nutzung])>0),ROW()-1),1)),\"\")","v":"Drucksachen, Auslieferung"}]
["Drucksachen, Maschinensaal",1.8,{"$f":"IFERROR(IF(OR(EXACT(Berechnung!$C$38,Tabelle2[Nutzung])),Tabelle2[[#This Row],[Nutzung]],INDEX(Tabelle2[Nutzung],_xlfn.AGGREGATE(15,6,(ROW(Tabelle2[Nutzung])-1)/(--SEARCH(Berechnung!$C$38,Tabelle2[Nutzung])>0),ROW()-1),1)),\"\")","v":"Drucksachen, Maschinensaal"}]
["Drucksachen, Packerei",1,{"$f":"IFERROR(IF(OR(EXACT(Berechnung!$C$38,Tabelle2[Nutzung])),Tabelle2[[#This Row],[Nutzung]],INDEX(Tabelle2[Nutzung],_xlfn.AGGREGATE(15,6,(ROW(Tabelle2[Nutzung])-1)/(--SEARCH(Berechnung!$C$38,Tabelle2[Nutzung])>0),ROW()-1),1)),\"\")","v":"Drucksachen, Packerei"}]
["Drucksachen, Setzerei",1.8,{"$f":"IFERROR(IF(OR(EXACT(Berechnung!$C$38,Tabelle2[Nutzung])),Tabelle2[[#This Row],[Nutzung]],INDEX(Tabelle2[Nutzung],_xlfn.AGGREGATE(15,6,(ROW(Tabelle2[Nutzung])-1)/(--SEARCH(Berechnung!$C$38,Tabelle2[Nutzung])>0),ROW()-1),1)),\"\")","v":"Drucksachen, Setzerei"}]
["Einkaufszentren",1.8,{"$f":"IFERROR(IF(OR(EXACT(Berechnung!$C$38,Tabelle2[Nutzung])),Tabelle2[[#This Row],[Nutzung]],INDEX(Tabelle2[Nutzung],_xlfn.AGGREGATE(15,6,(ROW(Tabelle2[Nutzung])-1)/(--SEARCH(Berechnung!$C$38,Tabelle2[Nutzung])>0),ROW()-1),1)),\"\")","v":"Einkaufszentren"}]
["Eisenwarengeschäft",1.4,{"$f":"IFERROR(IF(OR(EXACT(Berechnung!$C$38,Tabelle2[Nutzung])),Tabelle2[[#This Row],[Nutzung]],INDEX(Tabelle2[Nutzung],_xlfn.AGGREGATE(15,6,(ROW(Tabelle2[Nutzung])-1)/(--SEARCH(Berechnung!$C$38,Tabelle2[Nutzung])>0),ROW()-1),1)),\"\")","v":"Eisenwarengeschäft"}]
["Eiweiß (H)",3.4,{"$f":"IFERROR(IF(OR(EXACT(Berechnung!$C$38,Tabelle2[Nutzung])),Tabelle2[[#This Row],[Nutzung]],INDEX(Tabelle2[Nutzung],_xlfn.AGGREGATE(15,6,(ROW(Tabelle2[Nutzung])-1)/(--SEARCH(Berechnung!$C$38,Tabelle2[Nutzung])>0),ROW()-1),1)),\"\")","v":"Eiweiß (H)"}]
["Elektriker-Werkstätte",2.2999999999999998,{"$f":"IFERROR(IF(OR(EXACT(Berechnung!$C$38,Tabelle2[Nutzung])),Tabelle2[[#This Row],[Nutzung]],INDEX(Tabelle2[Nutzung],_xlfn.AGGREGATE(15,6,(ROW(Tabelle2[Nutzung])-1)/(--SEARCH(Berechnung!$C$38,Tabelle2[Nutzung])>0),ROW()-1),1)),\"\")","v":"Elektriker-Werkstätte"}]
["Elektrische Geräte, Reparatur",2.1,{"$f":"IFERROR(IF(OR(EXACT(Berechnung!$C$38,Tabelle2[Nutzung])),Tabelle2[[#This Row],[Nutzung]],INDEX(Tabelle2[Nutzung],_xlfn.AGGREGATE(15,6,(ROW(Tabelle2[Nutzung])-1)/(--SEARCH(Berechnung!$C$38,Tabelle2[Nutzung])>0),ROW()-1),1)),\"\")","v":"Elektrische Geräte, Reparatur"}]
["Elektroapparate (H)",1.7,{"$f":"IFERROR(IF(OR(EXACT(Berechnung!$C$38,Tabelle2[Nutzung])),Tabelle2[[#This Row],[Nutzung]],INDEX(Tabelle2[Nutzung],_xlfn.AGGREGATE(15,6,(ROW(Tabelle2[Nutzung])-1)/(--SEARCH(Berechnung!$C$38,Tabelle2[Nutzung])>0),ROW()-1),1)),\"\")","v":"Elektroapparate (H)"}]
["Elektroapparate, Reparatur",2.1,{"$f":"IFERROR(IF(OR(EXACT(Berechnung!$C$38,Tabelle2[Nutzung])),Tabelle2[[#This Row],[Nutzung]],INDEX(Tabelle2[Nutzung],_xlfn.AGGREGATE(15,6,(ROW(Tabelle2[Nutzung])-1)/(--SEARCH(Berechnung!$C$38,Tabelle2[Nutzung])>0),ROW()-1),1)),\"\")","v":"Elektroapparate, Reparatur"}]
["Elektromotoren (H)",2.2999999999999998,{"$f":"IFERROR(IF(OR(EXACT(Berechnung!$C$38,Tabelle2[Nutzung])),Tabelle2[[#This Row],[Nutzung]],INDEX(Tabelle2[Nutzung],_xlfn.AGGREGATE(15,6,(ROW(Tabelle2[Nutzung])-1)/(--SEARCH(Berechnung!$C$38,Tabelle2[Nutzung])>0),ROW()-1),1)),\"\")","v":"Elektromotoren (H)"}]
["Elektronische Geräte (H)",1.9,{"$f":"IFERROR(IF(OR(EXACT(Berechnung!$C$38,Tabelle2[Nutzung])),Tabelle2[[#This Row],[Nutzung]],INDEX(Tabelle2[Nutzung],_xlfn.AGGREGATE(15,6,(ROW(Tabelle2[Nutzung])-1)/(--SEARCH(Berechnung!$C$38,Tabelle2[Nutzung])>0),ROW()-1),1)),\"\")","v":"Elektronische Geräte (H)"}]
["Espresso",1.8,{"$f":"IFERROR(IF(OR(EXACT(Berechnung!$C$38,Tabelle2[Nutzung])),Tabelle2[[#This Row],[Nutzung]],INDEX(Tabelle2[Nutzung],_xlfn.AGGREGATE(15,6,(ROW(Tabelle2[Nutzung])-1)/(--SEARCH(Berechnung!$C$38,Tabelle2[Nutzung])>0),ROW()-1),1)),\"\")","v":"Espresso"}]
["Essig (H)",2.8,{"$f":"IFERROR(IF(OR(EXACT(Berechnung!$C$38,Tabelle2[Nutzung])),Tabelle2[[#This Row],[Nutzung]],INDEX(Tabelle2[Nutzung],_xlfn.AGGREGATE(15,6,(ROW(Tabelle2[Nutzung])-1)/(--SEARCH(Berechnung!$C$38,Tabelle2[Nutzung])>0),ROW()-1),1)),\"\")","v":"Essig (H)"}]
["Fahrräder (H)",2.6,{"$f":"IFERROR(IF(OR(EXACT(Berechnung!$C$38,Tabelle2[Nutzung])),Tabelle2[[#This Row],[Nutzung]],INDEX(Tabelle2[Nutzung],_xlfn.AGGREGATE(15,6,(ROW(Tabelle2[Nutzung])-1)/(--SEARCH(Berechnung!$C$38,Tabelle2[Nutzung])>0),ROW()-1),1)),\"\")","v":"Fahrräder (H)"}]
["Fahrzeuge (H)",2.2000000000000002,{"$f":"IFERROR(IF(OR(EXACT(Berechnung!$C$38,Tabelle2[Nutzung])),Tabelle2[[#This Row],[Nutzung]],INDEX(Tabelle2[Nutzung],_xlfn.AGGREGATE(15,6,(ROW(Tabelle2[Nutzung])-1)/(--SEARCH(Berechnung!$C$38,Tabelle2[Nutzung])>0),ROW()-1),1)),\"\")","v":"Fahrzeuge (H)"}]
["Fahrzeugreifen (H)",2.5,{"$f":"IFERROR(IF(OR(EXACT(Berechnung!$C$38,Tabelle2[Nutzung])),Tabelle2[[#This Row],[Nutzung]],INDEX(Tabelle2[Nutzung],_xlfn.AGGREGATE(15,6,(ROW(Tabelle2[Nutzung])-1)/(--SEARCH(Berechnung!$C$38,Tabelle2[Nutzung])>0),ROW()-1),1)),\"\")","v":"Fahrzeugreifen (H)"}]
["Farben und brennbare Lösungsmittel",4.0999999999999996,{"$f":"IFERROR(IF(OR(EXACT(Berechnung!$C$38,Tabelle2[Nutzung])),Tabelle2[[#This Row],[Nutzung]],INDEX(Tabelle2[Nutzung],_xlfn.AGGREGATE(15,6,(ROW(Tabelle2[Nutzung])-1)/(--SEARCH(Berechnung!$C$38,Tabelle2[Nutzung])>0),ROW()-1),1)),\"\")","v":"Farben und brennbare Lösungsmittel"}]
["Farben, Mischerei",3.3,{"$f":"IFERROR(IF(OR(EXACT(Berechnung!$C$38,Tabelle2[Nutzung])),Tabelle2[[#This Row],[Nutzung]],INDEX(Tabelle2[Nutzung],_xlfn.AGGREGATE(15,6,(ROW(Tabelle2[Nutzung])-1)/(--SEARCH(Berechnung!$C$38,Tabelle2[Nutzung])>0),ROW()-1),1)),\"\")","v":"Farben, Mischerei"}]
["Farben, Verkauf",2.7,{"$f":"IFERROR(IF(OR(EXACT(Berechnung!$C$38,Tabelle2[Nutzung])),Tabelle2[[#This Row],[Nutzung]],INDEX(Tabelle2[Nutzung],_xlfn.AGGREGATE(15,6,(ROW(Tabelle2[Nutzung])-1)/(--SEARCH(Berechnung!$C$38,Tabelle2[Nutzung])>0),ROW()-1),1)),\"\")","v":"Farben, Verkauf"}]
["Färbholzextrakte",3,{"$f":"IFERROR(IF(OR(EXACT(Berechnung!$C$38,Tabelle2[Nutzung])),Tabelle2[[#This Row],[Nutzung]],INDEX(Tabelle2[Nutzung],_xlfn.AGGREGATE(15,6,(ROW(Tabelle2[Nutzung])-1)/(--SEARCH(Berechnung!$C$38,Tabelle2[Nutzung])>0),ROW()-1),1)),\"\")","v":"Färbholzextrakte"}]
["Faserstoffe, Kunstfasern",1.9,{"$f":"IFERROR(IF(OR(EXACT(Berechnung!$C$38,Tabelle2[Nutzung])),Tabelle2[[#This Row],[Nutzung]],INDEX(Tabelle2[Nutzung],_xlfn.AGGREGATE(15,6,(ROW(Tabelle2[Nutzung])-1)/(--SEARCH(Berechnung!$C$38,Tabelle2[Nutzung])>0),ROW()-1),1)),\"\")","v":"Faserstoffe, Kunstfasern"}]
["Faserstoffe, Kunstseide (H)",2,{"$f":"IFERROR(IF(OR(EXACT(Berechnung!$C$38,Tabelle2[Nutzung])),Tabelle2[[#This Row],[Nutzung]],INDEX(Tabelle2[Nutzung],_xlfn.AGGREGATE(15,6,(ROW(Tabelle2[Nutzung])-1)/(--SEARCH(Berechnung!$C$38,Tabelle2[Nutzung])>0),ROW()-1),1)),\"\")","v":"Faserstoffe, Kunstseide (H)"}]
["Fässer, Holz (H)",1.6,{"$f":"IFERROR(IF(OR(EXACT(Berechnung!$C$38,Tabelle2[Nutzung])),Tabelle2[[#This Row],[Nutzung]],INDEX(Tabelle2[Nutzung],_xlfn.AGGREGATE(15,6,(ROW(Tabelle2[Nutzung])-1)/(--SEARCH(Berechnung!$C$38,Tabelle2[Nutzung])>0),ROW()-1),1)),\"\")","v":"Fässer, Holz (H)"}]
["Fässer, Kunststoff (H)",2.1,{"$f":"IFERROR(IF(OR(EXACT(Berechnung!$C$38,Tabelle2[Nutzung])),Tabelle2[[#This Row],[Nutzung]],INDEX(Tabelle2[Nutzung],_xlfn.AGGREGATE(15,6,(ROW(Tabelle2[Nutzung])-1)/(--SEARCH(Berechnung!$C$38,Tabelle2[Nutzung])>0),ROW()-1),1)),\"\")","v":"Fässer, Kunststoff (H)"}]
["Fernsehstudio",1.8,{"$f":"IFERROR(IF(OR(EXACT(Berechnung!$C$38,Tabelle2[Nutzung])),Tabelle2[[#This Row],[Nutzung]],INDEX(Tabelle2[Nutzung],_xlfn.AGGREGATE(15,6,(ROW(Tabelle2[Nutzung])-1)/(--SEARCH(Berechnung!$C$38,Tabelle2[Nutzung])>0),ROW()-1),1)),\"\")","v":"Fernsehstudio"}]
["Fette (H)",3.7,{"$f":"IFERROR(IF(OR(EXACT(Berechnung!$C$38,Tabelle2[Nutzung])),Tabelle2[[#This Row],[Nutzung]],INDEX(Tabelle2[Nutzung],_xlfn.AGGREGATE(15,6,(ROW(Tabelle2[Nutzung])-1)/(--SEARCH(Berechnung!$C$38,Tabelle2[Nutzung])>0),ROW()-1),1)),\"\")","v":"Fette (H)"}]
["Filmatelier",1.7,{"$f":"IFERROR(IF(OR(EXACT(Berechnung!$C$38,Tabelle2[Nutzung])),Tabelle2[[#This Row],[Nutzung]],INDEX(Tabelle2[Nutzung],_xlfn.AGGREGATE(15,6,(ROW(Tabelle2[Nutzung])-1)/(--SEARCH(Berechnung!$C$38,Tabelle2[Nutzung])>0),ROW()-1),1)),\"\")","v":"Filmatelier"}]
["Filme und -platten (H)",2,{"$f":"IFERROR(IF(OR(EXACT(Berechnung!$C$38,Tabelle2[Nutzung])),Tabelle2[[#This Row],[Nutzung]],INDEX(Tabelle2[Nutzung],_xlfn.AGGREGATE(15,6,(ROW(Tabelle2[Nutzung])-1)/(--SEARCH(Berechnung!$C$38,Tabelle2[Nutzung])>0),ROW()-1),1)),\"\")","v":"Filme und -platten (H)"}]
["Filze (H)",2,{"$f":"IFERROR(IF(OR(EXACT(Berechnung!$C$38,Tabelle2[Nutzung])),Tabelle2[[#This Row],[Nutzung]],INDEX(Tabelle2[Nutzung],_xlfn.AGGREGATE(15,6,(ROW(Tabelle2[Nutzung])-1)/(--SEARCH(Berechnung!$C$38,Tabelle2[Nutzung])>0),ROW()-1),1)),\"\")","v":"Filze (H)"}]
["Filzwaren (H)",1.4,{"$f":"IFERROR(IF(OR(EXACT(Berechnung!$C$38,Tabelle2[Nutzung])),Tabelle2[[#This Row],[Nutzung]],INDEX(Tabelle2[Nutzung],_xlfn.AGGREGATE(15,6,(ROW(Tabelle2[Nutzung])-1)/(--SEARCH(Berechnung!$C$38,Tabelle2[Nutzung])>0),ROW()-1),1)),\"\")","v":"Filzwaren (H)"}]
["Fleischwaren (H und Verkauf)",2.1,{"$f":"IFERROR(IF(OR(EXACT(Berechnung!$C$38,Tabelle2[Nutzung])),Tabelle2[[#This Row],[Nutzung]],INDEX(Tabelle2[Nutzung],_xlfn.AGGREGATE(15,6,(ROW(Tabelle2[Nutzung])-1)/(--SEARCH(Berechnung!$C$38,Tabelle2[Nutzung])>0),ROW()-1),1)),\"\")","v":"Fleischwaren (H und Verkauf)"}]
["Flugzeuge (H)",2.8,{"$f":"IFERROR(IF(OR(EXACT(Berechnung!$C$38,Tabelle2[Nutzung])),Tabelle2[[#This Row],[Nutzung]],INDEX(Tabelle2[Nutzung],_xlfn.AGGREGATE(15,6,(ROW(Tabelle2[Nutzung])-1)/(--SEARCH(Berechnung!$C$38,Tabelle2[Nutzung])>0),ROW()-1),1)),\"\")","v":"Flugzeuge (H)"}]
["Flugzeughallen",4.5,{"$f":"IFERROR(IF(OR(EXACT(Berechnung!$C$38,Tabelle2[Nutzung])),Tabelle2[[#This Row],[Nutzung]],INDEX(Tabelle2[Nutzung],_xlfn.AGGREGATE(15,6,(ROW(Tabelle2[Nutzung])-1)/(--SEARCH(Berechnung!$C$38,Tabelle2[Nutzung])>0),ROW()-1),1)),\"\")","v":"Flugzeughallen"}]
["Folien, Metall (H)",2.4,{"$f":"IFERROR(IF(OR(EXACT(Berechnung!$C$38,Tabelle2[Nutzung])),Tabelle2[[#This Row],[Nutzung]],INDEX(Tabelle2[Nutzung],_xlfn.AGGREGATE(15,6,(ROW(Tabelle2[Nutzung])-1)/(--SEARCH(Berechnung!$C$38,Tabelle2[Nutzung])>0),ROW()-1),1)),\"\")","v":"Folien, Metall (H)"}]
["Fotoapparate",1.9,{"$f":"IFERROR(IF(OR(EXACT(Berechnung!$C$38,Tabelle2[Nutzung])),Tabelle2[[#This Row],[Nutzung]],INDEX(Tabelle2[Nutzung],_xlfn.AGGREGATE(15,6,(ROW(Tabelle2[Nutzung])-1)/(--SEARCH(Berechnung!$C$38,Tabelle2[Nutzung])>0),ROW()-1),1)),\"\")","v":"Fotoapparate"}]
["Fotoatelier",1.8,{"$f":"IFERROR(IF(OR(EXACT(Berechnung!$C$38,Tabelle2[Nutzung])),Tabelle2[[#This Row],[Nutzung]],INDEX(Tabelle2[Nutzung],_xlfn.AGGREGATE(15,6,(ROW(Tabelle2[Nutzung])-1)/(--SEARCH(Berechnung!$C$38,Tabelle2[Nutzung])>0),ROW()-1),1)),\"\")","v":"Fotoatelier"}]
["Fotofilme und -platten",2,{"$f":"IFERROR(IF(OR(EXACT(Berechnung!$C$38,Tabelle2[Nutzung])),Tabelle2[[#This Row],[Nutzung]],INDEX(Tabelle2[Nutzung],_xlfn.AGGREGATE(15,6,(ROW(Tabelle2[Nutzung])-1)/(--SEARCH(Berechnung!$C$38,Tabelle2[Nutzung])>0),ROW()-1),1)),\"\")","v":"Fotofilme und -platten"}]
["Fotogeschäft",1.6,{"$f":"IFERROR(IF(OR(EXACT(Berechnung!$C$38,Tabelle2[Nutzung])),Tabelle2[[#This Row],[Nutzung]],INDEX(Tabelle2[Nutzung],_xlfn.AGGREGATE(15,6,(ROW(Tabelle2[Nutzung])-1)/(--SEARCH(Berechnung!$C$38,Tabelle2[Nutzung])>0),ROW()-1),1)),\"\")","v":"Fotogeschäft"}]
["Fruchtsäfte (H)",1.6,{"$f":"IFERROR(IF(OR(EXACT(Berechnung!$C$38,Tabelle2[Nutzung])),Tabelle2[[#This Row],[Nutzung]],INDEX(Tabelle2[Nutzung],_xlfn.AGGREGATE(15,6,(ROW(Tabelle2[Nutzung])-1)/(--SEARCH(Berechnung!$C$38,Tabelle2[Nutzung])>0),ROW()-1),1)),\"\")","v":"Fruchtsäfte (H)"}]
["Funkstationen",1.9,{"$f":"IFERROR(IF(OR(EXACT(Berechnung!$C$38,Tabelle2[Nutzung])),Tabelle2[[#This Row],[Nutzung]],INDEX(Tabelle2[Nutzung],_xlfn.AGGREGATE(15,6,(ROW(Tabelle2[Nutzung])-1)/(--SEARCH(Berechnung!$C$38,Tabelle2[Nutzung])>0),ROW()-1),1)),\"\")","v":"Funkstationen"}]
["Furniere (H)",1.8,{"$f":"IFERROR(IF(OR(EXACT(Berechnung!$C$38,Tabelle2[Nutzung])),Tabelle2[[#This Row],[Nutzung]],INDEX(Tabelle2[Nutzung],_xlfn.AGGREGATE(15,6,(ROW(Tabelle2[Nutzung])-1)/(--SEARCH(Berechnung!$C$38,Tabelle2[Nutzung])>0),ROW()-1),1)),\"\")","v":"Furniere (H)"}]
["Futtermittel (H)",2.5,{"$f":"IFERROR(IF(OR(EXACT(Berechnung!$C$38,Tabelle2[Nutzung])),Tabelle2[[#This Row],[Nutzung]],INDEX(Tabelle2[Nutzung],_xlfn.AGGREGATE(15,6,(ROW(Tabelle2[Nutzung])-1)/(--SEARCH(Berechnung!$C$38,Tabelle2[Nutzung])>0),ROW()-1),1)),\"\")","v":"Futtermittel (H)"}]
["Galvanik",2.7,{"$f":"IFERROR(IF(OR(EXACT(Berechnung!$C$38,Tabelle2[Nutzung])),Tabelle2[[#This Row],[Nutzung]],INDEX(Tabelle2[Nutzung],_xlfn.AGGREGATE(15,6,(ROW(Tabelle2[Nutzung])-1)/(--SEARCH(Berechnung!$C$38,Tabelle2[Nutzung])>0),ROW()-1),1)),\"\")","v":"Galvanik"}]
["Garage",3,{"$f":"IFERROR(IF(OR(EXACT(Berechnung!$C$38,Tabelle2[Nutzung])),Tabelle2[[#This Row],[Nutzung]],INDEX(Tabelle2[Nutzung],_xlfn.AGGREGATE(15,6,(ROW(Tabelle2[Nutzung])-1)/(--SEARCH(Berechnung!$C$38,Tabelle2[Nutzung])>0),ROW()-1),1)),\"\")","v":"Garage"}]
["Garderobe: Holzkasten",1.6,{"$f":"IFERROR(IF(OR(EXACT(Berechnung!$C$38,Tabelle2[Nutzung])),Tabelle2[[#This Row],[Nutzung]],INDEX(Tabelle2[Nutzung],_xlfn.AGGREGATE(15,6,(ROW(Tabelle2[Nutzung])-1)/(--SEARCH(Berechnung!$C$38,Tabelle2[Nutzung])>0),ROW()-1),1)),\"\")","v":"Garderobe: Holzkasten"}]
["Garderobe: Metallkästen",1.2,{"$f":"IFERROR(IF(OR(EXACT(Berechnung!$C$38,Tabelle2[Nutzung])),Tabelle2[[#This Row],[Nutzung]],INDEX(Tabelle2[Nutzung],_xlfn.AGGREGATE(15,6,(ROW(Tabelle2[Nutzung])-1)/(--SEARCH(Berechnung!$C$38,Tabelle2[Nutzung])>0),ROW()-1),1)),\"\")","v":"Garderobe: Metallkästen"}]
["Gasglühkörper (H)",1.9,{"$f":"IFERROR(IF(OR(EXACT(Berechnung!$C$38,Tabelle2[Nutzung])),Tabelle2[[#This Row],[Nutzung]],INDEX(Tabelle2[Nutzung],_xlfn.AGGREGATE(15,6,(ROW(Tabelle2[Nutzung])-1)/(--SEARCH(Berechnung!$C$38,Tabelle2[Nutzung])>0),ROW()-1),1)),\"\")","v":"Gasglühkörper (H)"}]
["Gasthaus, Gasthof",1.7,{"$f":"IFERROR(IF(OR(EXACT(Berechnung!$C$38,Tabelle2[Nutzung])),Tabelle2[[#This Row],[Nutzung]],INDEX(Tabelle2[Nutzung],_xlfn.AGGREGATE(15,6,(ROW(Tabelle2[Nutzung])-1)/(--SEARCH(Berechnung!$C$38,Tabelle2[Nutzung])>0),ROW()-1),1)),\"\")","v":"Gasthaus, Gasthof"}]
["Gelatine und - waren (H)",3.3,{"$f":"IFERROR(IF(OR(EXACT(Berechnung!$C$38,Tabelle2[Nutzung])),Tabelle2[[#This Row],[Nutzung]],INDEX(Tabelle2[Nutzung],_xlfn.AGGREGATE(15,6,(ROW(Tabelle2[Nutzung])-1)/(--SEARCH(Berechnung!$C$38,Tabelle2[Nutzung])>0),ROW()-1),1)),\"\")","v":"Gelatine und - waren (H)"}]
["Gemüse, frisch, Verkauf",1.3,{"$f":"IFERROR(IF(OR(EXACT(Berechnung!$C$38,Tabelle2[Nutzung])),Tabelle2[[#This Row],[Nutzung]],INDEX(Tabelle2[Nutzung],_xlfn.AGGREGATE(15,6,(ROW(Tabelle2[Nutzung])-1)/(--SEARCH(Berechnung!$C$38,Tabelle2[Nutzung])>0),ROW()-1),1)),\"\")","v":"Gemüse, frisch, Verkauf"}]
["Getränke, nicht alkohol, (H)",1.2,{"$f":"IFERROR(IF(OR(EXACT(Berechnung!$C$38,Tabelle2[Nutzung])),Tabelle2[[#This Row],[Nutzung]],INDEX(Tabelle2[Nutzung],_xlfn.AGGREGATE(15,6,(ROW(Tabelle2[Nutzung])-1)/(--SEARCH(Berechnung!$C$38,Tabelle2[Nutzung])>0),ROW()-1),1)),\"\")","v":"Getränke, nicht alkohol, (H)"}]
["Getreide-Mühle",1.8,{"$f":"IFERROR(IF(OR(EXACT(Berechnung!$C$38,Tabelle2[Nutzung])),Tabelle2[[#This Row],[Nutzung]],INDEX(Tabelle2[Nutzung],_xlfn.AGGREGATE(15,6,(ROW(Tabelle2[Nutzung])-1)/(--SEARCH(Berechnung!$C$38,Tabelle2[Nutzung])>0),ROW()-1),1)),\"\")","v":"Getreide-Mühle"}]
["Gewürze (H)",1.6,{"$f":"IFERROR(IF(OR(EXACT(Berechnung!$C$38,Tabelle2[Nutzung])),Tabelle2[[#This Row],[Nutzung]],INDEX(Tabelle2[Nutzung],_xlfn.AGGREGATE(15,6,(ROW(Tabelle2[Nutzung])-1)/(--SEARCH(Berechnung!$C$38,Tabelle2[Nutzung])>0),ROW()-1),1)),\"\")","v":"Gewürze (H)"}]
["Gips und -waren (H)",2,{"$f":"IFERROR(IF(OR(EXACT(Berechnung!$C$38,Tabelle2[Nutzung])),Tabelle2[[#This Row],[Nutzung]],INDEX(Tabelle2[Nutzung],_xlfn.AGGREGATE(15,6,(ROW(Tabelle2[Nutzung])-1)/(--SEARCH(Berechnung!$C$38,Tabelle2[Nutzung])>0),ROW()-1),1)),\"\")","v":"Gips und -waren (H)"}]
["Glas (H)",1.8,{"$f":"IFERROR(IF(OR(EXACT(Berechnung!$C$38,Tabelle2[Nutzung])),Tabelle2[[#This Row],[Nutzung]],INDEX(Tabelle2[Nutzung],_xlfn.AGGREGATE(15,6,(ROW(Tabelle2[Nutzung])-1)/(--SEARCH(Berechnung!$C$38,Tabelle2[Nutzung])>0),ROW()-1),1)),\"\")","v":"Glas (H)"}]
["Glaserei (H)",1.7,{"$f":"IFERROR(IF(OR(EXACT(Berechnung!$C$38,Tabelle2[Nutzung])),Tabelle2[[#This Row],[Nutzung]],INDEX(Tabelle2[Nutzung],_xlfn.AGGREGATE(15,6,(ROW(Tabelle2[Nutzung])-1)/(--SEARCH(Berechnung!$C$38,Tabelle2[Nutzung])>0),ROW()-1),1)),\"\")","v":"Glaserei (H)"}]
["Glaswaren (H)",1.6,{"$f":"IFERROR(IF(OR(EXACT(Berechnung!$C$38,Tabelle2[Nutzung])),Tabelle2[[#This Row],[Nutzung]],INDEX(Tabelle2[Nutzung],_xlfn.AGGREGATE(15,6,(ROW(Tabelle2[Nutzung])-1)/(--SEARCH(Berechnung!$C$38,Tabelle2[Nutzung])>0),ROW()-1),1)),\"\")","v":"Glaswaren (H)"}]
["Glaswaren, Ätzerei",1.8,{"$f":"IFERROR(IF(OR(EXACT(Berechnung!$C$38,Tabelle2[Nutzung])),Tabelle2[[#This Row],[Nutzung]],INDEX(Tabelle2[Nutzung],_xlfn.AGGREGATE(15,6,(ROW(Tabelle2[Nutzung])-1)/(--SEARCH(Berechnung!$C$38,Tabelle2[Nutzung])>0),ROW()-1),1)),\"\")","v":"Glaswaren, Ätzerei"}]
["Glaswaren, Auslieferung",2,{"$f":"IFERROR(IF(OR(EXACT(Berechnung!$C$38,Tabelle2[Nutzung])),Tabelle2[[#This Row],[Nutzung]],INDEX(Tabelle2[Nutzung],_xlfn.AGGREGATE(15,6,(ROW(Tabelle2[Nutzung])-1)/(--SEARCH(Berechnung!$C$38,Tabelle2[Nutzung])>0),ROW()-1),1)),\"\")","v":"Glaswaren, Auslieferung"}]
["Glaswaren, Glasbläserei",2,{"$f":"IFERROR(IF(OR(EXACT(Berechnung!$C$38,Tabelle2[Nutzung])),Tabelle2[[#This Row],[Nutzung]],INDEX(Tabelle2[Nutzung],_xlfn.AGGREGATE(15,6,(ROW(Tabelle2[Nutzung])-1)/(--SEARCH(Berechnung!$C$38,Tabelle2[Nutzung])>0),ROW()-1),1)),\"\")","v":"Glaswaren, Glasbläserei"}]
["Glaswaren, Glasmalerei",2,{"$f":"IFERROR(IF(OR(EXACT(Berechnung!$C$38,Tabelle2[Nutzung])),Tabelle2[[#This Row],[Nutzung]],INDEX(Tabelle2[Nutzung],_xlfn.AGGREGATE(15,6,(ROW(Tabelle2[Nutzung])-1)/(--SEARCH(Berechnung!$C$38,Tabelle2[Nutzung])>0),ROW()-1),1)),\"\")","v":"Glaswaren, Glasmalerei"}]
["Glaswaren, Verkauf",1.8,{"$f":"IFERROR(IF(OR(EXACT(Berechnung!$C$38,Tabelle2[Nutzung])),Tabelle2[[#This Row],[Nutzung]],INDEX(Tabelle2[Nutzung],_xlfn.AGGREGATE(15,6,(ROW(Tabelle2[Nutzung])-1)/(--SEARCH(Berechnung!$C$38,Tabelle2[Nutzung])>0),ROW()-1),1)),\"\")","v":"Glaswaren, Verkauf"}]
["Glühlampen (H)",1.8,{"$f":"IFERROR(IF(OR(EXACT(Berechnung!$C$38,Tabelle2[Nutzung])),Tabelle2[[#This Row],[Nutzung]],INDEX(Tabelle2[Nutzung],_xlfn.AGGREGATE(15,6,(ROW(Tabelle2[Nutzung])-1)/(--SEARCH(Berechnung!$C$38,Tabelle2[Nutzung])>0),ROW()-1),1)),\"\")","v":"Glühlampen (H)"}]
["Goldschmiedewaren (H)",2.1,{"$f":"IFERROR(IF(OR(EXACT(Berechnung!$C$38,Tabelle2[Nutzung])),Tabelle2[[#This Row],[Nutzung]],INDEX(Tabelle2[Nutzung],_xlfn.AGGREGATE(15,6,(ROW(Tabelle2[Nutzung])-1)/(--SEARCH(Berechnung!$C$38,Tabelle2[Nutzung])>0),ROW()-1),1)),\"\")","v":"Goldschmiedewaren (H)"}]
["Gummiwaren (H)",3.1,{"$f":"IFERROR(IF(OR(EXACT(Berechnung!$C$38,Tabelle2[Nutzung])),Tabelle2[[#This Row],[Nutzung]],INDEX(Tabelle2[Nutzung],_xlfn.AGGREGATE(15,6,(ROW(Tabelle2[Nutzung])-1)/(--SEARCH(Berechnung!$C$38,Tabelle2[Nutzung])>0),ROW()-1),1)),\"\")","v":"Gummiwaren (H)"}]
["Gummiwaren, Verkauf",2.5,{"$f":"IFERROR(IF(OR(EXACT(Berechnung!$C$38,Tabelle2[Nutzung])),Tabelle2[[#This Row],[Nutzung]],INDEX(Tabelle2[Nutzung],_xlfn.AGGREGATE(15,6,(ROW(Tabelle2[Nutzung])-1)/(--SEARCH(Berechnung!$C$38,Tabelle2[Nutzung])>0),ROW()-1),1)),\"\")","v":"Gummiwaren, Verkauf"}]
["Hackschnitzellager",1.6,{"$f":"IFERROR(IF(OR(EXACT(Berechnung!$C$38,Tabelle2[Nutzung])),Tabelle2[[#This Row],[Nutzung]],INDEX(Tabelle2[Nutzung],_xlfn.AGGREGATE(15,6,(ROW(Tabelle2[Nutzung])-1)/(--SEARCH(Berechnung!$C$38,Tabelle2[Nutzung])>0),ROW()-1),1)),\"\")","v":"Hackschnitzellager"}]
["Hafnerwaren (H)",1.8,{"$f":"IFERROR(IF(OR(EXACT(Berechnung!$C$38,Tabelle2[Nutzung])),Tabelle2[[#This Row],[Nutzung]],INDEX(Tabelle2[Nutzung],_xlfn.AGGREGATE(15,6,(ROW(Tabelle2[Nutzung])-1)/(--SEARCH(Berechnung!$C$38,Tabelle2[Nutzung])>0),ROW()-1),1)),\"\")","v":"Hafnerwaren (H)"}]
["Handschuhe (H)",1.9,{"$f":"IFERROR(IF(OR(EXACT(Berechnung!$C$38,Tabelle2[Nutzung])),Tabelle2[[#This Row],[Nutzung]],INDEX(Tabelle2[Nutzung],_xlfn.AGGREGATE(15,6,(ROW(Tabelle2[Nutzung])-1)/(--SEARCH(Berechnung!$C$38,Tabelle2[Nutzung])>0),ROW()-1),1)),\"\")","v":"Handschuhe (H)"}]
["Hartfaserplatten (H)",1.8,{"$f":"IFERROR(IF(OR(EXACT(Berechnung!$C$38,Tabelle2[Nutzung])),Tabelle2[[#This Row],[Nutzung]],INDEX(Tabelle2[Nutzung],_xlfn.AGGREGATE(15,6,(ROW(Tabelle2[Nutzung])-1)/(--SEARCH(Berechnung!$C$38,Tabelle2[Nutzung])>0),ROW()-1),1)),\"\")","v":"Hartfaserplatten (H)"}]
["Haushaltsgeräte (H)",2,{"$f":"IFERROR(IF(OR(EXACT(Berechnung!$C$38,Tabelle2[Nutzung])),Tabelle2[[#This Row],[Nutzung]],INDEX(Tabelle2[Nutzung],_xlfn.AGGREGATE(15,6,(ROW(Tabelle2[Nutzung])-1)/(--SEARCH(Berechnung!$C$38,Tabelle2[Nutzung])>0),ROW()-1),1)),\"\")","v":"Haushaltsgeräte (H)"}]
["Haushaltsgeräte, Verkauf",1.8,{"$f":"IFERROR(IF(OR(EXACT(Berechnung!$C$38,Tabelle2[Nutzung])),Tabelle2[[#This Row],[Nutzung]],INDEX(Tabelle2[Nutzung],_xlfn.AGGREGATE(15,6,(ROW(Tabelle2[Nutzung])-1)/(--SEARCH(Berechnung!$C$38,Tabelle2[Nutzung])>0),ROW()-1),1)),\"\")","v":"Haushaltsgeräte, Verkauf"}]
["Hefe (H)",1.6,{"$f":"IFERROR(IF(OR(EXACT(Berechnung!$C$38,Tabelle2[Nutzung])),Tabelle2[[#This Row],[Nutzung]],INDEX(Tabelle2[Nutzung],_xlfn.AGGREGATE(15,6,(ROW(Tabelle2[Nutzung])-1)/(--SEARCH(Berechnung!$C$38,Tabelle2[Nutzung])>0),ROW()-1),1)),\"\")","v":"Hefe (H)"}]
["Heizraum",3.4,{"$f":"IFERROR(IF(OR(EXACT(Berechnung!$C$38,Tabelle2[Nutzung])),Tabelle2[[#This Row],[Nutzung]],INDEX(Tabelle2[Nutzung],_xlfn.AGGREGATE(15,6,(ROW(Tabelle2[Nutzung])-1)/(--SEARCH(Berechnung!$C$38,Tabelle2[Nutzung])>0),ROW()-1),1)),\"\")","v":"Heizraum"}]
["Holzleisten und -stifte (H)",1.7,{"$f":"IFERROR(IF(OR(EXACT(Berechnung!$C$38,Tabelle2[Nutzung])),Tabelle2[[#This Row],[Nutzung]],INDEX(Tabelle2[Nutzung],_xlfn.AGGREGATE(15,6,(ROW(Tabelle2[Nutzung])-1)/(--SEARCH(Berechnung!$C$38,Tabelle2[Nutzung])>0),ROW()-1),1)),\"\")","v":"Holzleisten und -stifte (H)"}]
["Holzmehl (H)",1.9,{"$f":"IFERROR(IF(OR(EXACT(Berechnung!$C$38,Tabelle2[Nutzung])),Tabelle2[[#This Row],[Nutzung]],INDEX(Tabelle2[Nutzung],_xlfn.AGGREGATE(15,6,(ROW(Tabelle2[Nutzung])-1)/(--SEARCH(Berechnung!$C$38,Tabelle2[Nutzung])>0),ROW()-1),1)),\"\")","v":"Holzmehl (H)"}]
["Holzwaren, Auslieferung",1.7,{"$f":"IFERROR(IF(OR(EXACT(Berechnung!$C$38,Tabelle2[Nutzung])),Tabelle2[[#This Row],[Nutzung]],INDEX(Tabelle2[Nutzung],_xlfn.AGGREGATE(15,6,(ROW(Tabelle2[Nutzung])-1)/(--SEARCH(Berechnung!$C$38,Tabelle2[Nutzung])>0),ROW()-1),1)),\"\")","v":"Holzwaren, Auslieferung"}]
["Holzwaren, Banktischlerei",1.8,{"$f":"IFERROR(IF(OR(EXACT(Berechnung!$C$38,Tabelle2[Nutzung])),Tabelle2[[#This Row],[Nutzung]],INDEX(Tabelle2[Nutzung],_xlfn.AGGREGATE(15,6,(ROW(Tabelle2[Nutzung])-1)/(--SEARCH(Berechnung!$C$38,Tabelle2[Nutzung])>0),ROW()-1),1)),\"\")","v":"Holzwaren, Banktischlerei"}]
["Holzwaren, Drechslerei",1.8,{"$f":"IFERROR(IF(OR(EXACT(Berechnung!$C$38,Tabelle2[Nutzung])),Tabelle2[[#This Row],[Nutzung]],INDEX(Tabelle2[Nutzung],_xlfn.AGGREGATE(15,6,(ROW(Tabelle2[Nutzung])-1)/(--SEARCH(Berechnung!$C$38,Tabelle2[Nutzung])>0),ROW()-1),1)),\"\")","v":"Holzwaren, Drechslerei"}]
["Holzwaren, Imprägniererei",2.8,{"$f":"IFERROR(IF(OR(EXACT(Berechnung!$C$38,Tabelle2[Nutzung])),Tabelle2[[#This Row],[Nutzung]],INDEX(Tabelle2[Nutzung],_xlfn.AGGREGATE(15,6,(ROW(Tabelle2[Nutzung])-1)/(--SEARCH(Berechnung!$C$38,Tabelle2[Nutzung])>0),ROW()-1),1)),\"\")","v":"Holzwaren, Imprägniererei"}]
["Holzwaren, Maschinentischlerei",1.9,{"$f":"IFERROR(IF(OR(EXACT(Berechnung!$C$38,Tabelle2[Nutzung])),Tabelle2[[#This Row],[Nutzung]],INDEX(Tabelle2[Nutzung],_xlfn.AGGREGATE(15,6,(ROW(Tabelle2[Nutzung])-1)/(--SEARCH(Berechnung!$C$38,Tabelle2[Nutzung])>0),ROW()-1),1)),\"\")","v":"Holzwaren, Maschinentischlerei"}]
["Holzwaren, Modelltischlerei",2,{"$f":"IFERROR(IF(OR(EXACT(Berechnung!$C$38,Tabelle2[Nutzung])),Tabelle2[[#This Row],[Nutzung]],INDEX(Tabelle2[Nutzung],_xlfn.AGGREGATE(15,6,(ROW(Tabelle2[Nutzung])-1)/(--SEARCH(Berechnung!$C$38,Tabelle2[Nutzung])>0),ROW()-1),1)),\"\")","v":"Holzwaren, Modelltischlerei"}]
["Holzwaren, Sägewerk",1.9,{"$f":"IFERROR(IF(OR(EXACT(Berechnung!$C$38,Tabelle2[Nutzung])),Tabelle2[[#This Row],[Nutzung]],INDEX(Tabelle2[Nutzung],_xlfn.AGGREGATE(15,6,(ROW(Tabelle2[Nutzung])-1)/(--SEARCH(Berechnung!$C$38,Tabelle2[Nutzung])>0),ROW()-1),1)),\"\")","v":"Holzwaren, Sägewerk"}]
["Holzwaren, Schleiferei",1.8,{"$f":"IFERROR(IF(OR(EXACT(Berechnung!$C$38,Tabelle2[Nutzung])),Tabelle2[[#This Row],[Nutzung]],INDEX(Tabelle2[Nutzung],_xlfn.AGGREGATE(15,6,(ROW(Tabelle2[Nutzung])-1)/(--SEARCH(Berechnung!$C$38,Tabelle2[Nutzung])>0),ROW()-1),1)),\"\")","v":"Holzwaren, Schleiferei"}]
["Holzwaren, Spritzlackiererei",2.4,{"$f":"IFERROR(IF(OR(EXACT(Berechnung!$C$38,Tabelle2[Nutzung])),Tabelle2[[#This Row],[Nutzung]],INDEX(Tabelle2[Nutzung],_xlfn.AGGREGATE(15,6,(ROW(Tabelle2[Nutzung])-1)/(--SEARCH(Berechnung!$C$38,Tabelle2[Nutzung])>0),ROW()-1),1)),\"\")","v":"Holzwaren, Spritzlackiererei"}]
["Holzwaren, Trocknerei",2.1,{"$f":"IFERROR(IF(OR(EXACT(Berechnung!$C$38,Tabelle2[Nutzung])),Tabelle2[[#This Row],[Nutzung]],INDEX(Tabelle2[Nutzung],_xlfn.AGGREGATE(15,6,(ROW(Tabelle2[Nutzung])-1)/(--SEARCH(Berechnung!$C$38,Tabelle2[Nutzung])>0),ROW()-1),1)),\"\")","v":"Holzwaren, Trocknerei"}]
["Holzwaren, Zimmerei",1.8,{"$f":"IFERROR(IF(OR(EXACT(Berechnung!$C$38,Tabelle2[Nutzung])),Tabelle2[[#This Row],[Nutzung]],INDEX(Tabelle2[Nutzung],_xlfn.AGGREGATE(15,6,(ROW(Tabelle2[Nutzung])-1)/(--SEARCH(Berechnung!$C$38,Tabelle2[Nutzung])>0),ROW()-1),1)),\"\")","v":"Holzwaren, Zimmerei"}]
["Holzwaren, Zuschneiderei",1.8,{"$f":"IFERROR(IF(OR(EXACT(Berechnung!$C$38,Tabelle2[Nutzung])),Tabelle2[[#This Row],[Nutzung]],INDEX(Tabelle2[Nutzung],_xlfn.AGGREGATE(15,6,(ROW(Tabelle2[Nutzung])-1)/(--SEARCH(Berechnung!$C$38,Tabelle2[Nutzung])>0),ROW()-1),1)),\"\")","v":"Holzwaren, Zuschneiderei"}]
["Hotel, Restaurant, Säle",1.7,{"$f":"IFERROR(IF(OR(EXACT(Berechnung!$C$38,Tabelle2[Nutzung])),Tabelle2[[#This Row],[Nutzung]],INDEX(Tabelle2[Nutzung],_xlfn.AGGREGATE(15,6,(ROW(Tabelle2[Nutzung])-1)/(--SEARCH(Berechnung!$C$38,Tabelle2[Nutzung])>0),ROW()-1),1)),\"\")","v":"Hotel, Restaurant, Säle"}]
["Hotel, Zimmer",1.7,{"$f":"IFERROR(IF(OR(EXACT(Berechnung!$C$38,Tabelle2[Nutzung])),Tabelle2[[#This Row],[Nutzung]],INDEX(Tabelle2[Nutzung],_xlfn.AGGREGATE(15,6,(ROW(Tabelle2[Nutzung])-1)/(--SEARCH(Berechnung!$C$38,Tabelle2[Nutzung])>0),ROW()-1),1)),\"\")","v":"Hotel, Zimmer"}]
["Hüte (H)",1.6,{"$f":"IFERROR(IF(OR(EXACT(Berechnung!$C$38,Tabelle2[Nutzung])),Tabelle2[[#This Row],[Nutzung]],INDEX(Tabelle2[Nutzung],_xlfn.AGGREGATE(15,6,(ROW(Tabelle2[Nutzung])-1)/(--SEARCH(Berechnung!$C$38,Tabelle2[Nutzung])>0),ROW()-1),1)),\"\")","v":"Hüte (H)"}]
["Hüte, Verkauf",1.4,{"$f":"IFERROR(IF(OR(EXACT(Berechnung!$C$38,Tabelle2[Nutzung])),Tabelle2[[#This Row],[Nutzung]],INDEX(Tabelle2[Nutzung],_xlfn.AGGREGATE(15,6,(ROW(Tabelle2[Nutzung])-1)/(--SEARCH(Berechnung!$C$38,Tabelle2[Nutzung])>0),ROW()-1),1)),\"\")","v":"Hüte, Verkauf"}]
["Installateurwerkstatt",2,{"$f":"IFERROR(IF(OR(EXACT(Berechnung!$C$38,Tabelle2[Nutzung])),Tabelle2[[#This Row],[Nutzung]],INDEX(Tabelle2[Nutzung],_xlfn.AGGREGATE(15,6,(ROW(Tabelle2[Nutzung])-1)/(--SEARCH(Berechnung!$C$38,Tabelle2[Nutzung])>0),ROW()-1),1)),\"\")","v":"Installateurwerkstatt"}]
["Jalousien (H)",1.9,{"$f":"IFERROR(IF(OR(EXACT(Berechnung!$C$38,Tabelle2[Nutzung])),Tabelle2[[#This Row],[Nutzung]],INDEX(Tabelle2[Nutzung],_xlfn.AGGREGATE(15,6,(ROW(Tabelle2[Nutzung])-1)/(--SEARCH(Berechnung!$C$38,Tabelle2[Nutzung])>0),ROW()-1),1)),\"\")","v":"Jalousien (H)"}]
["Jugendherberge",1.6,{"$f":"IFERROR(IF(OR(EXACT(Berechnung!$C$38,Tabelle2[Nutzung])),Tabelle2[[#This Row],[Nutzung]],INDEX(Tabelle2[Nutzung],_xlfn.AGGREGATE(15,6,(ROW(Tabelle2[Nutzung])-1)/(--SEARCH(Berechnung!$C$38,Tabelle2[Nutzung])>0),ROW()-1),1)),\"\")","v":"Jugendherberge"}]
["Kabel (H)",1.6,{"$f":"IFERROR(IF(OR(EXACT(Berechnung!$C$38,Tabelle2[Nutzung])),Tabelle2[[#This Row],[Nutzung]],INDEX(Tabelle2[Nutzung],_xlfn.AGGREGATE(15,6,(ROW(Tabelle2[Nutzung])-1)/(--SEARCH(Berechnung!$C$38,Tabelle2[Nutzung])>0),ROW()-1),1)),\"\")","v":"Kabel (H)"}]
["Kaffee-Extrakt (H)",1.6,{"$f":"IFERROR(IF(OR(EXACT(Berechnung!$C$38,Tabelle2[Nutzung])),Tabelle2[[#This Row],[Nutzung]],INDEX(Tabelle2[Nutzung],_xlfn.AGGREGATE(15,6,(ROW(Tabelle2[Nutzung])-1)/(--SEARCH(Berechnung!$C$38,Tabelle2[Nutzung])>0),ROW()-1),1)),\"\")","v":"Kaffee-Extrakt (H)"}]
["Kaffeerösterei",1.6,{"$f":"IFERROR(IF(OR(EXACT(Berechnung!$C$38,Tabelle2[Nutzung])),Tabelle2[[#This Row],[Nutzung]],INDEX(Tabelle2[Nutzung],_xlfn.AGGREGATE(15,6,(ROW(Tabelle2[Nutzung])-1)/(--SEARCH(Berechnung!$C$38,Tabelle2[Nutzung])>0),ROW()-1),1)),\"\")","v":"Kaffeerösterei"}]
["Kakaoprodukte (H)",3.2,{"$f":"IFERROR(IF(OR(EXACT(Berechnung!$C$38,Tabelle2[Nutzung])),Tabelle2[[#This Row],[Nutzung]],INDEX(Tabelle2[Nutzung],_xlfn.AGGREGATE(15,6,(ROW(Tabelle2[Nutzung])-1)/(--SEARCH(Berechnung!$C$38,Tabelle2[Nutzung])>0),ROW()-1),1)),\"\")","v":"Kakaoprodukte (H)"}]
["Kalkofen",1.8,{"$f":"IFERROR(IF(OR(EXACT(Berechnung!$C$38,Tabelle2[Nutzung])),Tabelle2[[#This Row],[Nutzung]],INDEX(Tabelle2[Nutzung],_xlfn.AGGREGATE(15,6,(ROW(Tabelle2[Nutzung])-1)/(--SEARCH(Berechnung!$C$38,Tabelle2[Nutzung])>0),ROW()-1),1)),\"\")","v":"Kalkofen"}]
["Kantine",1.7,{"$f":"IFERROR(IF(OR(EXACT(Berechnung!$C$38,Tabelle2[Nutzung])),Tabelle2[[#This Row],[Nutzung]],INDEX(Tabelle2[Nutzung],_xlfn.AGGREGATE(15,6,(ROW(Tabelle2[Nutzung])-1)/(--SEARCH(Berechnung!$C$38,Tabelle2[Nutzung])>0),ROW()-1),1)),\"\")","v":"Kantine"}]
["Karosserien, Metall (H)",2.5,{"$f":"IFERROR(IF(OR(EXACT(Berechnung!$C$38,Tabelle2[Nutzung])),Tabelle2[[#This Row],[Nutzung]],INDEX(Tabelle2[Nutzung],_xlfn.AGGREGATE(15,6,(ROW(Tabelle2[Nutzung])-1)/(--SEARCH(Berechnung!$C$38,Tabelle2[Nutzung])>0),ROW()-1),1)),\"\")","v":"Karosserien, Metall (H)"}]
["Karton (H)",1.5,{"$f":"IFERROR(IF(OR(EXACT(Berechnung!$C$38,Tabelle2[Nutzung])),Tabelle2[[#This Row],[Nutzung]],INDEX(Tabelle2[Nutzung],_xlfn.AGGREGATE(15,6,(ROW(Tabelle2[Nutzung])-1)/(--SEARCH(Berechnung!$C$38,Tabelle2[Nutzung])>0),ROW()-1),1)),\"\")","v":"Karton (H)"}]
["Kartonagen (H)",1.3,{"$f":"IFERROR(IF(OR(EXACT(Berechnung!$C$38,Tabelle2[Nutzung])),Tabelle2[[#This Row],[Nutzung]],INDEX(Tabelle2[Nutzung],_xlfn.AGGREGATE(15,6,(ROW(Tabelle2[Nutzung])-1)/(--SEARCH(Berechnung!$C$38,Tabelle2[Nutzung])>0),ROW()-1),1)),\"\")","v":"Kartonagen (H)"}]
["Kartonagen, Auslieferung",1.2,{"$f":"IFERROR(IF(OR(EXACT(Berechnung!$C$38,Tabelle2[Nutzung])),Tabelle2[[#This Row],[Nutzung]],INDEX(Tabelle2[Nutzung],_xlfn.AGGREGATE(15,6,(ROW(Tabelle2[Nutzung])-1)/(--SEARCH(Berechnung!$C$38,Tabelle2[Nutzung])>0),ROW()-1),1)),\"\")","v":"Kartonagen, Auslieferung"}]
["Käse (H)",1.6,{"$f":"IFERROR(IF(OR(EXACT(Berechnung!$C$38,Tabelle2[Nutzung])),Tabelle2[[#This Row],[Nutzung]],INDEX(Tabelle2[Nutzung],_xlfn.AGGREGATE(15,6,(ROW(Tabelle2[Nutzung])-1)/(--SEARCH(Berechnung!$C$38,Tabelle2[Nutzung])>0),ROW()-1),1)),\"\")","v":"Käse (H)"}]
["Kaufhaus",2,{"$f":"IFERROR(IF(OR(EXACT(Berechnung!$C$38,Tabelle2[Nutzung])),Tabelle2[[#This Row],[Nutzung]],INDEX(Tabelle2[Nutzung],_xlfn.AGGREGATE(15,6,(ROW(Tabelle2[Nutzung])-1)/(--SEARCH(Berechnung!$C$38,Tabelle2[Nutzung])>0),ROW()-1),1)),\"\")","v":"Kaufhaus"}]
["Keramikwaren (H)",1.8,{"$f":"IFERROR(IF(OR(EXACT(Berechnung!$C$38,Tabelle2[Nutzung])),Tabelle2[[#This Row],[Nutzung]],INDEX(Tabelle2[Nutzung],_xlfn.AGGREGATE(15,6,(ROW(Tabelle2[Nutzung])-1)/(--SEARCH(Berechnung!$C$38,Tabelle2[Nutzung])>0),ROW()-1),1)),\"\")","v":"Keramikwaren (H)"}]
["Kerzen (H)",3.6,{"$f":"IFERROR(IF(OR(EXACT(Berechnung!$C$38,Tabelle2[Nutzung])),Tabelle2[[#This Row],[Nutzung]],INDEX(Tabelle2[Nutzung],_xlfn.AGGREGATE(15,6,(ROW(Tabelle2[Nutzung])-1)/(--SEARCH(Berechnung!$C$38,Tabelle2[Nutzung])>0),ROW()-1),1)),\"\")","v":"Kerzen (H)"}]
["Kesselhaus",2.1,{"$f":"IFERROR(IF(OR(EXACT(Berechnung!$C$38,Tabelle2[Nutzung])),Tabelle2[[#This Row],[Nutzung]],INDEX(Tabelle2[Nutzung],_xlfn.AGGREGATE(15,6,(ROW(Tabelle2[Nutzung])-1)/(--SEARCH(Berechnung!$C$38,Tabelle2[Nutzung])>0),ROW()-1),1)),\"\")","v":"Kesselhaus"}]
["Kindergarten",1.6,{"$f":"IFERROR(IF(OR(EXACT(Berechnung!$C$38,Tabelle2[Nutzung])),Tabelle2[[#This Row],[Nutzung]],INDEX(Tabelle2[Nutzung],_xlfn.AGGREGATE(15,6,(ROW(Tabelle2[Nutzung])-1)/(--SEARCH(Berechnung!$C$38,Tabelle2[Nutzung])>0),ROW()-1),1)),\"\")","v":"Kindergarten"}]
["Kinderheim",1.7,{"$f":"IFERROR(IF(OR(EXACT(Berechnung!$C$38,Tabelle2[Nutzung])),Tabelle2[[#This Row],[Nutzung]],INDEX(Tabelle2[Nutzung],_xlfn.AGGREGATE(15,6,(ROW(Tabelle2[Nutzung])-1)/(--SEARCH(Berechnung!$C$38,Tabelle2[Nutzung])>0),ROW()-1),1)),\"\")","v":"Kinderheim"}]
["Kinderwagen (H)",1.8,{"$f":"IFERROR(IF(OR(EXACT(Berechnung!$C$38,Tabelle2[Nutzung])),Tabelle2[[#This Row],[Nutzung]],INDEX(Tabelle2[Nutzung],_xlfn.AGGREGATE(15,6,(ROW(Tabelle2[Nutzung])-1)/(--SEARCH(Berechnung!$C$38,Tabelle2[Nutzung])>0),ROW()-1),1)),\"\")","v":"Kinderwagen (H)"}]
["Kinderwagen, Verkauf",1.8,{"$f":"IFERROR(IF(OR(EXACT(Berechnung!$C$38,Tabelle2[Nutzung])),Tabelle2[[#This Row],[Nutzung]],INDEX(Tabelle2[Nutzung],_xlfn.AGGREGATE(15,6,(ROW(Tabelle2[Nutzung])-1)/(--SEARCH(Berechnung!$C$38,Tabelle2[Nutzung])>0),ROW()-1),1)),\"\")","v":"Kinderwagen, Verkauf"}]
["Kino",1.8,{"$f":"IFERROR(IF(OR(EXACT(Berechnung!$C$38,Tabelle2[Nutzung])),Tabelle2[[#This Row],[Nutzung]],INDEX(Tabelle2[Nutzung],_xlfn.AGGREGATE(15,6,(ROW(Tabelle2[Nutzung])-1)/(--SEARCH(Berechnung!$C$38,Tabelle2[Nutzung])>0),ROW()-1),1)),\"\")","v":"Kino"}]
["Kirche",1.8,{"$f":"IFERROR(IF(OR(EXACT(Berechnung!$C$38,Tabelle2[Nutzung])),Tabelle2[[#This Row],[Nutzung]],INDEX(Tabelle2[Nutzung],_xlfn.AGGREGATE(15,6,(ROW(Tabelle2[Nutzung])-1)/(--SEARCH(Berechnung!$C$38,Tabelle2[Nutzung])>0),ROW()-1),1)),\"\")","v":"Kirche"}]
["Kisten, hölzerne (H)",1.6,{"$f":"IFERROR(IF(OR(EXACT(Berechnung!$C$38,Tabelle2[Nutzung])),Tabelle2[[#This Row],[Nutzung]],INDEX(Tabelle2[Nutzung],_xlfn.AGGREGATE(15,6,(ROW(Tabelle2[Nutzung])-1)/(--SEARCH(Berechnung!$C$38,Tabelle2[Nutzung])>0),ROW()-1),1)),\"\")","v":"Kisten, hölzerne (H)"}]
["Kitte (H)",2.1,{"$f":"IFERROR(IF(OR(EXACT(Berechnung!$C$38,Tabelle2[Nutzung])),Tabelle2[[#This Row],[Nutzung]],INDEX(Tabelle2[Nutzung],_xlfn.AGGREGATE(15,6,(ROW(Tabelle2[Nutzung])-1)/(--SEARCH(Berechnung!$C$38,Tabelle2[Nutzung])>0),ROW()-1),1)),\"\")","v":"Kitte (H)"}]
["Klebstoffe (H)",3.3,{"$f":"IFERROR(IF(OR(EXACT(Berechnung!$C$38,Tabelle2[Nutzung])),Tabelle2[[#This Row],[Nutzung]],INDEX(Tabelle2[Nutzung],_xlfn.AGGREGATE(15,6,(ROW(Tabelle2[Nutzung])-1)/(--SEARCH(Berechnung!$C$38,Tabelle2[Nutzung])>0),ROW()-1),1)),\"\")","v":"Klebstoffe (H)"}]
["Klischees (H)",2.4,{"$f":"IFERROR(IF(OR(EXACT(Berechnung!$C$38,Tabelle2[Nutzung])),Tabelle2[[#This Row],[Nutzung]],INDEX(Tabelle2[Nutzung],_xlfn.AGGREGATE(15,6,(ROW(Tabelle2[Nutzung])-1)/(--SEARCH(Berechnung!$C$38,Tabelle2[Nutzung])>0),ROW()-1),1)),\"\")","v":"Klischees (H)"}]
["Kondensmilch (H)",1.6,{"$f":"IFERROR(IF(OR(EXACT(Berechnung!$C$38,Tabelle2[Nutzung])),Tabelle2[[#This Row],[Nutzung]],INDEX(Tabelle2[Nutzung],_xlfn.AGGREGATE(15,6,(ROW(Tabelle2[Nutzung])-1)/(--SEARCH(Berechnung!$C$38,Tabelle2[Nutzung])>0),ROW()-1),1)),\"\")","v":"Kondensmilch (H)"}]
["Konditoreiwaren(H)",2,{"$f":"IFERROR(IF(OR(EXACT(Berechnung!$C$38,Tabelle2[Nutzung])),Tabelle2[[#This Row],[Nutzung]],INDEX(Tabelle2[Nutzung],_xlfn.AGGREGATE(15,6,(ROW(Tabelle2[Nutzung])-1)/(--SEARCH(Berechnung!$C$38,Tabelle2[Nutzung])>0),ROW()-1),1)),\"\")","v":"Konditoreiwaren(H)"}]
["Konserven (H)",1.5,{"$f":"IFERROR(IF(OR(EXACT(Berechnung!$C$38,Tabelle2[Nutzung])),Tabelle2[[#This Row],[Nutzung]],INDEX(Tabelle2[Nutzung],_xlfn.AGGREGATE(15,6,(ROW(Tabelle2[Nutzung])-1)/(--SEARCH(Berechnung!$C$38,Tabelle2[Nutzung])>0),ROW()-1),1)),\"\")","v":"Konserven (H)"}]
["Korbwaren (Durchschnitt) (H)",2,{"$f":"IFERROR(IF(OR(EXACT(Berechnung!$C$38,Tabelle2[Nutzung])),Tabelle2[[#This Row],[Nutzung]],INDEX(Tabelle2[Nutzung],_xlfn.AGGREGATE(15,6,(ROW(Tabelle2[Nutzung])-1)/(--SEARCH(Berechnung!$C$38,Tabelle2[Nutzung])>0),ROW()-1),1)),\"\")","v":"Korbwaren (Durchschnitt) (H)"}]
["Korkstein (H)",1.8,{"$f":"IFERROR(IF(OR(EXACT(Berechnung!$C$38,Tabelle2[Nutzung])),Tabelle2[[#This Row],[Nutzung]],INDEX(Tabelle2[Nutzung],_xlfn.AGGREGATE(15,6,(ROW(Tabelle2[Nutzung])-1)/(--SEARCH(Berechnung!$C$38,Tabelle2[Nutzung])>0),ROW()-1),1)),\"\")","v":"Korkstein (H)"}]
["Korkwaren (H)",1.7,{"$f":"IFERROR(IF(OR(EXACT(Berechnung!$C$38,Tabelle2[Nutzung])),Tabelle2[[#This Row],[Nutzung]],INDEX(Tabelle2[Nutzung],_xlfn.AGGREGATE(15,6,(ROW(Tabelle2[Nutzung])-1)/(--SEARCH(Berechnung!$C$38,Tabelle2[Nutzung])>0),ROW()-1),1)),\"\")","v":"Korkwaren (H)"}]
["Kosmetika (H)",3.8,{"$f":"IFERROR(IF(OR(EXACT(Berechnung!$C$38,Tabelle2[Nutzung])),Tabelle2[[#This Row],[Nutzung]],INDEX(Tabelle2[Nutzung],_xlfn.AGGREGATE(15,6,(ROW(Tabelle2[Nutzung])-1)/(--SEARCH(Berechnung!$C$38,Tabelle2[Nutzung])>0),ROW()-1),1)),\"\")","v":"Kosmetika (H)"}]
["Krankenhaus",2.2000000000000002,{"$f":"IFERROR(IF(OR(EXACT(Berechnung!$C$38,Tabelle2[Nutzung])),Tabelle2[[#This Row],[Nutzung]],INDEX(Tabelle2[Nutzung],_xlfn.AGGREGATE(15,6,(ROW(Tabelle2[Nutzung])-1)/(--SEARCH(Berechnung!$C$38,Tabelle2[Nutzung])>0),ROW()-1),1)),\"\")","v":"Krankenhaus"}]
["Kugellager (H)",1,{"$f":"IFERROR(IF(OR(EXACT(Berechnung!$C$38,Tabelle2[Nutzung])),Tabelle2[[#This Row],[Nutzung]],INDEX(Tabelle2[Nutzung],_xlfn.AGGREGATE(15,6,(ROW(Tabelle2[Nutzung])-1)/(--SEARCH(Berechnung!$C$38,Tabelle2[Nutzung])>0),ROW()-1),1)),\"\")","v":"Kugellager (H)"}]
["Kühlhaus",2.7,{"$f":"IFERROR(IF(OR(EXACT(Berechnung!$C$38,Tabelle2[Nutzung])),Tabelle2[[#This Row],[Nutzung]],INDEX(Tabelle2[Nutzung],_xlfn.AGGREGATE(15,6,(ROW(Tabelle2[Nutzung])-1)/(--SEARCH(Berechnung!$C$38,Tabelle2[Nutzung])>0),ROW()-1),1)),\"\")","v":"Kühlhaus"}]
["Kühlschränke (H)",2,{"$f":"IFERROR(IF(OR(EXACT(Berechnung!$C$38,Tabelle2[Nutzung])),Tabelle2[[#This Row],[Nutzung]],INDEX(Tabelle2[Nutzung],_xlfn.AGGREGATE(15,6,(ROW(Tabelle2[Nutzung])-1)/(--SEARCH(Berechnung!$C$38,Tabelle2[Nutzung])>0),ROW()-1),1)),\"\")","v":"Kühlschränke (H)"}]
["Kunstblumen (H)",2,{"$f":"IFERROR(IF(OR(EXACT(Berechnung!$C$38,Tabelle2[Nutzung])),Tabelle2[[#This Row],[Nutzung]],INDEX(Tabelle2[Nutzung],_xlfn.AGGREGATE(15,6,(ROW(Tabelle2[Nutzung])-1)/(--SEARCH(Berechnung!$C$38,Tabelle2[Nutzung])>0),ROW()-1),1)),\"\")","v":"Kunstblumen (H)"}]
["Kunstdünger (H)",2.9,{"$f":"IFERROR(IF(OR(EXACT(Berechnung!$C$38,Tabelle2[Nutzung])),Tabelle2[[#This Row],[Nutzung]],INDEX(Tabelle2[Nutzung],_xlfn.AGGREGATE(15,6,(ROW(Tabelle2[Nutzung])-1)/(--SEARCH(Berechnung!$C$38,Tabelle2[Nutzung])>0),ROW()-1),1)),\"\")","v":"Kunstdünger (H)"}]
["Kunstharze (H)",2.2000000000000002,{"$f":"IFERROR(IF(OR(EXACT(Berechnung!$C$38,Tabelle2[Nutzung])),Tabelle2[[#This Row],[Nutzung]],INDEX(Tabelle2[Nutzung],_xlfn.AGGREGATE(15,6,(ROW(Tabelle2[Nutzung])-1)/(--SEARCH(Berechnung!$C$38,Tabelle2[Nutzung])>0),ROW()-1),1)),\"\")","v":"Kunstharze (H)"}]
["Kunstharzplatten (H)",2.5,{"$f":"IFERROR(IF(OR(EXACT(Berechnung!$C$38,Tabelle2[Nutzung])),Tabelle2[[#This Row],[Nutzung]],INDEX(Tabelle2[Nutzung],_xlfn.AGGREGATE(15,6,(ROW(Tabelle2[Nutzung])-1)/(--SEARCH(Berechnung!$C$38,Tabelle2[Nutzung])>0),ROW()-1),1)),\"\")","v":"Kunstharzplatten (H)"}]
["Kunstleder (H)",2.4,{"$f":"IFERROR(IF(OR(EXACT(Berechnung!$C$38,Tabelle2[Nutzung])),Tabelle2[[#This Row],[Nutzung]],INDEX(Tabelle2[Nutzung],_xlfn.AGGREGATE(15,6,(ROW(Tabelle2[Nutzung])-1)/(--SEARCH(Berechnung!$C$38,Tabelle2[Nutzung])>0),ROW()-1),1)),\"\")","v":"Kunstleder (H)"}]
["Kunstlederwaren (H)",1.9,{"$f":"IFERROR(IF(OR(EXACT(Berechnung!$C$38,Tabelle2[Nutzung])),Tabelle2[[#This Row],[Nutzung]],INDEX(Tabelle2[Nutzung],_xlfn.AGGREGATE(15,6,(ROW(Tabelle2[Nutzung])-1)/(--SEARCH(Berechnung!$C$38,Tabelle2[Nutzung])>0),ROW()-1),1)),\"\")","v":"Kunstlederwaren (H)"}]
["Kunststoffe (H)",2.1,{"$f":"IFERROR(IF(OR(EXACT(Berechnung!$C$38,Tabelle2[Nutzung])),Tabelle2[[#This Row],[Nutzung]],INDEX(Tabelle2[Nutzung],_xlfn.AGGREGATE(15,6,(ROW(Tabelle2[Nutzung])-1)/(--SEARCH(Berechnung!$C$38,Tabelle2[Nutzung])>0),ROW()-1),1)),\"\")","v":"Kunststoffe (H)"}]
["Kunststoffwaren (H)",2,{"$f":"IFERROR(IF(OR(EXACT(Berechnung!$C$38,Tabelle2[Nutzung])),Tabelle2[[#This Row],[Nutzung]],INDEX(Tabelle2[Nutzung],_xlfn.AGGREGATE(15,6,(ROW(Tabelle2[Nutzung])-1)/(--SEARCH(Berechnung!$C$38,Tabelle2[Nutzung])>0),ROW()-1),1)),\"\")","v":"Kunststoffwaren (H)"}]
["Kunststoffwaren, Auslieferung",2,{"$f":"IFERROR(IF(OR(EXACT(Berechnung!$C$38,Tabelle2[Nutzung])),Tabelle2[[#This Row],[Nutzung]],INDEX(Tabelle2[Nutzung],_xlfn.AGGREGATE(15,6,(ROW(Tabelle2[Nutzung])-1)/(--SEARCH(Berechnung!$C$38,Tabelle2[Nutzung])>0),ROW()-1),1)),\"\")","v":"Kunststoffwaren, Auslieferung"}]
["Kunststoffwaren, Schweißerei",2.6,{"$f":"IFERROR(IF(OR(EXACT(Berechnung!$C$38,Tabelle2[Nutzung])),Tabelle2[[#This Row],[Nutzung]],INDEX(Tabelle2[Nutzung],_xlfn.AGGREGATE(15,6,(ROW(Tabelle2[Nutzung])-1)/(--SEARCH(Berechnung!$C$38,Tabelle2[Nutzung])>0),ROW()-1),1)),\"\")","v":"Kunststoffwaren, Schweißerei"}]
["Kunststoffwaren, Spritzgießerei",1.9,{"$f":"IFERROR(IF(OR(EXACT(Berechnung!$C$38,Tabelle2[Nutzung])),Tabelle2[[#This Row],[Nutzung]],INDEX(Tabelle2[Nutzung],_xlfn.AGGREGATE(15,6,(ROW(Tabelle2[Nutzung])-1)/(--SEARCH(Berechnung!$C$38,Tabelle2[Nutzung])>0),ROW()-1),1)),\"\")","v":"Kunststoffwaren, Spritzgießerei"}]
["Kunststoffwaren, Stanzerei",2,{"$f":"IFERROR(IF(OR(EXACT(Berechnung!$C$38,Tabelle2[Nutzung])),Tabelle2[[#This Row],[Nutzung]],INDEX(Tabelle2[Nutzung],_xlfn.AGGREGATE(15,6,(ROW(Tabelle2[Nutzung])-1)/(--SEARCH(Berechnung!$C$38,Tabelle2[Nutzung])>0),ROW()-1),1)),\"\")","v":"Kunststoffwaren, Stanzerei"}]
["Kürschnereiprodukte (H)",2,{"$f":"IFERROR(IF(OR(EXACT(Berechnung!$C$38,Tabelle2[Nutzung])),Tabelle2[[#This Row],[Nutzung]],INDEX(Tabelle2[Nutzung],_xlfn.AGGREGATE(15,6,(ROW(Tabelle2[Nutzung])-1)/(--SEARCH(Berechnung!$C$38,Tabelle2[Nutzung])>0),ROW()-1),1)),\"\")","v":"Kürschnereiprodukte (H)"}]
["Kurzwaren, Verkauf",1.7,{"$f":"IFERROR(IF(OR(EXACT(Berechnung!$C$38,Tabelle2[Nutzung])),Tabelle2[[#This Row],[Nutzung]],INDEX(Tabelle2[Nutzung],_xlfn.AGGREGATE(15,6,(ROW(Tabelle2[Nutzung])-1)/(--SEARCH(Berechnung!$C$38,Tabelle2[Nutzung])>0),ROW()-1),1)),\"\")","v":"Kurzwaren, Verkauf"}]
["Labor",2.4,{"$f":"IFERROR(IF(OR(EXACT(Berechnung!$C$38,Tabelle2[Nutzung])),Tabelle2[[#This Row],[Nutzung]],INDEX(Tabelle2[Nutzung],_xlfn.AGGREGATE(15,6,(ROW(Tabelle2[Nutzung])-1)/(--SEARCH(Berechnung!$C$38,Tabelle2[Nutzung])>0),ROW()-1),1)),\"\")","v":"Labor"}]
["Labor, chemisches",2.7,{"$f":"IFERROR(IF(OR(EXACT(Berechnung!$C$38,Tabelle2[Nutzung])),Tabelle2[[#This Row],[Nutzung]],INDEX(Tabelle2[Nutzung],_xlfn.AGGREGATE(15,6,(ROW(Tabelle2[Nutzung])-1)/(--SEARCH(Berechnung!$C$38,Tabelle2[Nutzung])>0),ROW()-1),1)),\"\")","v":"Labor, chemisches"}]
["Lacke (H)",3.8,{"$f":"IFERROR(IF(OR(EXACT(Berechnung!$C$38,Tabelle2[Nutzung])),Tabelle2[[#This Row],[Nutzung]],INDEX(Tabelle2[Nutzung],_xlfn.AGGREGATE(15,6,(ROW(Tabelle2[Nutzung])-1)/(--SEARCH(Berechnung!$C$38,Tabelle2[Nutzung])>0),ROW()-1),1)),\"\")","v":"Lacke (H)"}]
["Lacke, Auslieferung",2.6,{"$f":"IFERROR(IF(OR(EXACT(Berechnung!$C$38,Tabelle2[Nutzung])),Tabelle2[[#This Row],[Nutzung]],INDEX(Tabelle2[Nutzung],_xlfn.AGGREGATE(15,6,(ROW(Tabelle2[Nutzung])-1)/(--SEARCH(Berechnung!$C$38,Tabelle2[Nutzung])>0),ROW()-1),1)),\"\")","v":"Lacke, Auslieferung"}]
["Lackiererei, Möbel",2.5,{"$f":"IFERROR(IF(OR(EXACT(Berechnung!$C$38,Tabelle2[Nutzung])),Tabelle2[[#This Row],[Nutzung]],INDEX(Tabelle2[Nutzung],_xlfn.AGGREGATE(15,6,(ROW(Tabelle2[Nutzung])-1)/(--SEARCH(Berechnung!$C$38,Tabelle2[Nutzung])>0),ROW()-1),1)),\"\")","v":"Lackiererei, Möbel"}]
["Lackiererei, Papier",2.1,{"$f":"IFERROR(IF(OR(EXACT(Berechnung!$C$38,Tabelle2[Nutzung])),Tabelle2[[#This Row],[Nutzung]],INDEX(Tabelle2[Nutzung],_xlfn.AGGREGATE(15,6,(ROW(Tabelle2[Nutzung])-1)/(--SEARCH(Berechnung!$C$38,Tabelle2[Nutzung])>0),ROW()-1),1)),\"\")","v":"Lackiererei, Papier"}]
["Landwirtschaftlicher Betrieb / Halle",1.7,{"$f":"IFERROR(IF(OR(EXACT(Berechnung!$C$38,Tabelle2[Nutzung])),Tabelle2[[#This Row],[Nutzung]],INDEX(Tabelle2[Nutzung],_xlfn.AGGREGATE(15,6,(ROW(Tabelle2[Nutzung])-1)/(--SEARCH(Berechnung!$C$38,Tabelle2[Nutzung])>0),ROW()-1),1)),\"\")","v":"Landwirtschaftlicher Betrieb / Halle"}]
["Lebensmittel (H)",1.3,{"$f":"IFERROR(IF(OR(EXACT(Berechnung!$C$38,Tabelle2[Nutzung])),Tabelle2[[#This Row],[Nutzung]],INDEX(Tabelle2[Nutzung],_xlfn.AGGREGATE(15,6,(ROW(Tabelle2[Nutzung])-1)/(--SEARCH(Berechnung!$C$38,Tabelle2[Nutzung])>0),ROW()-1),1)),\"\")","v":"Lebensmittel (H)"}]
["Lebensmittel, Auslieferung",1.4,{"$f":"IFERROR(IF(OR(EXACT(Berechnung!$C$38,Tabelle2[Nutzung])),Tabelle2[[#This Row],[Nutzung]],INDEX(Tabelle2[Nutzung],_xlfn.AGGREGATE(15,6,(ROW(Tabelle2[Nutzung])-1)/(--SEARCH(Berechnung!$C$38,Tabelle2[Nutzung])>0),ROW()-1),1)),\"\")","v":"Lebensmittel, Auslieferung"}]
["Lebensmittel, Rösterei (H)",1.6,{"$f":"IFERROR(IF(OR(EXACT(Berechnung!$C$38,Tabelle2[Nutzung])),Tabelle2[[#This Row],[Nutzung]],INDEX(Tabelle2[Nutzung],_xlfn.AGGREGATE(15,6,(ROW(Tabelle2[Nutzung])-1)/(--SEARCH(Berechnung!$C$38,Tabelle2[Nutzung])>0),ROW()-1),1)),\"\")","v":"Lebensmittel, Rösterei (H)"}]
["Lederwaren (H)",1.7,{"$f":"IFERROR(IF(OR(EXACT(Berechnung!$C$38,Tabelle2[Nutzung])),Tabelle2[[#This Row],[Nutzung]],INDEX(Tabelle2[Nutzung],_xlfn.AGGREGATE(15,6,(ROW(Tabelle2[Nutzung])-1)/(--SEARCH(Berechnung!$C$38,Tabelle2[Nutzung])>0),ROW()-1),1)),\"\")","v":"Lederwaren (H)"}]
["Lederwaren, Verkauf",1.4,{"$f":"IFERROR(IF(OR(EXACT(Berechnung!$C$38,Tabelle2[Nutzung])),Tabelle2[[#This Row],[Nutzung]],INDEX(Tabelle2[Nutzung],_xlfn.AGGREGATE(15,6,(ROW(Tabelle2[Nutzung])-1)/(--SEARCH(Berechnung!$C$38,Tabelle2[Nutzung])>0),ROW()-1),1)),\"\")","v":"Lederwaren, Verkauf"}]
["Lederwaren, Zuschneiderei",1.9,{"$f":"IFERROR(IF(OR(EXACT(Berechnung!$C$38,Tabelle2[Nutzung])),Tabelle2[[#This Row],[Nutzung]],INDEX(Tabelle2[Nutzung],_xlfn.AGGREGATE(15,6,(ROW(Tabelle2[Nutzung])-1)/(--SEARCH(Berechnung!$C$38,Tabelle2[Nutzung])>0),ROW()-1),1)),\"\")","v":"Lederwaren, Zuschneiderei"}]
["Leim (H)",2.2999999999999998,{"$f":"IFERROR(IF(OR(EXACT(Berechnung!$C$38,Tabelle2[Nutzung])),Tabelle2[[#This Row],[Nutzung]],INDEX(Tabelle2[Nutzung],_xlfn.AGGREGATE(15,6,(ROW(Tabelle2[Nutzung])-1)/(--SEARCH(Berechnung!$C$38,Tabelle2[Nutzung])>0),ROW()-1),1)),\"\")","v":"Leim (H)"}]
["Leuchtstoffröhren (H)",2.5,{"$f":"IFERROR(IF(OR(EXACT(Berechnung!$C$38,Tabelle2[Nutzung])),Tabelle2[[#This Row],[Nutzung]],INDEX(Tabelle2[Nutzung],_xlfn.AGGREGATE(15,6,(ROW(Tabelle2[Nutzung])-1)/(--SEARCH(Berechnung!$C$38,Tabelle2[Nutzung])>0),ROW()-1),1)),\"\")","v":"Leuchtstoffröhren (H)"}]
["Lichtpauseanstalt",1.3,{"$f":"IFERROR(IF(OR(EXACT(Berechnung!$C$38,Tabelle2[Nutzung])),Tabelle2[[#This Row],[Nutzung]],INDEX(Tabelle2[Nutzung],_xlfn.AGGREGATE(15,6,(ROW(Tabelle2[Nutzung])-1)/(--SEARCH(Berechnung!$C$38,Tabelle2[Nutzung])>0),ROW()-1),1)),\"\")","v":"Lichtpauseanstalt"}]
["Liköre (H)",4.2,{"$f":"IFERROR(IF(OR(EXACT(Berechnung!$C$38,Tabelle2[Nutzung])),Tabelle2[[#This Row],[Nutzung]],INDEX(Tabelle2[Nutzung],_xlfn.AGGREGATE(15,6,(ROW(Tabelle2[Nutzung])-1)/(--SEARCH(Berechnung!$C$38,Tabelle2[Nutzung])>0),ROW()-1),1)),\"\")","v":"Liköre (H)"}]
["Linoleum (H)",2.6,{"$f":"IFERROR(IF(OR(EXACT(Berechnung!$C$38,Tabelle2[Nutzung])),Tabelle2[[#This Row],[Nutzung]],INDEX(Tabelle2[Nutzung],_xlfn.AGGREGATE(15,6,(ROW(Tabelle2[Nutzung])-1)/(--SEARCH(Berechnung!$C$38,Tabelle2[Nutzung])>0),ROW()-1),1)),\"\")","v":"Linoleum (H)"}]
["M. waren: Vergolderei",0.7,{"$f":"IFERROR(IF(OR(EXACT(Berechnung!$C$38,Tabelle2[Nutzung])),Tabelle2[[#This Row],[Nutzung]],INDEX(Tabelle2[Nutzung],_xlfn.AGGREGATE(15,6,(ROW(Tabelle2[Nutzung])-1)/(--SEARCH(Berechnung!$C$38,Tabelle2[Nutzung])>0),ROW()-1),1)),\"\")","v":"M. waren: Vergolderei"}]
["M. waren: Gießerei",1,{"$f":"IFERROR(IF(OR(EXACT(Berechnung!$C$38,Tabelle2[Nutzung])),Tabelle2[[#This Row],[Nutzung]],INDEX(Tabelle2[Nutzung],_xlfn.AGGREGATE(15,6,(ROW(Tabelle2[Nutzung])-1)/(--SEARCH(Berechnung!$C$38,Tabelle2[Nutzung])>0),ROW()-1),1)),\"\")","v":"M. waren: Gießerei"}]
["M.Waren: Ätzerei, Dreherei, Fräserei",1,{"$f":"IFERROR(IF(OR(EXACT(Berechnung!$C$38,Tabelle2[Nutzung])),Tabelle2[[#This Row],[Nutzung]],INDEX(Tabelle2[Nutzung],_xlfn.AGGREGATE(15,6,(ROW(Tabelle2[Nutzung])-1)/(--SEARCH(Berechnung!$C$38,Tabelle2[Nutzung])>0),ROW()-1),1)),\"\")","v":"M.Waren: Ätzerei, Dreherei, Fräserei"}]
["M.Waren: Galvanisiererei",1,{"$f":"IFERROR(IF(OR(EXACT(Berechnung!$C$38,Tabelle2[Nutzung])),Tabelle2[[#This Row],[Nutzung]],INDEX(Tabelle2[Nutzung],_xlfn.AGGREGATE(15,6,(ROW(Tabelle2[Nutzung])-1)/(--SEARCH(Berechnung!$C$38,Tabelle2[Nutzung])>0),ROW()-1),1)),\"\")","v":"M.Waren: Galvanisiererei"}]
["M.Waren: Härterei",2.7,{"$f":"IFERROR(IF(OR(EXACT(Berechnung!$C$38,Tabelle2[Nutzung])),Tabelle2[[#This Row],[Nutzung]],INDEX(Tabelle2[Nutzung],_xlfn.AGGREGATE(15,6,(ROW(Tabelle2[Nutzung])-1)/(--SEARCH(Berechnung!$C$38,Tabelle2[Nutzung])>0),ROW()-1),1)),\"\")","v":"M.Waren: Härterei"}]
["M.Waren: Löterei",1,{"$f":"IFERROR(IF(OR(EXACT(Berechnung!$C$38,Tabelle2[Nutzung])),Tabelle2[[#This Row],[Nutzung]],INDEX(Tabelle2[Nutzung],_xlfn.AGGREGATE(15,6,(ROW(Tabelle2[Nutzung])-1)/(--SEARCH(Berechnung!$C$38,Tabelle2[Nutzung])>0),ROW()-1),1)),\"\")","v":"M.Waren: Löterei"}]
["M.Waren: Schleiferei",1,{"$f":"IFERROR(IF(OR(EXACT(Berechnung!$C$38,Tabelle2[Nutzung])),Tabelle2[[#This Row],[Nutzung]],INDEX(Tabelle2[Nutzung],_xlfn.AGGREGATE(15,6,(ROW(Tabelle2[Nutzung])-1)/(--SEARCH(Berechnung!$C$38,Tabelle2[Nutzung])>0),ROW()-1),1)),\"\")","v":"M.Waren: Schleiferei"}]
["M.Waren: Schlosserei",1.2,{"$f":"IFERROR(IF(OR(EXACT(Berechnung!$C$38,Tabelle2[Nutzung])),Tabelle2[[#This Row],[Nutzung]],INDEX(Tabelle2[Nutzung],_xlfn.AGGREGATE(15,6,(ROW(Tabelle2[Nutzung])-1)/(--SEARCH(Berechnung!$C$38,Tabelle2[Nutzung])>0),ROW()-1),1)),\"\")","v":"M.Waren: Schlosserei"}]
["M.Waren: Schmiede, Schweißerei, Spenglerei, Spritzguß",1,{"$f":"IFERROR(IF(OR(EXACT(Berechnung!$C$38,Tabelle2[Nutzung])),Tabelle2[[#This Row],[Nutzung]],INDEX(Tabelle2[Nutzung],_xlfn.AGGREGATE(15,6,(ROW(Tabelle2[Nutzung])-1)/(--SEARCH(Berechnung!$C$38,Tabelle2[Nutzung])>0),ROW()-1),1)),\"\")","v":"M.Waren: Schmiede, Schweißerei, Spenglerei, Spritzguß"}]
["M.Waren: Spritzlakkiererei",3.6,{"$f":"IFERROR(IF(OR(EXACT(Berechnung!$C$38,Tabelle2[Nutzung])),Tabelle2[[#This Row],[Nutzung]],INDEX(Tabelle2[Nutzung],_xlfn.AGGREGATE(15,6,(ROW(Tabelle2[Nutzung])-1)/(--SEARCH(Berechnung!$C$38,Tabelle2[Nutzung])>0),ROW()-1),1)),\"\")","v":"M.Waren: Spritzlakkiererei"}]
["M.Waren: Stanzerei",0.6,{"$f":"IFERROR(IF(OR(EXACT(Berechnung!$C$38,Tabelle2[Nutzung])),Tabelle2[[#This Row],[Nutzung]],INDEX(Tabelle2[Nutzung],_xlfn.AGGREGATE(15,6,(ROW(Tabelle2[Nutzung])-1)/(--SEARCH(Berechnung!$C$38,Tabelle2[Nutzung])>0),ROW()-1),1)),\"\")","v":"M.Waren: Stanzerei"}]
["M.Waren: Verkauf",1.4,{"$f":"IFERROR(IF(OR(EXACT(Berechnung!$C$38,Tabelle2[Nutzung])),Tabelle2[[#This Row],[Nutzung]],INDEX(Tabelle2[Nutzung],_xlfn.AGGREGATE(15,6,(ROW(Tabelle2[Nutzung])-1)/(--SEARCH(Berechnung!$C$38,Tabelle2[Nutzung])>0),ROW()-1),1)),\"\")","v":"M.Waren: Verkauf"}]
["Maler-Werkstätte",2.7,{"$f":"IFERROR(IF(OR(EXACT(Berechnung!$C$38,Tabelle2[Nutzung])),Tabelle2[[#This Row],[Nutzung]],INDEX(Tabelle2[Nutzung],_xlfn.AGGREGATE(15,6,(ROW(Tabelle2[Nutzung])-1)/(--SEARCH(Berechnung!$C$38,Tabelle2[Nutzung])>0),ROW()-1),1)),\"\")","v":"Maler-Werkstätte"}]
["Marmelade (H)",1.8,{"$f":"IFERROR(IF(OR(EXACT(Berechnung!$C$38,Tabelle2[Nutzung])),Tabelle2[[#This Row],[Nutzung]],INDEX(Tabelle2[Nutzung],_xlfn.AGGREGATE(15,6,(ROW(Tabelle2[Nutzung])-1)/(--SEARCH(Berechnung!$C$38,Tabelle2[Nutzung])>0),ROW()-1),1)),\"\")","v":"Marmelade (H)"}]
["Maschinen (H)",1,{"$f":"IFERROR(IF(OR(EXACT(Berechnung!$C$38,Tabelle2[Nutzung])),Tabelle2[[#This Row],[Nutzung]],INDEX(Tabelle2[Nutzung],_xlfn.AGGREGATE(15,6,(ROW(Tabelle2[Nutzung])-1)/(--SEARCH(Berechnung!$C$38,Tabelle2[Nutzung])>0),ROW()-1),1)),\"\")","v":"Maschinen (H)"}]
["Matratzen (nicht Schäumst,) (H)",1.8,{"$f":"IFERROR(IF(OR(EXACT(Berechnung!$C$38,Tabelle2[Nutzung])),Tabelle2[[#This Row],[Nutzung]],INDEX(Tabelle2[Nutzung],_xlfn.AGGREGATE(15,6,(ROW(Tabelle2[Nutzung])-1)/(--SEARCH(Berechnung!$C$38,Tabelle2[Nutzung])>0),ROW()-1),1)),\"\")","v":"Matratzen (nicht Schäumst,) (H)"}]
["Mehl (H)",1.9,{"$f":"IFERROR(IF(OR(EXACT(Berechnung!$C$38,Tabelle2[Nutzung])),Tabelle2[[#This Row],[Nutzung]],INDEX(Tabelle2[Nutzung],_xlfn.AGGREGATE(15,6,(ROW(Tabelle2[Nutzung])-1)/(--SEARCH(Berechnung!$C$38,Tabelle2[Nutzung])>0),ROW()-1),1)),\"\")","v":"Mehl (H)"}]
["Metallwaren (H)",1,{"$f":"IFERROR(IF(OR(EXACT(Berechnung!$C$38,Tabelle2[Nutzung])),Tabelle2[[#This Row],[Nutzung]],INDEX(Tabelle2[Nutzung],_xlfn.AGGREGATE(15,6,(ROW(Tabelle2[Nutzung])-1)/(--SEARCH(Berechnung!$C$38,Tabelle2[Nutzung])>0),ROW()-1),1)),\"\")","v":"Metallwaren (H)"}]
["Milchpulver (H)",1.9,{"$f":"IFERROR(IF(OR(EXACT(Berechnung!$C$38,Tabelle2[Nutzung])),Tabelle2[[#This Row],[Nutzung]],INDEX(Tabelle2[Nutzung],_xlfn.AGGREGATE(15,6,(ROW(Tabelle2[Nutzung])-1)/(--SEARCH(Berechnung!$C$38,Tabelle2[Nutzung])>0),ROW()-1),1)),\"\")","v":"Milchpulver (H)"}]
["Mobilheime",1.6,{"$f":"IFERROR(IF(OR(EXACT(Berechnung!$C$38,Tabelle2[Nutzung])),Tabelle2[[#This Row],[Nutzung]],INDEX(Tabelle2[Nutzung],_xlfn.AGGREGATE(15,6,(ROW(Tabelle2[Nutzung])-1)/(--SEARCH(Berechnung!$C$38,Tabelle2[Nutzung])>0),ROW()-1),1)),\"\")","v":"Mobilheime"}]
["Möbel, Holz (H)",1.6,{"$f":"IFERROR(IF(OR(EXACT(Berechnung!$C$38,Tabelle2[Nutzung])),Tabelle2[[#This Row],[Nutzung]],INDEX(Tabelle2[Nutzung],_xlfn.AGGREGATE(15,6,(ROW(Tabelle2[Nutzung])-1)/(--SEARCH(Berechnung!$C$38,Tabelle2[Nutzung])>0),ROW()-1),1)),\"\")","v":"Möbel, Holz (H)"}]
["Möbel, Holz-; Lackiererei",2.5,{"$f":"IFERROR(IF(OR(EXACT(Berechnung!$C$38,Tabelle2[Nutzung])),Tabelle2[[#This Row],[Nutzung]],INDEX(Tabelle2[Nutzung],_xlfn.AGGREGATE(15,6,(ROW(Tabelle2[Nutzung])-1)/(--SEARCH(Berechnung!$C$38,Tabelle2[Nutzung])>0),ROW()-1),1)),\"\")","v":"Möbel, Holz-; Lackiererei"}]
["Möbel, Stahl (H)",1.3,{"$f":"IFERROR(IF(OR(EXACT(Berechnung!$C$38,Tabelle2[Nutzung])),Tabelle2[[#This Row],[Nutzung]],INDEX(Tabelle2[Nutzung],_xlfn.AGGREGATE(15,6,(ROW(Tabelle2[Nutzung])-1)/(--SEARCH(Berechnung!$C$38,Tabelle2[Nutzung])>0),ROW()-1),1)),\"\")","v":"Möbel, Stahl (H)"}]
["Möbel, Verkauf",1.6,{"$f":"IFERROR(IF(OR(EXACT(Berechnung!$C$38,Tabelle2[Nutzung])),Tabelle2[[#This Row],[Nutzung]],INDEX(Tabelle2[Nutzung],_xlfn.AGGREGATE(15,6,(ROW(Tabelle2[Nutzung])-1)/(--SEARCH(Berechnung!$C$38,Tabelle2[Nutzung])>0),ROW()-1),1)),\"\")","v":"Möbel, Verkauf"}]
["Molkereiprodukte (H)",1.8,{"$f":"IFERROR(IF(OR(EXACT(Berechnung!$C$38,Tabelle2[Nutzung])),Tabelle2[[#This Row],[Nutzung]],INDEX(Tabelle2[Nutzung],_xlfn.AGGREGATE(15,6,(ROW(Tabelle2[Nutzung])-1)/(--SEARCH(Berechnung!$C$38,Tabelle2[Nutzung])>0),ROW()-1),1)),\"\")","v":"Molkereiprodukte (H)"}]
["Motorräder (H)",2.2999999999999998,{"$f":"IFERROR(IF(OR(EXACT(Berechnung!$C$38,Tabelle2[Nutzung])),Tabelle2[[#This Row],[Nutzung]],INDEX(Tabelle2[Nutzung],_xlfn.AGGREGATE(15,6,(ROW(Tabelle2[Nutzung])-1)/(--SEARCH(Berechnung!$C$38,Tabelle2[Nutzung])>0),ROW()-1),1)),\"\")","v":"Motorräder (H)"}]
["Mühle",1.8,{"$f":"IFERROR(IF(OR(EXACT(Berechnung!$C$38,Tabelle2[Nutzung])),Tabelle2[[#This Row],[Nutzung]],INDEX(Tabelle2[Nutzung],_xlfn.AGGREGATE(15,6,(ROW(Tabelle2[Nutzung])-1)/(--SEARCH(Berechnung!$C$38,Tabelle2[Nutzung])>0),ROW()-1),1)),\"\")","v":"Mühle"}]
["Müllverbrennungsanlage (Pyrol,)",2.6,{"$f":"IFERROR(IF(OR(EXACT(Berechnung!$C$38,Tabelle2[Nutzung])),Tabelle2[[#This Row],[Nutzung]],INDEX(Tabelle2[Nutzung],_xlfn.AGGREGATE(15,6,(ROW(Tabelle2[Nutzung])-1)/(--SEARCH(Berechnung!$C$38,Tabelle2[Nutzung])>0),ROW()-1),1)),\"\")","v":"Müllverbrennungsanlage (Pyrol,)"}]
["Museum",1.7,{"$f":"IFERROR(IF(OR(EXACT(Berechnung!$C$38,Tabelle2[Nutzung])),Tabelle2[[#This Row],[Nutzung]],INDEX(Tabelle2[Nutzung],_xlfn.AGGREGATE(15,6,(ROW(Tabelle2[Nutzung])-1)/(--SEARCH(Berechnung!$C$38,Tabelle2[Nutzung])>0),ROW()-1),1)),\"\")","v":"Museum"}]
["Musikalien, Verkauf",1.6,{"$f":"IFERROR(IF(OR(EXACT(Berechnung!$C$38,Tabelle2[Nutzung])),Tabelle2[[#This Row],[Nutzung]],INDEX(Tabelle2[Nutzung],_xlfn.AGGREGATE(15,6,(ROW(Tabelle2[Nutzung])-1)/(--SEARCH(Berechnung!$C$38,Tabelle2[Nutzung])>0),ROW()-1),1)),\"\")","v":"Musikalien, Verkauf"}]
["Musikinstrumente (Holz) (H)",2.2999999999999998,{"$f":"IFERROR(IF(OR(EXACT(Berechnung!$C$38,Tabelle2[Nutzung])),Tabelle2[[#This Row],[Nutzung]],INDEX(Tabelle2[Nutzung],_xlfn.AGGREGATE(15,6,(ROW(Tabelle2[Nutzung])-1)/(--SEARCH(Berechnung!$C$38,Tabelle2[Nutzung])>0),ROW()-1),1)),\"\")","v":"Musikinstrumente (Holz) (H)"}]
["Nähmaschinen (H)",2,{"$f":"IFERROR(IF(OR(EXACT(Berechnung!$C$38,Tabelle2[Nutzung])),Tabelle2[[#This Row],[Nutzung]],INDEX(Tabelle2[Nutzung],_xlfn.AGGREGATE(15,6,(ROW(Tabelle2[Nutzung])-1)/(--SEARCH(Berechnung!$C$38,Tabelle2[Nutzung])>0),ROW()-1),1)),\"\")","v":"Nähmaschinen (H)"}]
["Nähmaschinen, Verkauf",2,{"$f":"IFERROR(IF(OR(EXACT(Berechnung!$C$38,Tabelle2[Nutzung])),Tabelle2[[#This Row],[Nutzung]],INDEX(Tabelle2[Nutzung],_xlfn.AGGREGATE(15,6,(ROW(Tabelle2[Nutzung])-1)/(--SEARCH(Berechnung!$C$38,Tabelle2[Nutzung])>0),ROW()-1),1)),\"\")","v":"Nähmaschinen, Verkauf"}]
["Naturharze (H)",2,{"$f":"IFERROR(IF(OR(EXACT(Berechnung!$C$38,Tabelle2[Nutzung])),Tabelle2[[#This Row],[Nutzung]],INDEX(Tabelle2[Nutzung],_xlfn.AGGREGATE(15,6,(ROW(Tabelle2[Nutzung])-1)/(--SEARCH(Berechnung!$C$38,Tabelle2[Nutzung])>0),ROW()-1),1)),\"\")","v":"Naturharze (H)"}]
["Öfen und Herde (H)",0.6,{"$f":"IFERROR(IF(OR(EXACT(Berechnung!$C$38,Tabelle2[Nutzung])),Tabelle2[[#This Row],[Nutzung]],INDEX(Tabelle2[Nutzung],_xlfn.AGGREGATE(15,6,(ROW(Tabelle2[Nutzung])-1)/(--SEARCH(Berechnung!$C$38,Tabelle2[Nutzung])>0),ROW()-1),1)),\"\")","v":"Öfen und Herde (H)"}]
["Optische Geräte (H)",1.8,{"$f":"IFERROR(IF(OR(EXACT(Berechnung!$C$38,Tabelle2[Nutzung])),Tabelle2[[#This Row],[Nutzung]],INDEX(Tabelle2[Nutzung],_xlfn.AGGREGATE(15,6,(ROW(Tabelle2[Nutzung])-1)/(--SEARCH(Berechnung!$C$38,Tabelle2[Nutzung])>0),ROW()-1),1)),\"\")","v":"Optische Geräte (H)"}]
["Packerei, brennb, Waren (allg,)",1.7,{"$f":"IFERROR(IF(OR(EXACT(Berechnung!$C$38,Tabelle2[Nutzung])),Tabelle2[[#This Row],[Nutzung]],INDEX(Tabelle2[Nutzung],_xlfn.AGGREGATE(15,6,(ROW(Tabelle2[Nutzung])-1)/(--SEARCH(Berechnung!$C$38,Tabelle2[Nutzung])>0),ROW()-1),1)),\"\")","v":"Packerei, brennb, Waren (allg,)"}]
["Packerei, nicht- brennb, Waren",1.4,{"$f":"IFERROR(IF(OR(EXACT(Berechnung!$C$38,Tabelle2[Nutzung])),Tabelle2[[#This Row],[Nutzung]],INDEX(Tabelle2[Nutzung],_xlfn.AGGREGATE(15,6,(ROW(Tabelle2[Nutzung])-1)/(--SEARCH(Berechnung!$C$38,Tabelle2[Nutzung])>0),ROW()-1),1)),\"\")","v":"Packerei, nicht- brennb, Waren"}]
["Paletten, hölzerne (H)",1.8,{"$f":"IFERROR(IF(OR(EXACT(Berechnung!$C$38,Tabelle2[Nutzung])),Tabelle2[[#This Row],[Nutzung]],INDEX(Tabelle2[Nutzung],_xlfn.AGGREGATE(15,6,(ROW(Tabelle2[Nutzung])-1)/(--SEARCH(Berechnung!$C$38,Tabelle2[Nutzung])>0),ROW()-1),1)),\"\")","v":"Paletten, hölzerne (H)"}]
["Papier (H)",1.6,{"$f":"IFERROR(IF(OR(EXACT(Berechnung!$C$38,Tabelle2[Nutzung])),Tabelle2[[#This Row],[Nutzung]],INDEX(Tabelle2[Nutzung],_xlfn.AGGREGATE(15,6,(ROW(Tabelle2[Nutzung])-1)/(--SEARCH(Berechnung!$C$38,Tabelle2[Nutzung])>0),ROW()-1),1)),\"\")","v":"Papier (H)"}]
["Papier, Appretierung",1.4,{"$f":"IFERROR(IF(OR(EXACT(Berechnung!$C$38,Tabelle2[Nutzung])),Tabelle2[[#This Row],[Nutzung]],INDEX(Tabelle2[Nutzung],_xlfn.AGGREGATE(15,6,(ROW(Tabelle2[Nutzung])-1)/(--SEARCH(Berechnung!$C$38,Tabelle2[Nutzung])>0),ROW()-1),1)),\"\")","v":"Papier, Appretierung"}]
["Papier, Aufbereitung von Holz- und Zellstoff",1.4,{"$f":"IFERROR(IF(OR(EXACT(Berechnung!$C$38,Tabelle2[Nutzung])),Tabelle2[[#This Row],[Nutzung]],INDEX(Tabelle2[Nutzung],_xlfn.AGGREGATE(15,6,(ROW(Tabelle2[Nutzung])-1)/(--SEARCH(Berechnung!$C$38,Tabelle2[Nutzung])>0),ROW()-1),1)),\"\")","v":"Papier, Aufbereitung von Holz- und Zellstoff"}]
["Papier, Ausrüsterei",1.4,{"$f":"IFERROR(IF(OR(EXACT(Berechnung!$C$38,Tabelle2[Nutzung])),Tabelle2[[#This Row],[Nutzung]],INDEX(Tabelle2[Nutzung],_xlfn.AGGREGATE(15,6,(ROW(Tabelle2[Nutzung])-1)/(--SEARCH(Berechnung!$C$38,Tabelle2[Nutzung])>0),ROW()-1),1)),\"\")","v":"Papier, Ausrüsterei"}]
["Papierwaren (H)",1.3,{"$f":"IFERROR(IF(OR(EXACT(Berechnung!$C$38,Tabelle2[Nutzung])),Tabelle2[[#This Row],[Nutzung]],INDEX(Tabelle2[Nutzung],_xlfn.AGGREGATE(15,6,(ROW(Tabelle2[Nutzung])-1)/(--SEARCH(Berechnung!$C$38,Tabelle2[Nutzung])>0),ROW()-1),1)),\"\")","v":"Papierwaren (H)"}]
["Papierwaren, Verkauf",1.3,{"$f":"IFERROR(IF(OR(EXACT(Berechnung!$C$38,Tabelle2[Nutzung])),Tabelle2[[#This Row],[Nutzung]],INDEX(Tabelle2[Nutzung],_xlfn.AGGREGATE(15,6,(ROW(Tabelle2[Nutzung])-1)/(--SEARCH(Berechnung!$C$38,Tabelle2[Nutzung])>0),ROW()-1),1)),\"\")","v":"Papierwaren, Verkauf"}]
["Pappe (H)",1.6,{"$f":"IFERROR(IF(OR(EXACT(Berechnung!$C$38,Tabelle2[Nutzung])),Tabelle2[[#This Row],[Nutzung]],INDEX(Tabelle2[Nutzung],_xlfn.AGGREGATE(15,6,(ROW(Tabelle2[Nutzung])-1)/(--SEARCH(Berechnung!$C$38,Tabelle2[Nutzung])>0),ROW()-1),1)),\"\")","v":"Pappe (H)"}]
["Parfümeriewaren (H)",3.8,{"$f":"IFERROR(IF(OR(EXACT(Berechnung!$C$38,Tabelle2[Nutzung])),Tabelle2[[#This Row],[Nutzung]],INDEX(Tabelle2[Nutzung],_xlfn.AGGREGATE(15,6,(ROW(Tabelle2[Nutzung])-1)/(--SEARCH(Berechnung!$C$38,Tabelle2[Nutzung])>0),ROW()-1),1)),\"\")","v":"Parfümeriewaren (H)"}]
["Parfümeriewaren, Verkauf",3.2,{"$f":"IFERROR(IF(OR(EXACT(Berechnung!$C$38,Tabelle2[Nutzung])),Tabelle2[[#This Row],[Nutzung]],INDEX(Tabelle2[Nutzung],_xlfn.AGGREGATE(15,6,(ROW(Tabelle2[Nutzung])-1)/(--SEARCH(Berechnung!$C$38,Tabelle2[Nutzung])>0),ROW()-1),1)),\"\")","v":"Parfümeriewaren, Verkauf"}]
["Parketten (H)",2,{"$f":"IFERROR(IF(OR(EXACT(Berechnung!$C$38,Tabelle2[Nutzung])),Tabelle2[[#This Row],[Nutzung]],INDEX(Tabelle2[Nutzung],_xlfn.AGGREGATE(15,6,(ROW(Tabelle2[Nutzung])-1)/(--SEARCH(Berechnung!$C$38,Tabelle2[Nutzung])>0),ROW()-1),1)),\"\")","v":"Parketten (H)"}]
["Pelze, Verkauf",1.9,{"$f":"IFERROR(IF(OR(EXACT(Berechnung!$C$38,Tabelle2[Nutzung])),Tabelle2[[#This Row],[Nutzung]],INDEX(Tabelle2[Nutzung],_xlfn.AGGREGATE(15,6,(ROW(Tabelle2[Nutzung])-1)/(--SEARCH(Berechnung!$C$38,Tabelle2[Nutzung])>0),ROW()-1),1)),\"\")","v":"Pelze, Verkauf"}]
["Pension",1.7,{"$f":"IFERROR(IF(OR(EXACT(Berechnung!$C$38,Tabelle2[Nutzung])),Tabelle2[[#This Row],[Nutzung]],INDEX(Tabelle2[Nutzung],_xlfn.AGGREGATE(15,6,(ROW(Tabelle2[Nutzung])-1)/(--SEARCH(Berechnung!$C$38,Tabelle2[Nutzung])>0),ROW()-1),1)),\"\")","v":"Pension"}]
["Pharmazeutische Erzeugnisse (H)",3.1,{"$f":"IFERROR(IF(OR(EXACT(Berechnung!$C$38,Tabelle2[Nutzung])),Tabelle2[[#This Row],[Nutzung]],INDEX(Tabelle2[Nutzung],_xlfn.AGGREGATE(15,6,(ROW(Tabelle2[Nutzung])-1)/(--SEARCH(Berechnung!$C$38,Tabelle2[Nutzung])>0),ROW()-1),1)),\"\")","v":"Pharmazeutische Erzeugnisse (H)"}]
["Pinsel (H)",1.8,{"$f":"IFERROR(IF(OR(EXACT(Berechnung!$C$38,Tabelle2[Nutzung])),Tabelle2[[#This Row],[Nutzung]],INDEX(Tabelle2[Nutzung],_xlfn.AGGREGATE(15,6,(ROW(Tabelle2[Nutzung])-1)/(--SEARCH(Berechnung!$C$38,Tabelle2[Nutzung])>0),ROW()-1),1)),\"\")","v":"Pinsel (H)"}]
["Planen, Plachen (H)",1.6,{"$f":"IFERROR(IF(OR(EXACT(Berechnung!$C$38,Tabelle2[Nutzung])),Tabelle2[[#This Row],[Nutzung]],INDEX(Tabelle2[Nutzung],_xlfn.AGGREGATE(15,6,(ROW(Tabelle2[Nutzung])-1)/(--SEARCH(Berechnung!$C$38,Tabelle2[Nutzung])>0),ROW()-1),1)),\"\")","v":"Planen, Plachen (H)"}]
["Polstermöbel, ohne Schaumstoffe (H)",1.6,{"$f":"IFERROR(IF(OR(EXACT(Berechnung!$C$38,Tabelle2[Nutzung])),Tabelle2[[#This Row],[Nutzung]],INDEX(Tabelle2[Nutzung],_xlfn.AGGREGATE(15,6,(ROW(Tabelle2[Nutzung])-1)/(--SEARCH(Berechnung!$C$38,Tabelle2[Nutzung])>0),ROW()-1),1)),\"\")","v":"Polstermöbel, ohne Schaumstoffe (H)"}]
["Porzellan (H)",1.8,{"$f":"IFERROR(IF(OR(EXACT(Berechnung!$C$38,Tabelle2[Nutzung])),Tabelle2[[#This Row],[Nutzung]],INDEX(Tabelle2[Nutzung],_xlfn.AGGREGATE(15,6,(ROW(Tabelle2[Nutzung])-1)/(--SEARCH(Berechnung!$C$38,Tabelle2[Nutzung])>0),ROW()-1),1)),\"\")","v":"Porzellan (H)"}]
["Postamt",1.4,{"$f":"IFERROR(IF(OR(EXACT(Berechnung!$C$38,Tabelle2[Nutzung])),Tabelle2[[#This Row],[Nutzung]],INDEX(Tabelle2[Nutzung],_xlfn.AGGREGATE(15,6,(ROW(Tabelle2[Nutzung])-1)/(--SEARCH(Berechnung!$C$38,Tabelle2[Nutzung])>0),ROW()-1),1)),\"\")","v":"Postamt"}]
["Radiostudio",1.9,{"$f":"IFERROR(IF(OR(EXACT(Berechnung!$C$38,Tabelle2[Nutzung])),Tabelle2[[#This Row],[Nutzung]],INDEX(Tabelle2[Nutzung],_xlfn.AGGREGATE(15,6,(ROW(Tabelle2[Nutzung])-1)/(--SEARCH(Berechnung!$C$38,Tabelle2[Nutzung])>0),ROW()-1),1)),\"\")","v":"Radiostudio"}]
["Reifen (H)",2.8,{"$f":"IFERROR(IF(OR(EXACT(Berechnung!$C$38,Tabelle2[Nutzung])),Tabelle2[[#This Row],[Nutzung]],INDEX(Tabelle2[Nutzung],_xlfn.AGGREGATE(15,6,(ROW(Tabelle2[Nutzung])-1)/(--SEARCH(Berechnung!$C$38,Tabelle2[Nutzung])>0),ROW()-1),1)),\"\")","v":"Reifen (H)"}]
["Reparaturwerkstätte",2.5,{"$f":"IFERROR(IF(OR(EXACT(Berechnung!$C$38,Tabelle2[Nutzung])),Tabelle2[[#This Row],[Nutzung]],INDEX(Tabelle2[Nutzung],_xlfn.AGGREGATE(15,6,(ROW(Tabelle2[Nutzung])-1)/(--SEARCH(Berechnung!$C$38,Tabelle2[Nutzung])>0),ROW()-1),1)),\"\")","v":"Reparaturwerkstätte"}]
["Restaurant",1.7,{"$f":"IFERROR(IF(OR(EXACT(Berechnung!$C$38,Tabelle2[Nutzung])),Tabelle2[[#This Row],[Nutzung]],INDEX(Tabelle2[Nutzung],_xlfn.AGGREGATE(15,6,(ROW(Tabelle2[Nutzung])-1)/(--SEARCH(Berechnung!$C$38,Tabelle2[Nutzung])>0),ROW()-1),1)),\"\")","v":"Restaurant"}]
["Riemen (H)",2.2999999999999998,{"$f":"IFERROR(IF(OR(EXACT(Berechnung!$C$38,Tabelle2[Nutzung])),Tabelle2[[#This Row],[Nutzung]],INDEX(Tabelle2[Nutzung],_xlfn.AGGREGATE(15,6,(ROW(Tabelle2[Nutzung])-1)/(--SEARCH(Berechnung!$C$38,Tabelle2[Nutzung])>0),ROW()-1),1)),\"\")","v":"Riemen (H)"}]
["Rohrgewebe (H)",1.6,{"$f":"IFERROR(IF(OR(EXACT(Berechnung!$C$38,Tabelle2[Nutzung])),Tabelle2[[#This Row],[Nutzung]],INDEX(Tabelle2[Nutzung],_xlfn.AGGREGATE(15,6,(ROW(Tabelle2[Nutzung])-1)/(--SEARCH(Berechnung!$C$38,Tabelle2[Nutzung])>0),ROW()-1),1)),\"\")","v":"Rohrgewebe (H)"}]
["Röntgeninstitut",1.8,{"$f":"IFERROR(IF(OR(EXACT(Berechnung!$C$38,Tabelle2[Nutzung])),Tabelle2[[#This Row],[Nutzung]],INDEX(Tabelle2[Nutzung],_xlfn.AGGREGATE(15,6,(ROW(Tabelle2[Nutzung])-1)/(--SEARCH(Berechnung!$C$38,Tabelle2[Nutzung])>0),ROW()-1),1)),\"\")","v":"Röntgeninstitut"}]
["Säcke, Jute (H)",1.5,{"$f":"IFERROR(IF(OR(EXACT(Berechnung!$C$38,Tabelle2[Nutzung])),Tabelle2[[#This Row],[Nutzung]],INDEX(Tabelle2[Nutzung],_xlfn.AGGREGATE(15,6,(ROW(Tabelle2[Nutzung])-1)/(--SEARCH(Berechnung!$C$38,Tabelle2[Nutzung])>0),ROW()-1),1)),\"\")","v":"Säcke, Jute (H)"}]
["Säcke, Kunststoff (H)",1.9,{"$f":"IFERROR(IF(OR(EXACT(Berechnung!$C$38,Tabelle2[Nutzung])),Tabelle2[[#This Row],[Nutzung]],INDEX(Tabelle2[Nutzung],_xlfn.AGGREGATE(15,6,(ROW(Tabelle2[Nutzung])-1)/(--SEARCH(Berechnung!$C$38,Tabelle2[Nutzung])>0),ROW()-1),1)),\"\")","v":"Säcke, Kunststoff (H)"}]
["Säcke, Papier (H)",1.3,{"$f":"IFERROR(IF(OR(EXACT(Berechnung!$C$38,Tabelle2[Nutzung])),Tabelle2[[#This Row],[Nutzung]],INDEX(Tabelle2[Nutzung],_xlfn.AGGREGATE(15,6,(ROW(Tabelle2[Nutzung])-1)/(--SEARCH(Berechnung!$C$38,Tabelle2[Nutzung])>0),ROW()-1),1)),\"\")","v":"Säcke, Papier (H)"}]
["Salinenprodukte (H)",1.7,{"$f":"IFERROR(IF(OR(EXACT(Berechnung!$C$38,Tabelle2[Nutzung])),Tabelle2[[#This Row],[Nutzung]],INDEX(Tabelle2[Nutzung],_xlfn.AGGREGATE(15,6,(ROW(Tabelle2[Nutzung])-1)/(--SEARCH(Berechnung!$C$38,Tabelle2[Nutzung])>0),ROW()-1),1)),\"\")","v":"Salinenprodukte (H)"}]
["Samen, Verkauf",1.7,{"$f":"IFERROR(IF(OR(EXACT(Berechnung!$C$38,Tabelle2[Nutzung])),Tabelle2[[#This Row],[Nutzung]],INDEX(Tabelle2[Nutzung],_xlfn.AGGREGATE(15,6,(ROW(Tabelle2[Nutzung])-1)/(--SEARCH(Berechnung!$C$38,Tabelle2[Nutzung])>0),ROW()-1),1)),\"\")","v":"Samen, Verkauf"}]
["Sattlerei",2.2000000000000002,{"$f":"IFERROR(IF(OR(EXACT(Berechnung!$C$38,Tabelle2[Nutzung])),Tabelle2[[#This Row],[Nutzung]],INDEX(Tabelle2[Nutzung],_xlfn.AGGREGATE(15,6,(ROW(Tabelle2[Nutzung])-1)/(--SEARCH(Berechnung!$C$38,Tabelle2[Nutzung])>0),ROW()-1),1)),\"\")","v":"Sattlerei"}]
["Säuren, anorganische (H)",1,{"$f":"IFERROR(IF(OR(EXACT(Berechnung!$C$38,Tabelle2[Nutzung])),Tabelle2[[#This Row],[Nutzung]],INDEX(Tabelle2[Nutzung],_xlfn.AGGREGATE(15,6,(ROW(Tabelle2[Nutzung])-1)/(--SEARCH(Berechnung!$C$38,Tabelle2[Nutzung])>0),ROW()-1),1)),\"\")","v":"Säuren, anorganische (H)"}]
["Schallplatten (H)",1.9,{"$f":"IFERROR(IF(OR(EXACT(Berechnung!$C$38,Tabelle2[Nutzung])),Tabelle2[[#This Row],[Nutzung]],INDEX(Tabelle2[Nutzung],_xlfn.AGGREGATE(15,6,(ROW(Tabelle2[Nutzung])-1)/(--SEARCH(Berechnung!$C$38,Tabelle2[Nutzung])>0),ROW()-1),1)),\"\")","v":"Schallplatten (H)"}]
["Schamottewaren (H)",1.9,{"$f":"IFERROR(IF(OR(EXACT(Berechnung!$C$38,Tabelle2[Nutzung])),Tabelle2[[#This Row],[Nutzung]],INDEX(Tabelle2[Nutzung],_xlfn.AGGREGATE(15,6,(ROW(Tabelle2[Nutzung])-1)/(--SEARCH(Berechnung!$C$38,Tabelle2[Nutzung])>0),ROW()-1),1)),\"\")","v":"Schamottewaren (H)"}]
["Schaumstoffe (Durchschnitt)",4.2,{"$f":"IFERROR(IF(OR(EXACT(Berechnung!$C$38,Tabelle2[Nutzung])),Tabelle2[[#This Row],[Nutzung]],INDEX(Tabelle2[Nutzung],_xlfn.AGGREGATE(15,6,(ROW(Tabelle2[Nutzung])-1)/(--SEARCH(Berechnung!$C$38,Tabelle2[Nutzung])>0),ROW()-1),1)),\"\")","v":"Schaumstoffe (Durchschnitt)"}]
["Schaumstoffwaren (H)",2.9,{"$f":"IFERROR(IF(OR(EXACT(Berechnung!$C$38,Tabelle2[Nutzung])),Tabelle2[[#This Row],[Nutzung]],INDEX(Tabelle2[Nutzung],_xlfn.AGGREGATE(15,6,(ROW(Tabelle2[Nutzung])-1)/(--SEARCH(Berechnung!$C$38,Tabelle2[Nutzung])>0),ROW()-1),1)),\"\")","v":"Schaumstoffwaren (H)"}]
["Schiffe, Metall (H)",2,{"$f":"IFERROR(IF(OR(EXACT(Berechnung!$C$38,Tabelle2[Nutzung])),Tabelle2[[#This Row],[Nutzung]],INDEX(Tabelle2[Nutzung],_xlfn.AGGREGATE(15,6,(ROW(Tabelle2[Nutzung])-1)/(--SEARCH(Berechnung!$C$38,Tabelle2[Nutzung])>0),ROW()-1),1)),\"\")","v":"Schiffe, Metall (H)"}]
["Schiffwaren (H)",3.1,{"$f":"IFERROR(IF(OR(EXACT(Berechnung!$C$38,Tabelle2[Nutzung])),Tabelle2[[#This Row],[Nutzung]],INDEX(Tabelle2[Nutzung],_xlfn.AGGREGATE(15,6,(ROW(Tabelle2[Nutzung])-1)/(--SEARCH(Berechnung!$C$38,Tabelle2[Nutzung])>0),ROW()-1),1)),\"\")","v":"Schiffwaren (H)"}]
["Schirme (H)",2,{"$f":"IFERROR(IF(OR(EXACT(Berechnung!$C$38,Tabelle2[Nutzung])),Tabelle2[[#This Row],[Nutzung]],INDEX(Tabelle2[Nutzung],_xlfn.AGGREGATE(15,6,(ROW(Tabelle2[Nutzung])-1)/(--SEARCH(Berechnung!$C$38,Tabelle2[Nutzung])>0),ROW()-1),1)),\"\")","v":"Schirme (H)"}]
["Schirme, Verkauf",2,{"$f":"IFERROR(IF(OR(EXACT(Berechnung!$C$38,Tabelle2[Nutzung])),Tabelle2[[#This Row],[Nutzung]],INDEX(Tabelle2[Nutzung],_xlfn.AGGREGATE(15,6,(ROW(Tabelle2[Nutzung])-1)/(--SEARCH(Berechnung!$C$38,Tabelle2[Nutzung])>0),ROW()-1),1)),\"\")","v":"Schirme, Verkauf"}]
["Schlachthof",0.8,{"$f":"IFERROR(IF(OR(EXACT(Berechnung!$C$38,Tabelle2[Nutzung])),Tabelle2[[#This Row],[Nutzung]],INDEX(Tabelle2[Nutzung],_xlfn.AGGREGATE(15,6,(ROW(Tabelle2[Nutzung])-1)/(--SEARCH(Berechnung!$C$38,Tabelle2[Nutzung])>0),ROW()-1),1)),\"\")","v":"Schlachthof"}]
["Schleifmittel, - steine",1.8,{"$f":"IFERROR(IF(OR(EXACT(Berechnung!$C$38,Tabelle2[Nutzung])),Tabelle2[[#This Row],[Nutzung]],INDEX(Tabelle2[Nutzung],_xlfn.AGGREGATE(15,6,(ROW(Tabelle2[Nutzung])-1)/(--SEARCH(Berechnung!$C$38,Tabelle2[Nutzung])>0),ROW()-1),1)),\"\")","v":"Schleifmittel, - steine"}]
["Schmuck",2.1,{"$f":"IFERROR(IF(OR(EXACT(Berechnung!$C$38,Tabelle2[Nutzung])),Tabelle2[[#This Row],[Nutzung]],INDEX(Tabelle2[Nutzung],_xlfn.AGGREGATE(15,6,(ROW(Tabelle2[Nutzung])-1)/(--SEARCH(Berechnung!$C$38,Tabelle2[Nutzung])>0),ROW()-1),1)),\"\")","v":"Schmuck"}]
["Schnüre (H)",1.5,{"$f":"IFERROR(IF(OR(EXACT(Berechnung!$C$38,Tabelle2[Nutzung])),Tabelle2[[#This Row],[Nutzung]],INDEX(Tabelle2[Nutzung],_xlfn.AGGREGATE(15,6,(ROW(Tabelle2[Nutzung])-1)/(--SEARCH(Berechnung!$C$38,Tabelle2[Nutzung])>0),ROW()-1),1)),\"\")","v":"Schnüre (H)"}]
["Schokolade (H)",3.9,{"$f":"IFERROR(IF(OR(EXACT(Berechnung!$C$38,Tabelle2[Nutzung])),Tabelle2[[#This Row],[Nutzung]],INDEX(Tabelle2[Nutzung],_xlfn.AGGREGATE(15,6,(ROW(Tabelle2[Nutzung])-1)/(--SEARCH(Berechnung!$C$38,Tabelle2[Nutzung])>0),ROW()-1),1)),\"\")","v":"Schokolade (H)"}]
["Schokolade, Conchensaal",4.0999999999999996,{"$f":"IFERROR(IF(OR(EXACT(Berechnung!$C$38,Tabelle2[Nutzung])),Tabelle2[[#This Row],[Nutzung]],INDEX(Tabelle2[Nutzung],_xlfn.AGGREGATE(15,6,(ROW(Tabelle2[Nutzung])-1)/(--SEARCH(Berechnung!$C$38,Tabelle2[Nutzung])>0),ROW()-1),1)),\"\")","v":"Schokolade, Conchensaal"}]
["Schokolade, Wicklerei, Packerei",2.7,{"$f":"IFERROR(IF(OR(EXACT(Berechnung!$C$38,Tabelle2[Nutzung])),Tabelle2[[#This Row],[Nutzung]],INDEX(Tabelle2[Nutzung],_xlfn.AGGREGATE(15,6,(ROW(Tabelle2[Nutzung])-1)/(--SEARCH(Berechnung!$C$38,Tabelle2[Nutzung])>0),ROW()-1),1)),\"\")","v":"Schokolade, Wicklerei, Packerei"}]
["Schuhe (H)",2,{"$f":"IFERROR(IF(OR(EXACT(Berechnung!$C$38,Tabelle2[Nutzung])),Tabelle2[[#This Row],[Nutzung]],INDEX(Tabelle2[Nutzung],_xlfn.AGGREGATE(15,6,(ROW(Tabelle2[Nutzung])-1)/(--SEARCH(Berechnung!$C$38,Tabelle2[Nutzung])>0),ROW()-1),1)),\"\")","v":"Schuhe (H)"}]
["Schuhe, Auslieferung",1.8,{"$f":"IFERROR(IF(OR(EXACT(Berechnung!$C$38,Tabelle2[Nutzung])),Tabelle2[[#This Row],[Nutzung]],INDEX(Tabelle2[Nutzung],_xlfn.AGGREGATE(15,6,(ROW(Tabelle2[Nutzung])-1)/(--SEARCH(Berechnung!$C$38,Tabelle2[Nutzung])>0),ROW()-1),1)),\"\")","v":"Schuhe, Auslieferung"}]
["Schuhe, Verkauf",1.7,{"$f":"IFERROR(IF(OR(EXACT(Berechnung!$C$38,Tabelle2[Nutzung])),Tabelle2[[#This Row],[Nutzung]],INDEX(Tabelle2[Nutzung],_xlfn.AGGREGATE(15,6,(ROW(Tabelle2[Nutzung])-1)/(--SEARCH(Berechnung!$C$38,Tabelle2[Nutzung])>0),ROW()-1),1)),\"\")","v":"Schuhe, Verkauf"}]
["Schuhleisten (H)",1.8,{"$f":"IFERROR(IF(OR(EXACT(Berechnung!$C$38,Tabelle2[Nutzung])),Tabelle2[[#This Row],[Nutzung]],INDEX(Tabelle2[Nutzung],_xlfn.AGGREGATE(15,6,(ROW(Tabelle2[Nutzung])-1)/(--SEARCH(Berechnung!$C$38,Tabelle2[Nutzung])>0),ROW()-1),1)),\"\")","v":"Schuhleisten (H)"}]
["Schuhpflegemittel",3.9,{"$f":"IFERROR(IF(OR(EXACT(Berechnung!$C$38,Tabelle2[Nutzung])),Tabelle2[[#This Row],[Nutzung]],INDEX(Tabelle2[Nutzung],_xlfn.AGGREGATE(15,6,(ROW(Tabelle2[Nutzung])-1)/(--SEARCH(Berechnung!$C$38,Tabelle2[Nutzung])>0),ROW()-1),1)),\"\")","v":"Schuhpflegemittel"}]
["Schule",1.8,{"$f":"IFERROR(IF(OR(EXACT(Berechnung!$C$38,Tabelle2[Nutzung])),Tabelle2[[#This Row],[Nutzung]],INDEX(Tabelle2[Nutzung],_xlfn.AGGREGATE(15,6,(ROW(Tabelle2[Nutzung])-1)/(--SEARCH(Berechnung!$C$38,Tabelle2[Nutzung])>0),ROW()-1),1)),\"\")","v":"Schule"}]
["Segelflugzeuge (H)",2.4,{"$f":"IFERROR(IF(OR(EXACT(Berechnung!$C$38,Tabelle2[Nutzung])),Tabelle2[[#This Row],[Nutzung]],INDEX(Tabelle2[Nutzung],_xlfn.AGGREGATE(15,6,(ROW(Tabelle2[Nutzung])-1)/(--SEARCH(Berechnung!$C$38,Tabelle2[Nutzung])>0),ROW()-1),1)),\"\")","v":"Segelflugzeuge (H)"}]
["Seifen (H)",3.4,{"$f":"IFERROR(IF(OR(EXACT(Berechnung!$C$38,Tabelle2[Nutzung])),Tabelle2[[#This Row],[Nutzung]],INDEX(Tabelle2[Nutzung],_xlfn.AGGREGATE(15,6,(ROW(Tabelle2[Nutzung])-1)/(--SEARCH(Berechnung!$C$38,Tabelle2[Nutzung])>0),ROW()-1),1)),\"\")","v":"Seifen (H)"}]
["Seilbahnstationen",2.9,{"$f":"IFERROR(IF(OR(EXACT(Berechnung!$C$38,Tabelle2[Nutzung])),Tabelle2[[#This Row],[Nutzung]],INDEX(Tabelle2[Nutzung],_xlfn.AGGREGATE(15,6,(ROW(Tabelle2[Nutzung])-1)/(--SEARCH(Berechnung!$C$38,Tabelle2[Nutzung])>0),ROW()-1),1)),\"\")","v":"Seilbahnstationen"}]
["Seilerwaren (H)",2.2000000000000002,{"$f":"IFERROR(IF(OR(EXACT(Berechnung!$C$38,Tabelle2[Nutzung])),Tabelle2[[#This Row],[Nutzung]],INDEX(Tabelle2[Nutzung],_xlfn.AGGREGATE(15,6,(ROW(Tabelle2[Nutzung])-1)/(--SEARCH(Berechnung!$C$38,Tabelle2[Nutzung])>0),ROW()-1),1)),\"\")","v":"Seilerwaren (H)"}]
["Seilerwaren, Verkauf",2.1,{"$f":"IFERROR(IF(OR(EXACT(Berechnung!$C$38,Tabelle2[Nutzung])),Tabelle2[[#This Row],[Nutzung]],INDEX(Tabelle2[Nutzung],_xlfn.AGGREGATE(15,6,(ROW(Tabelle2[Nutzung])-1)/(--SEARCH(Berechnung!$C$38,Tabelle2[Nutzung])>0),ROW()-1),1)),\"\")","v":"Seilerwaren, Verkauf"}]
["Selchwaren (H)",1.1000000000000001,{"$f":"IFERROR(IF(OR(EXACT(Berechnung!$C$38,Tabelle2[Nutzung])),Tabelle2[[#This Row],[Nutzung]],INDEX(Tabelle2[Nutzung],_xlfn.AGGREGATE(15,6,(ROW(Tabelle2[Nutzung])-1)/(--SEARCH(Berechnung!$C$38,Tabelle2[Nutzung])>0),ROW()-1),1)),\"\")","v":"Selchwaren (H)"}]
["Senf (H)",1.5,{"$f":"IFERROR(IF(OR(EXACT(Berechnung!$C$38,Tabelle2[Nutzung])),Tabelle2[[#This Row],[Nutzung]],INDEX(Tabelle2[Nutzung],_xlfn.AGGREGATE(15,6,(ROW(Tabelle2[Nutzung])-1)/(--SEARCH(Berechnung!$C$38,Tabelle2[Nutzung])>0),ROW()-1),1)),\"\")","v":"Senf (H)"}]
["Ski (H)",2,{"$f":"IFERROR(IF(OR(EXACT(Berechnung!$C$38,Tabelle2[Nutzung])),Tabelle2[[#This Row],[Nutzung]],INDEX(Tabelle2[Nutzung],_xlfn.AGGREGATE(15,6,(ROW(Tabelle2[Nutzung])-1)/(--SEARCH(Berechnung!$C$38,Tabelle2[Nutzung])>0),ROW()-1),1)),\"\")","v":"Ski (H)"}]
["Soda (H)",2,{"$f":"IFERROR(IF(OR(EXACT(Berechnung!$C$38,Tabelle2[Nutzung])),Tabelle2[[#This Row],[Nutzung]],INDEX(Tabelle2[Nutzung],_xlfn.AGGREGATE(15,6,(ROW(Tabelle2[Nutzung])-1)/(--SEARCH(Berechnung!$C$38,Tabelle2[Nutzung])>0),ROW()-1),1)),\"\")","v":"Soda (H)"}]
["Spanplatten (H)",1.7,{"$f":"IFERROR(IF(OR(EXACT(Berechnung!$C$38,Tabelle2[Nutzung])),Tabelle2[[#This Row],[Nutzung]],INDEX(Tabelle2[Nutzung],_xlfn.AGGREGATE(15,6,(ROW(Tabelle2[Nutzung])-1)/(--SEARCH(Berechnung!$C$38,Tabelle2[Nutzung])>0),ROW()-1),1)),\"\")","v":"Spanplatten (H)"}]
["Spanplattenbeschichtung",2.2000000000000002,{"$f":"IFERROR(IF(OR(EXACT(Berechnung!$C$38,Tabelle2[Nutzung])),Tabelle2[[#This Row],[Nutzung]],INDEX(Tabelle2[Nutzung],_xlfn.AGGREGATE(15,6,(ROW(Tabelle2[Nutzung])-1)/(--SEARCH(Berechnung!$C$38,Tabelle2[Nutzung])>0),ROW()-1),1)),\"\")","v":"Spanplattenbeschichtung"}]
["Speiseeis (H)",2,{"$f":"IFERROR(IF(OR(EXACT(Berechnung!$C$38,Tabelle2[Nutzung])),Tabelle2[[#This Row],[Nutzung]],INDEX(Tabelle2[Nutzung],_xlfn.AGGREGATE(15,6,(ROW(Tabelle2[Nutzung])-1)/(--SEARCH(Berechnung!$C$38,Tabelle2[Nutzung])>0),ROW()-1),1)),\"\")","v":"Speiseeis (H)"}]
["Speisefett (H)",3.7,{"$f":"IFERROR(IF(OR(EXACT(Berechnung!$C$38,Tabelle2[Nutzung])),Tabelle2[[#This Row],[Nutzung]],INDEX(Tabelle2[Nutzung],_xlfn.AGGREGATE(15,6,(ROW(Tabelle2[Nutzung])-1)/(--SEARCH(Berechnung!$C$38,Tabelle2[Nutzung])>0),ROW()-1),1)),\"\")","v":"Speisefett (H)"}]
["Speisefett, Auslieferung",3.3,{"$f":"IFERROR(IF(OR(EXACT(Berechnung!$C$38,Tabelle2[Nutzung])),Tabelle2[[#This Row],[Nutzung]],INDEX(Tabelle2[Nutzung],_xlfn.AGGREGATE(15,6,(ROW(Tabelle2[Nutzung])-1)/(--SEARCH(Berechnung!$C$38,Tabelle2[Nutzung])>0),ROW()-1),1)),\"\")","v":"Speisefett, Auslieferung"}]
["Speiseöl (H)",3.4,{"$f":"IFERROR(IF(OR(EXACT(Berechnung!$C$38,Tabelle2[Nutzung])),Tabelle2[[#This Row],[Nutzung]],INDEX(Tabelle2[Nutzung],_xlfn.AGGREGATE(15,6,(ROW(Tabelle2[Nutzung])-1)/(--SEARCH(Berechnung!$C$38,Tabelle2[Nutzung])>0),ROW()-1),1)),\"\")","v":"Speiseöl (H)"}]
["Speiseöl, Auslieferung",5.2,{"$f":"IFERROR(IF(OR(EXACT(Berechnung!$C$38,Tabelle2[Nutzung])),Tabelle2[[#This Row],[Nutzung]],INDEX(Tabelle2[Nutzung],_xlfn.AGGREGATE(15,6,(ROW(Tabelle2[Nutzung])-1)/(--SEARCH(Berechnung!$C$38,Tabelle2[Nutzung])>0),ROW()-1),1)),\"\")","v":"Speiseöl, Auslieferung"}]
["Sperrholz (H)",2,{"$f":"IFERROR(IF(OR(EXACT(Berechnung!$C$38,Tabelle2[Nutzung])),Tabelle2[[#This Row],[Nutzung]],INDEX(Tabelle2[Nutzung],_xlfn.AGGREGATE(15,6,(ROW(Tabelle2[Nutzung])-1)/(--SEARCH(Berechnung!$C$38,Tabelle2[Nutzung])>0),ROW()-1),1)),\"\")","v":"Sperrholz (H)"}]
["Spiegel (H)",1.7,{"$f":"IFERROR(IF(OR(EXACT(Berechnung!$C$38,Tabelle2[Nutzung])),Tabelle2[[#This Row],[Nutzung]],INDEX(Tabelle2[Nutzung],_xlfn.AGGREGATE(15,6,(ROW(Tabelle2[Nutzung])-1)/(--SEARCH(Berechnung!$C$38,Tabelle2[Nutzung])>0),ROW()-1),1)),\"\")","v":"Spiegel (H)"}]
["Spielsalon",1.9,{"$f":"IFERROR(IF(OR(EXACT(Berechnung!$C$38,Tabelle2[Nutzung])),Tabelle2[[#This Row],[Nutzung]],INDEX(Tabelle2[Nutzung],_xlfn.AGGREGATE(15,6,(ROW(Tabelle2[Nutzung])-1)/(--SEARCH(Berechnung!$C$38,Tabelle2[Nutzung])>0),ROW()-1),1)),\"\")","v":"Spielsalon"}]
["Spielwaren (H)",1.8,{"$f":"IFERROR(IF(OR(EXACT(Berechnung!$C$38,Tabelle2[Nutzung])),Tabelle2[[#This Row],[Nutzung]],INDEX(Tabelle2[Nutzung],_xlfn.AGGREGATE(15,6,(ROW(Tabelle2[Nutzung])-1)/(--SEARCH(Berechnung!$C$38,Tabelle2[Nutzung])>0),ROW()-1),1)),\"\")","v":"Spielwaren (H)"}]
["Spielwaren, Verkauf",2.2000000000000002,{"$f":"IFERROR(IF(OR(EXACT(Berechnung!$C$38,Tabelle2[Nutzung])),Tabelle2[[#This Row],[Nutzung]],INDEX(Tabelle2[Nutzung],_xlfn.AGGREGATE(15,6,(ROW(Tabelle2[Nutzung])-1)/(--SEARCH(Berechnung!$C$38,Tabelle2[Nutzung])>0),ROW()-1),1)),\"\")","v":"Spielwaren, Verkauf"}]
["Spinnereiprodukte, Reißerei",1.4,{"$f":"IFERROR(IF(OR(EXACT(Berechnung!$C$38,Tabelle2[Nutzung])),Tabelle2[[#This Row],[Nutzung]],INDEX(Tabelle2[Nutzung],_xlfn.AGGREGATE(15,6,(ROW(Tabelle2[Nutzung])-1)/(--SEARCH(Berechnung!$C$38,Tabelle2[Nutzung])>0),ROW()-1),1)),\"\")","v":"Spinnereiprodukte, Reißerei"}]
["Spinnereiprodukte, Spinnerei",2.1,{"$f":"IFERROR(IF(OR(EXACT(Berechnung!$C$38,Tabelle2[Nutzung])),Tabelle2[[#This Row],[Nutzung]],INDEX(Tabelle2[Nutzung],_xlfn.AGGREGATE(15,6,(ROW(Tabelle2[Nutzung])-1)/(--SEARCH(Berechnung!$C$38,Tabelle2[Nutzung])>0),ROW()-1),1)),\"\")","v":"Spinnereiprodukte, Spinnerei"}]
["Spinnereiprodukte, Spulerei",2.1,{"$f":"IFERROR(IF(OR(EXACT(Berechnung!$C$38,Tabelle2[Nutzung])),Tabelle2[[#This Row],[Nutzung]],INDEX(Tabelle2[Nutzung],_xlfn.AGGREGATE(15,6,(ROW(Tabelle2[Nutzung])-1)/(--SEARCH(Berechnung!$C$38,Tabelle2[Nutzung])>0),ROW()-1),1)),\"\")","v":"Spinnereiprodukte, Spulerei"}]
["Spinnereiprodukte, Zwirnerei",2.1,{"$f":"IFERROR(IF(OR(EXACT(Berechnung!$C$38,Tabelle2[Nutzung])),Tabelle2[[#This Row],[Nutzung]],INDEX(Tabelle2[Nutzung],_xlfn.AGGREGATE(15,6,(ROW(Tabelle2[Nutzung])-1)/(--SEARCH(Berechnung!$C$38,Tabelle2[Nutzung])>0),ROW()-1),1)),\"\")","v":"Spinnereiprodukte, Zwirnerei"}]
["Spirituosen (H)",3.2,{"$f":"IFERROR(IF(OR(EXACT(Berechnung!$C$38,Tabelle2[Nutzung])),Tabelle2[[#This Row],[Nutzung]],INDEX(Tabelle2[Nutzung],_xlfn.AGGREGATE(15,6,(ROW(Tabelle2[Nutzung])-1)/(--SEARCH(Berechnung!$C$38,Tabelle2[Nutzung])>0),ROW()-1),1)),\"\")","v":"Spirituosen (H)"}]
["Spirituosen, Verkauf",3,{"$f":"IFERROR(IF(OR(EXACT(Berechnung!$C$38,Tabelle2[Nutzung])),Tabelle2[[#This Row],[Nutzung]],INDEX(Tabelle2[Nutzung],_xlfn.AGGREGATE(15,6,(ROW(Tabelle2[Nutzung])-1)/(--SEARCH(Berechnung!$C$38,Tabelle2[Nutzung])>0),ROW()-1),1)),\"\")","v":"Spirituosen, Verkauf"}]
["Spital",2.2000000000000002,{"$f":"IFERROR(IF(OR(EXACT(Berechnung!$C$38,Tabelle2[Nutzung])),Tabelle2[[#This Row],[Nutzung]],INDEX(Tabelle2[Nutzung],_xlfn.AGGREGATE(15,6,(ROW(Tabelle2[Nutzung])-1)/(--SEARCH(Berechnung!$C$38,Tabelle2[Nutzung])>0),ROW()-1),1)),\"\")","v":"Spital"}]
["Sportartikel, Verkauf",1.7,{"$f":"IFERROR(IF(OR(EXACT(Berechnung!$C$38,Tabelle2[Nutzung])),Tabelle2[[#This Row],[Nutzung]],INDEX(Tabelle2[Nutzung],_xlfn.AGGREGATE(15,6,(ROW(Tabelle2[Nutzung])-1)/(--SEARCH(Berechnung!$C$38,Tabelle2[Nutzung])>0),ROW()-1),1)),\"\")","v":"Sportartikel, Verkauf"}]
["Stallungen",1.2,{"$f":"IFERROR(IF(OR(EXACT(Berechnung!$C$38,Tabelle2[Nutzung])),Tabelle2[[#This Row],[Nutzung]],INDEX(Tabelle2[Nutzung],_xlfn.AGGREGATE(15,6,(ROW(Tabelle2[Nutzung])-1)/(--SEARCH(Berechnung!$C$38,Tabelle2[Nutzung])>0),ROW()-1),1)),\"\")","v":"Stallungen"}]
["Stärke (H)",1.6,{"$f":"IFERROR(IF(OR(EXACT(Berechnung!$C$38,Tabelle2[Nutzung])),Tabelle2[[#This Row],[Nutzung]],INDEX(Tabelle2[Nutzung],_xlfn.AGGREGATE(15,6,(ROW(Tabelle2[Nutzung])-1)/(--SEARCH(Berechnung!$C$38,Tabelle2[Nutzung])>0),ROW()-1),1)),\"\")","v":"Stärke (H)"}]
["Steinmetzprodukte (H)",1.6,{"$f":"IFERROR(IF(OR(EXACT(Berechnung!$C$38,Tabelle2[Nutzung])),Tabelle2[[#This Row],[Nutzung]],INDEX(Tabelle2[Nutzung],_xlfn.AGGREGATE(15,6,(ROW(Tabelle2[Nutzung])-1)/(--SEARCH(Berechnung!$C$38,Tabelle2[Nutzung])>0),ROW()-1),1)),\"\")","v":"Steinmetzprodukte (H)"}]
["Strohgewebe (H)",2.1,{"$f":"IFERROR(IF(OR(EXACT(Berechnung!$C$38,Tabelle2[Nutzung])),Tabelle2[[#This Row],[Nutzung]],INDEX(Tabelle2[Nutzung],_xlfn.AGGREGATE(15,6,(ROW(Tabelle2[Nutzung])-1)/(--SEARCH(Berechnung!$C$38,Tabelle2[Nutzung])>0),ROW()-1),1)),\"\")","v":"Strohgewebe (H)"}]
["Strohlager",1.8,{"$f":"IFERROR(IF(OR(EXACT(Berechnung!$C$38,Tabelle2[Nutzung])),Tabelle2[[#This Row],[Nutzung]],INDEX(Tabelle2[Nutzung],_xlfn.AGGREGATE(15,6,(ROW(Tabelle2[Nutzung])-1)/(--SEARCH(Berechnung!$C$38,Tabelle2[Nutzung])>0),ROW()-1),1)),\"\")","v":"Strohlager"}]
["Studentenheim",1.6,{"$f":"IFERROR(IF(OR(EXACT(Berechnung!$C$38,Tabelle2[Nutzung])),Tabelle2[[#This Row],[Nutzung]],INDEX(Tabelle2[Nutzung],_xlfn.AGGREGATE(15,6,(ROW(Tabelle2[Nutzung])-1)/(--SEARCH(Berechnung!$C$38,Tabelle2[Nutzung])>0),ROW()-1),1)),\"\")","v":"Studentenheim"}]
["Supermarkt",1.8,{"$f":"IFERROR(IF(OR(EXACT(Berechnung!$C$38,Tabelle2[Nutzung])),Tabelle2[[#This Row],[Nutzung]],INDEX(Tabelle2[Nutzung],_xlfn.AGGREGATE(15,6,(ROW(Tabelle2[Nutzung])-1)/(--SEARCH(Berechnung!$C$38,Tabelle2[Nutzung])>0),ROW()-1),1)),\"\")","v":"Supermarkt"}]
["Tabakwaren (H)",2,{"$f":"IFERROR(IF(OR(EXACT(Berechnung!$C$38,Tabelle2[Nutzung])),Tabelle2[[#This Row],[Nutzung]],INDEX(Tabelle2[Nutzung],_xlfn.AGGREGATE(15,6,(ROW(Tabelle2[Nutzung])-1)/(--SEARCH(Berechnung!$C$38,Tabelle2[Nutzung])>0),ROW()-1),1)),\"\")","v":"Tabakwaren (H)"}]
["Tabakwaren, Verkauf",1.9,{"$f":"IFERROR(IF(OR(EXACT(Berechnung!$C$38,Tabelle2[Nutzung])),Tabelle2[[#This Row],[Nutzung]],INDEX(Tabelle2[Nutzung],_xlfn.AGGREGATE(15,6,(ROW(Tabelle2[Nutzung])-1)/(--SEARCH(Berechnung!$C$38,Tabelle2[Nutzung])>0),ROW()-1),1)),\"\")","v":"Tabakwaren, Verkauf"}]
["Tankstelle",2.5,{"$f":"IFERROR(IF(OR(EXACT(Berechnung!$C$38,Tabelle2[Nutzung])),Tabelle2[[#This Row],[Nutzung]],INDEX(Tabelle2[Nutzung],_xlfn.AGGREGATE(15,6,(ROW(Tabelle2[Nutzung])-1)/(--SEARCH(Berechnung!$C$38,Tabelle2[Nutzung])>0),ROW()-1),1)),\"\")","v":"Tankstelle"}]
["Tapeten (H)",1.8,{"$f":"IFERROR(IF(OR(EXACT(Berechnung!$C$38,Tabelle2[Nutzung])),Tabelle2[[#This Row],[Nutzung]],INDEX(Tabelle2[Nutzung],_xlfn.AGGREGATE(15,6,(ROW(Tabelle2[Nutzung])-1)/(--SEARCH(Berechnung!$C$38,Tabelle2[Nutzung])>0),ROW()-1),1)),\"\")","v":"Tapeten (H)"}]
["Tapeziererwaren (H)",2,{"$f":"IFERROR(IF(OR(EXACT(Berechnung!$C$38,Tabelle2[Nutzung])),Tabelle2[[#This Row],[Nutzung]],INDEX(Tabelle2[Nutzung],_xlfn.AGGREGATE(15,6,(ROW(Tabelle2[Nutzung])-1)/(--SEARCH(Berechnung!$C$38,Tabelle2[Nutzung])>0),ROW()-1),1)),\"\")","v":"Tapeziererwaren (H)"}]
["Teerprodukte (H)",3.8,{"$f":"IFERROR(IF(OR(EXACT(Berechnung!$C$38,Tabelle2[Nutzung])),Tabelle2[[#This Row],[Nutzung]],INDEX(Tabelle2[Nutzung],_xlfn.AGGREGATE(15,6,(ROW(Tabelle2[Nutzung])-1)/(--SEARCH(Berechnung!$C$38,Tabelle2[Nutzung])>0),ROW()-1),1)),\"\")","v":"Teerprodukte (H)"}]
["Teigwaren (H)",1.8,{"$f":"IFERROR(IF(OR(EXACT(Berechnung!$C$38,Tabelle2[Nutzung])),Tabelle2[[#This Row],[Nutzung]],INDEX(Tabelle2[Nutzung],_xlfn.AGGREGATE(15,6,(ROW(Tabelle2[Nutzung])-1)/(--SEARCH(Berechnung!$C$38,Tabelle2[Nutzung])>0),ROW()-1),1)),\"\")","v":"Teigwaren (H)"}]
["Teigwaren, Auslieferung",1.7,{"$f":"IFERROR(IF(OR(EXACT(Berechnung!$C$38,Tabelle2[Nutzung])),Tabelle2[[#This Row],[Nutzung]],INDEX(Tabelle2[Nutzung],_xlfn.AGGREGATE(15,6,(ROW(Tabelle2[Nutzung])-1)/(--SEARCH(Berechnung!$C$38,Tabelle2[Nutzung])>0),ROW()-1),1)),\"\")","v":"Teigwaren, Auslieferung"}]
["Telephonapparate (H)",2,{"$f":"IFERROR(IF(OR(EXACT(Berechnung!$C$38,Tabelle2[Nutzung])),Tabelle2[[#This Row],[Nutzung]],INDEX(Tabelle2[Nutzung],_xlfn.AGGREGATE(15,6,(ROW(Tabelle2[Nutzung])-1)/(--SEARCH(Berechnung!$C$38,Tabelle2[Nutzung])>0),ROW()-1),1)),\"\")","v":"Telephonapparate (H)"}]
["Telephonzentrale",2.1,{"$f":"IFERROR(IF(OR(EXACT(Berechnung!$C$38,Tabelle2[Nutzung])),Tabelle2[[#This Row],[Nutzung]],INDEX(Tabelle2[Nutzung],_xlfn.AGGREGATE(15,6,(ROW(Tabelle2[Nutzung])-1)/(--SEARCH(Berechnung!$C$38,Tabelle2[Nutzung])>0),ROW()-1),1)),\"\")","v":"Telephonzentrale"}]
["Teppiche (H)",2.1,{"$f":"IFERROR(IF(OR(EXACT(Berechnung!$C$38,Tabelle2[Nutzung])),Tabelle2[[#This Row],[Nutzung]],INDEX(Tabelle2[Nutzung],_xlfn.AGGREGATE(15,6,(ROW(Tabelle2[Nutzung])-1)/(--SEARCH(Berechnung!$C$38,Tabelle2[Nutzung])>0),ROW()-1),1)),\"\")","v":"Teppiche (H)"}]
["Teppiche, Färberei",2.5,{"$f":"IFERROR(IF(OR(EXACT(Berechnung!$C$38,Tabelle2[Nutzung])),Tabelle2[[#This Row],[Nutzung]],INDEX(Tabelle2[Nutzung],_xlfn.AGGREGATE(15,6,(ROW(Tabelle2[Nutzung])-1)/(--SEARCH(Berechnung!$C$38,Tabelle2[Nutzung])>0),ROW()-1),1)),\"\")","v":"Teppiche, Färberei"}]
["Teppiche, Verkauf",2.1,{"$f":"IFERROR(IF(OR(EXACT(Berechnung!$C$38,Tabelle2[Nutzung])),Tabelle2[[#This Row],[Nutzung]],INDEX(Tabelle2[Nutzung],_xlfn.AGGREGATE(15,6,(ROW(Tabelle2[Nutzung])-1)/(--SEARCH(Berechnung!$C$38,Tabelle2[Nutzung])>0),ROW()-1),1)),\"\")","v":"Teppiche, Verkauf"}]
["Textilien, Appretierung",2.2000000000000002,{"$f":"IFERROR(IF(OR(EXACT(Berechnung!$C$38,Tabelle2[Nutzung])),Tabelle2[[#This Row],[Nutzung]],INDEX(Tabelle2[Nutzung],_xlfn.AGGREGATE(15,6,(ROW(Tabelle2[Nutzung])-1)/(--SEARCH(Berechnung!$C$38,Tabelle2[Nutzung])>0),ROW()-1),1)),\"\")","v":"Textilien, Appretierung"}]
["Textilien, Auslieferung",2,{"$f":"IFERROR(IF(OR(EXACT(Berechnung!$C$38,Tabelle2[Nutzung])),Tabelle2[[#This Row],[Nutzung]],INDEX(Tabelle2[Nutzung],_xlfn.AGGREGATE(15,6,(ROW(Tabelle2[Nutzung])-1)/(--SEARCH(Berechnung!$C$38,Tabelle2[Nutzung])>0),ROW()-1),1)),\"\")","v":"Textilien, Auslieferung"}]
["Textilien, Beschichtung",2.4,{"$f":"IFERROR(IF(OR(EXACT(Berechnung!$C$38,Tabelle2[Nutzung])),Tabelle2[[#This Row],[Nutzung]],INDEX(Tabelle2[Nutzung],_xlfn.AGGREGATE(15,6,(ROW(Tabelle2[Nutzung])-1)/(--SEARCH(Berechnung!$C$38,Tabelle2[Nutzung])>0),ROW()-1),1)),\"\")","v":"Textilien, Beschichtung"}]
["Textilien, Bettwaren (H), Bleicherei, Büglerei",1.7,{"$f":"IFERROR(IF(OR(EXACT(Berechnung!$C$38,Tabelle2[Nutzung])),Tabelle2[[#This Row],[Nutzung]],INDEX(Tabelle2[Nutzung],_xlfn.AGGREGATE(15,6,(ROW(Tabelle2[Nutzung])-1)/(--SEARCH(Berechnung!$C$38,Tabelle2[Nutzung])>0),ROW()-1),1)),\"\")","v":"Textilien, Bettwaren (H), Bleicherei, Büglerei"}]
["Textilien, Decken (Wolle) (H)",2.1,{"$f":"IFERROR(IF(OR(EXACT(Berechnung!$C$38,Tabelle2[Nutzung])),Tabelle2[[#This Row],[Nutzung]],INDEX(Tabelle2[Nutzung],_xlfn.AGGREGATE(15,6,(ROW(Tabelle2[Nutzung])-1)/(--SEARCH(Berechnung!$C$38,Tabelle2[Nutzung])>0),ROW()-1),1)),\"\")","v":"Textilien, Decken (Wolle) (H)"}]
["Textilien, Druckerei",2.6,{"$f":"IFERROR(IF(OR(EXACT(Berechnung!$C$38,Tabelle2[Nutzung])),Tabelle2[[#This Row],[Nutzung]],INDEX(Tabelle2[Nutzung],_xlfn.AGGREGATE(15,6,(ROW(Tabelle2[Nutzung])-1)/(--SEARCH(Berechnung!$C$38,Tabelle2[Nutzung])>0),ROW()-1),1)),\"\")","v":"Textilien, Druckerei"}]
["Textilien, Färberei",2.2999999999999998,{"$f":"IFERROR(IF(OR(EXACT(Berechnung!$C$38,Tabelle2[Nutzung])),Tabelle2[[#This Row],[Nutzung]],INDEX(Tabelle2[Nutzung],_xlfn.AGGREGATE(15,6,(ROW(Tabelle2[Nutzung])-1)/(--SEARCH(Berechnung!$C$38,Tabelle2[Nutzung])>0),ROW()-1),1)),\"\")","v":"Textilien, Färberei"}]
["Textilien, Jutewaren (H)",2.2000000000000002,{"$f":"IFERROR(IF(OR(EXACT(Berechnung!$C$38,Tabelle2[Nutzung])),Tabelle2[[#This Row],[Nutzung]],INDEX(Tabelle2[Nutzung],_xlfn.AGGREGATE(15,6,(ROW(Tabelle2[Nutzung])-1)/(--SEARCH(Berechnung!$C$38,Tabelle2[Nutzung])>0),ROW()-1),1)),\"\")","v":"Textilien, Jutewaren (H)"}]
["Textilien, Kleider (H)",2,{"$f":"IFERROR(IF(OR(EXACT(Berechnung!$C$38,Tabelle2[Nutzung])),Tabelle2[[#This Row],[Nutzung]],INDEX(Tabelle2[Nutzung],_xlfn.AGGREGATE(15,6,(ROW(Tabelle2[Nutzung])-1)/(--SEARCH(Berechnung!$C$38,Tabelle2[Nutzung])>0),ROW()-1),1)),\"\")","v":"Textilien, Kleider (H)"}]
["Textilien, Näherei",2.1,{"$f":"IFERROR(IF(OR(EXACT(Berechnung!$C$38,Tabelle2[Nutzung])),Tabelle2[[#This Row],[Nutzung]],INDEX(Tabelle2[Nutzung],_xlfn.AGGREGATE(15,6,(ROW(Tabelle2[Nutzung])-1)/(--SEARCH(Berechnung!$C$38,Tabelle2[Nutzung])>0),ROW()-1),1)),\"\")","v":"Textilien, Näherei"}]
["Textilien, Packerei",1.9,{"$f":"IFERROR(IF(OR(EXACT(Berechnung!$C$38,Tabelle2[Nutzung])),Tabelle2[[#This Row],[Nutzung]],INDEX(Tabelle2[Nutzung],_xlfn.AGGREGATE(15,6,(ROW(Tabelle2[Nutzung])-1)/(--SEARCH(Berechnung!$C$38,Tabelle2[Nutzung])>0),ROW()-1),1)),\"\")","v":"Textilien, Packerei"}]
["Textilien, Seidenwaren (H)",2.1,{"$f":"IFERROR(IF(OR(EXACT(Berechnung!$C$38,Tabelle2[Nutzung])),Tabelle2[[#This Row],[Nutzung]],INDEX(Tabelle2[Nutzung],_xlfn.AGGREGATE(15,6,(ROW(Tabelle2[Nutzung])-1)/(--SEARCH(Berechnung!$C$38,Tabelle2[Nutzung])>0),ROW()-1),1)),\"\")","v":"Textilien, Seidenwaren (H)"}]
["Textilien, Stickereiwaren (H)",2,{"$f":"IFERROR(IF(OR(EXACT(Berechnung!$C$38,Tabelle2[Nutzung])),Tabelle2[[#This Row],[Nutzung]],INDEX(Tabelle2[Nutzung],_xlfn.AGGREGATE(15,6,(ROW(Tabelle2[Nutzung])-1)/(--SEARCH(Berechnung!$C$38,Tabelle2[Nutzung])>0),ROW()-1),1)),\"\")","v":"Textilien, Stickereiwaren (H)"}]
["Textilien, Strickwaren (H)",2.1,{"$f":"IFERROR(IF(OR(EXACT(Berechnung!$C$38,Tabelle2[Nutzung])),Tabelle2[[#This Row],[Nutzung]],INDEX(Tabelle2[Nutzung],_xlfn.AGGREGATE(15,6,(ROW(Tabelle2[Nutzung])-1)/(--SEARCH(Berechnung!$C$38,Tabelle2[Nutzung])>0),ROW()-1),1)),\"\")","v":"Textilien, Strickwaren (H)"}]
["Textilien, Strümpfe (H)",2.4,{"$f":"IFERROR(IF(OR(EXACT(Berechnung!$C$38,Tabelle2[Nutzung])),Tabelle2[[#This Row],[Nutzung]],INDEX(Tabelle2[Nutzung],_xlfn.AGGREGATE(15,6,(ROW(Tabelle2[Nutzung])-1)/(--SEARCH(Berechnung!$C$38,Tabelle2[Nutzung])>0),ROW()-1),1)),\"\")","v":"Textilien, Strümpfe (H)"}]
["Textilien, Verkauf",2,{"$f":"IFERROR(IF(OR(EXACT(Berechnung!$C$38,Tabelle2[Nutzung])),Tabelle2[[#This Row],[Nutzung]],INDEX(Tabelle2[Nutzung],_xlfn.AGGREGATE(15,6,(ROW(Tabelle2[Nutzung])-1)/(--SEARCH(Berechnung!$C$38,Tabelle2[Nutzung])>0),ROW()-1),1)),\"\")","v":"Textilien, Verkauf"}]
["Textilien, Wasche (H)",1.6,{"$f":"IFERROR(IF(OR(EXACT(Berechnung!$C$38,Tabelle2[Nutzung])),Tabelle2[[#This Row],[Nutzung]],INDEX(Tabelle2[Nutzung],_xlfn.AGGREGATE(15,6,(ROW(Tabelle2[Nutzung])-1)/(--SEARCH(Berechnung!$C$38,Tabelle2[Nutzung])>0),ROW()-1),1)),\"\")","v":"Textilien, Wasche (H)"}]
["Textilien, Weberei",2.1,{"$f":"IFERROR(IF(OR(EXACT(Berechnung!$C$38,Tabelle2[Nutzung])),Tabelle2[[#This Row],[Nutzung]],INDEX(Tabelle2[Nutzung],_xlfn.AGGREGATE(15,6,(ROW(Tabelle2[Nutzung])-1)/(--SEARCH(Berechnung!$C$38,Tabelle2[Nutzung])>0),ROW()-1),1)),\"\")","v":"Textilien, Weberei"}]
["Textilien, Zuschneiderei",2,{"$f":"IFERROR(IF(OR(EXACT(Berechnung!$C$38,Tabelle2[Nutzung])),Tabelle2[[#This Row],[Nutzung]],INDEX(Tabelle2[Nutzung],_xlfn.AGGREGATE(15,6,(ROW(Tabelle2[Nutzung])-1)/(--SEARCH(Berechnung!$C$38,Tabelle2[Nutzung])>0),ROW()-1),1)),\"\")","v":"Textilien, Zuschneiderei"}]
["Theater",2.1,{"$f":"IFERROR(IF(OR(EXACT(Berechnung!$C$38,Tabelle2[Nutzung])),Tabelle2[[#This Row],[Nutzung]],INDEX(Tabelle2[Nutzung],_xlfn.AGGREGATE(15,6,(ROW(Tabelle2[Nutzung])-1)/(--SEARCH(Berechnung!$C$38,Tabelle2[Nutzung])>0),ROW()-1),1)),\"\")","v":"Theater"}]
["Tiefkühlwaren (H)",1.3,{"$f":"IFERROR(IF(OR(EXACT(Berechnung!$C$38,Tabelle2[Nutzung])),Tabelle2[[#This Row],[Nutzung]],INDEX(Tabelle2[Nutzung],_xlfn.AGGREGATE(15,6,(ROW(Tabelle2[Nutzung])-1)/(--SEARCH(Berechnung!$C$38,Tabelle2[Nutzung])>0),ROW()-1),1)),\"\")","v":"Tiefkühlwaren (H)"}]
["Tinten (H)",2.1,{"$f":"IFERROR(IF(OR(EXACT(Berechnung!$C$38,Tabelle2[Nutzung])),Tabelle2[[#This Row],[Nutzung]],INDEX(Tabelle2[Nutzung],_xlfn.AGGREGATE(15,6,(ROW(Tabelle2[Nutzung])-1)/(--SEARCH(Berechnung!$C$38,Tabelle2[Nutzung])>0),ROW()-1),1)),\"\")","v":"Tinten (H)"}]
["Tischlerei",1.8,{"$f":"IFERROR(IF(OR(EXACT(Berechnung!$C$38,Tabelle2[Nutzung])),Tabelle2[[#This Row],[Nutzung]],INDEX(Tabelle2[Nutzung],_xlfn.AGGREGATE(15,6,(ROW(Tabelle2[Nutzung])-1)/(--SEARCH(Berechnung!$C$38,Tabelle2[Nutzung])>0),ROW()-1),1)),\"\")","v":"Tischlerei"}]
["Ton- und Töpferwaren (H)",1.9,{"$f":"IFERROR(IF(OR(EXACT(Berechnung!$C$38,Tabelle2[Nutzung])),Tabelle2[[#This Row],[Nutzung]],INDEX(Tabelle2[Nutzung],_xlfn.AGGREGATE(15,6,(ROW(Tabelle2[Nutzung])-1)/(--SEARCH(Berechnung!$C$38,Tabelle2[Nutzung])>0),ROW()-1),1)),\"\")","v":"Ton- und Töpferwaren (H)"}]
["Torf- und Torfprodukte (H)",0.7,{"$f":"IFERROR(IF(OR(EXACT(Berechnung!$C$38,Tabelle2[Nutzung])),Tabelle2[[#This Row],[Nutzung]],INDEX(Tabelle2[Nutzung],_xlfn.AGGREGATE(15,6,(ROW(Tabelle2[Nutzung])-1)/(--SEARCH(Berechnung!$C$38,Tabelle2[Nutzung])>0),ROW()-1),1)),\"\")","v":"Torf- und Torfprodukte (H)"}]
["Traktoren (H)",2.8,{"$f":"IFERROR(IF(OR(EXACT(Berechnung!$C$38,Tabelle2[Nutzung])),Tabelle2[[#This Row],[Nutzung]],INDEX(Tabelle2[Nutzung],_xlfn.AGGREGATE(15,6,(ROW(Tabelle2[Nutzung])-1)/(--SEARCH(Berechnung!$C$38,Tabelle2[Nutzung])>0),ROW()-1),1)),\"\")","v":"Traktoren (H)"}]
["Transformatoren (H)",2.2999999999999998,{"$f":"IFERROR(IF(OR(EXACT(Berechnung!$C$38,Tabelle2[Nutzung])),Tabelle2[[#This Row],[Nutzung]],INDEX(Tabelle2[Nutzung],_xlfn.AGGREGATE(15,6,(ROW(Tabelle2[Nutzung])-1)/(--SEARCH(Berechnung!$C$38,Tabelle2[Nutzung])>0),ROW()-1),1)),\"\")","v":"Transformatoren (H)"}]
["Transformatoren, Wicklerei",1.7,{"$f":"IFERROR(IF(OR(EXACT(Berechnung!$C$38,Tabelle2[Nutzung])),Tabelle2[[#This Row],[Nutzung]],INDEX(Tabelle2[Nutzung],_xlfn.AGGREGATE(15,6,(ROW(Tabelle2[Nutzung])-1)/(--SEARCH(Berechnung!$C$38,Tabelle2[Nutzung])>0),ROW()-1),1)),\"\")","v":"Transformatoren, Wicklerei"}]
["Transformatorstationen",3.2,{"$f":"IFERROR(IF(OR(EXACT(Berechnung!$C$38,Tabelle2[Nutzung])),Tabelle2[[#This Row],[Nutzung]],INDEX(Tabelle2[Nutzung],_xlfn.AGGREGATE(15,6,(ROW(Tabelle2[Nutzung])-1)/(--SEARCH(Berechnung!$C$38,Tabelle2[Nutzung])>0),ROW()-1),1)),\"\")","v":"Transformatorstationen"}]
["Tresore (H)",1,{"$f":"IFERROR(IF(OR(EXACT(Berechnung!$C$38,Tabelle2[Nutzung])),Tabelle2[[#This Row],[Nutzung]],INDEX(Tabelle2[Nutzung],_xlfn.AGGREGATE(15,6,(ROW(Tabelle2[Nutzung])-1)/(--SEARCH(Berechnung!$C$38,Tabelle2[Nutzung])>0),ROW()-1),1)),\"\")","v":"Tresore (H)"}]
["Trockenbatterien (H)",1.1000000000000001,{"$f":"IFERROR(IF(OR(EXACT(Berechnung!$C$38,Tabelle2[Nutzung])),Tabelle2[[#This Row],[Nutzung]],INDEX(Tabelle2[Nutzung],_xlfn.AGGREGATE(15,6,(ROW(Tabelle2[Nutzung])-1)/(--SEARCH(Berechnung!$C$38,Tabelle2[Nutzung])>0),ROW()-1),1)),\"\")","v":"Trockenbatterien (H)"}]
["Trockengemüae (H)",2,{"$f":"IFERROR(IF(OR(EXACT(Berechnung!$C$38,Tabelle2[Nutzung])),Tabelle2[[#This Row],[Nutzung]],INDEX(Tabelle2[Nutzung],_xlfn.AGGREGATE(15,6,(ROW(Tabelle2[Nutzung])-1)/(--SEARCH(Berechnung!$C$38,Tabelle2[Nutzung])>0),ROW()-1),1)),\"\")","v":"Trockengemüae (H)"}]
["Türen, Holz (H)",1.8,{"$f":"IFERROR(IF(OR(EXACT(Berechnung!$C$38,Tabelle2[Nutzung])),Tabelle2[[#This Row],[Nutzung]],INDEX(Tabelle2[Nutzung],_xlfn.AGGREGATE(15,6,(ROW(Tabelle2[Nutzung])-1)/(--SEARCH(Berechnung!$C$38,Tabelle2[Nutzung])>0),ROW()-1),1)),\"\")","v":"Türen, Holz (H)"}]
["Türen, Kunststoff (H)",2.1,{"$f":"IFERROR(IF(OR(EXACT(Berechnung!$C$38,Tabelle2[Nutzung])),Tabelle2[[#This Row],[Nutzung]],INDEX(Tabelle2[Nutzung],_xlfn.AGGREGATE(15,6,(ROW(Tabelle2[Nutzung])-1)/(--SEARCH(Berechnung!$C$38,Tabelle2[Nutzung])>0),ROW()-1),1)),\"\")","v":"Türen, Kunststoff (H)"}]
["Uhren (H)",2.8,{"$f":"IFERROR(IF(OR(EXACT(Berechnung!$C$38,Tabelle2[Nutzung])),Tabelle2[[#This Row],[Nutzung]],INDEX(Tabelle2[Nutzung],_xlfn.AGGREGATE(15,6,(ROW(Tabelle2[Nutzung])-1)/(--SEARCH(Berechnung!$C$38,Tabelle2[Nutzung])>0),ROW()-1),1)),\"\")","v":"Uhren (H)"}]
["Uhren, Reparatur",2.4,{"$f":"IFERROR(IF(OR(EXACT(Berechnung!$C$38,Tabelle2[Nutzung])),Tabelle2[[#This Row],[Nutzung]],INDEX(Tabelle2[Nutzung],_xlfn.AGGREGATE(15,6,(ROW(Tabelle2[Nutzung])-1)/(--SEARCH(Berechnung!$C$38,Tabelle2[Nutzung])>0),ROW()-1),1)),\"\")","v":"Uhren, Reparatur"}]
["Uhren, Verkauf",1.6,{"$f":"IFERROR(IF(OR(EXACT(Berechnung!$C$38,Tabelle2[Nutzung])),Tabelle2[[#This Row],[Nutzung]],INDEX(Tabelle2[Nutzung],_xlfn.AGGREGATE(15,6,(ROW(Tabelle2[Nutzung])-1)/(--SEARCH(Berechnung!$C$38,Tabelle2[Nutzung])>0),ROW()-1),1)),\"\")","v":"Uhren, Verkauf"}]
["Umspannwerke",2.2000000000000002,{"$f":"IFERROR(IF(OR(EXACT(Berechnung!$C$38,Tabelle2[Nutzung])),Tabelle2[[#This Row],[Nutzung]],INDEX(Tabelle2[Nutzung],_xlfn.AGGREGATE(15,6,(ROW(Tabelle2[Nutzung])-1)/(--SEARCH(Berechnung!$C$38,Tabelle2[Nutzung])>0),ROW()-1),1)),\"\")","v":"Umspannwerke"}]
["Veranstaltungsstätte",1.7,{"$f":"IFERROR(IF(OR(EXACT(Berechnung!$C$38,Tabelle2[Nutzung])),Tabelle2[[#This Row],[Nutzung]],INDEX(Tabelle2[Nutzung],_xlfn.AGGREGATE(15,6,(ROW(Tabelle2[Nutzung])-1)/(--SEARCH(Berechnung!$C$38,Tabelle2[Nutzung])>0),ROW()-1),1)),\"\")","v":"Veranstaltungsstätte"}]
["Versandhäuser",1.9,{"$f":"IFERROR(IF(OR(EXACT(Berechnung!$C$38,Tabelle2[Nutzung])),Tabelle2[[#This Row],[Nutzung]],INDEX(Tabelle2[Nutzung],_xlfn.AGGREGATE(15,6,(ROW(Tabelle2[Nutzung])-1)/(--SEARCH(Berechnung!$C$38,Tabelle2[Nutzung])>0),ROW()-1),1)),\"\")","v":"Versandhäuser"}]
["Vulkanisieranstalt",5.3,{"$f":"IFERROR(IF(OR(EXACT(Berechnung!$C$38,Tabelle2[Nutzung])),Tabelle2[[#This Row],[Nutzung]],INDEX(Tabelle2[Nutzung],_xlfn.AGGREGATE(15,6,(ROW(Tabelle2[Nutzung])-1)/(--SEARCH(Berechnung!$C$38,Tabelle2[Nutzung])>0),ROW()-1),1)),\"\")","v":"Vulkanisieranstalt"}]
["Waagen (H)",2,{"$f":"IFERROR(IF(OR(EXACT(Berechnung!$C$38,Tabelle2[Nutzung])),Tabelle2[[#This Row],[Nutzung]],INDEX(Tabelle2[Nutzung],_xlfn.AGGREGATE(15,6,(ROW(Tabelle2[Nutzung])-1)/(--SEARCH(Berechnung!$C$38,Tabelle2[Nutzung])>0),ROW()-1),1)),\"\")","v":"Waagen (H)"}]
["Wachswaren (H)",3.7,{"$f":"IFERROR(IF(OR(EXACT(Berechnung!$C$38,Tabelle2[Nutzung])),Tabelle2[[#This Row],[Nutzung]],INDEX(Tabelle2[Nutzung],_xlfn.AGGREGATE(15,6,(ROW(Tabelle2[Nutzung])-1)/(--SEARCH(Berechnung!$C$38,Tabelle2[Nutzung])>0),ROW()-1),1)),\"\")","v":"Wachswaren (H)"}]
["Wachswaren, Auslieferung",3.6,{"$f":"IFERROR(IF(OR(EXACT(Berechnung!$C$38,Tabelle2[Nutzung])),Tabelle2[[#This Row],[Nutzung]],INDEX(Tabelle2[Nutzung],_xlfn.AGGREGATE(15,6,(ROW(Tabelle2[Nutzung])-1)/(--SEARCH(Berechnung!$C$38,Tabelle2[Nutzung])>0),ROW()-1),1)),\"\")","v":"Wachswaren, Auslieferung"}]
["Waffeln (H)",2.2000000000000002,{"$f":"IFERROR(IF(OR(EXACT(Berechnung!$C$38,Tabelle2[Nutzung])),Tabelle2[[#This Row],[Nutzung]],INDEX(Tabelle2[Nutzung],_xlfn.AGGREGATE(15,6,(ROW(Tabelle2[Nutzung])-1)/(--SEARCH(Berechnung!$C$38,Tabelle2[Nutzung])>0),ROW()-1),1)),\"\")","v":"Waffeln (H)"}]
["Waffen (H)",2.1,{"$f":"IFERROR(IF(OR(EXACT(Berechnung!$C$38,Tabelle2[Nutzung])),Tabelle2[[#This Row],[Nutzung]],INDEX(Tabelle2[Nutzung],_xlfn.AGGREGATE(15,6,(ROW(Tabelle2[Nutzung])-1)/(--SEARCH(Berechnung!$C$38,Tabelle2[Nutzung])>0),ROW()-1),1)),\"\")","v":"Waffen (H)"}]
["Waffen, Verkauf",2.2000000000000002,{"$f":"IFERROR(IF(OR(EXACT(Berechnung!$C$38,Tabelle2[Nutzung])),Tabelle2[[#This Row],[Nutzung]],INDEX(Tabelle2[Nutzung],_xlfn.AGGREGATE(15,6,(ROW(Tabelle2[Nutzung])-1)/(--SEARCH(Berechnung!$C$38,Tabelle2[Nutzung])>0),ROW()-1),1)),\"\")","v":"Waffen, Verkauf"}]
["Waggons (H)",2.2000000000000002,{"$f":"IFERROR(IF(OR(EXACT(Berechnung!$C$38,Tabelle2[Nutzung])),Tabelle2[[#This Row],[Nutzung]],INDEX(Tabelle2[Nutzung],_xlfn.AGGREGATE(15,6,(ROW(Tabelle2[Nutzung])-1)/(--SEARCH(Berechnung!$C$38,Tabelle2[Nutzung])>0),ROW()-1),1)),\"\")","v":"Waggons (H)"}]
["Wagnereiwaren (H)",2.1,{"$f":"IFERROR(IF(OR(EXACT(Berechnung!$C$38,Tabelle2[Nutzung])),Tabelle2[[#This Row],[Nutzung]],INDEX(Tabelle2[Nutzung],_xlfn.AGGREGATE(15,6,(ROW(Tabelle2[Nutzung])-1)/(--SEARCH(Berechnung!$C$38,Tabelle2[Nutzung])>0),ROW()-1),1)),\"\")","v":"Wagnereiwaren (H)"}]
["Warenhaus (Verkaufsbereich)",2,{"$f":"IFERROR(IF(OR(EXACT(Berechnung!$C$38,Tabelle2[Nutzung])),Tabelle2[[#This Row],[Nutzung]],INDEX(Tabelle2[Nutzung],_xlfn.AGGREGATE(15,6,(ROW(Tabelle2[Nutzung])-1)/(--SEARCH(Berechnung!$C$38,Tabelle2[Nutzung])>0),ROW()-1),1)),\"\")","v":"Warenhaus (Verkaufsbereich)"}]
["Wäscherei",1.9,{"$f":"IFERROR(IF(OR(EXACT(Berechnung!$C$38,Tabelle2[Nutzung])),Tabelle2[[#This Row],[Nutzung]],INDEX(Tabelle2[Nutzung],_xlfn.AGGREGATE(15,6,(ROW(Tabelle2[Nutzung])-1)/(--SEARCH(Berechnung!$C$38,Tabelle2[Nutzung])>0),ROW()-1),1)),\"\")","v":"Wäscherei"}]
["Waschmaschinen (H)",2,{"$f":"IFERROR(IF(OR(EXACT(Berechnung!$C$38,Tabelle2[Nutzung])),Tabelle2[[#This Row],[Nutzung]],INDEX(Tabelle2[Nutzung],_xlfn.AGGREGATE(15,6,(ROW(Tabelle2[Nutzung])-1)/(--SEARCH(Berechnung!$C$38,Tabelle2[Nutzung])>0),ROW()-1),1)),\"\")","v":"Waschmaschinen (H)"}]
["Waschmittel (H)",3,{"$f":"IFERROR(IF(OR(EXACT(Berechnung!$C$38,Tabelle2[Nutzung])),Tabelle2[[#This Row],[Nutzung]],INDEX(Tabelle2[Nutzung],_xlfn.AGGREGATE(15,6,(ROW(Tabelle2[Nutzung])-1)/(--SEARCH(Berechnung!$C$38,Tabelle2[Nutzung])>0),ROW()-1),1)),\"\")","v":"Waschmittel (H)"}]
["Watte (H)",2.1,{"$f":"IFERROR(IF(OR(EXACT(Berechnung!$C$38,Tabelle2[Nutzung])),Tabelle2[[#This Row],[Nutzung]],INDEX(Tabelle2[Nutzung],_xlfn.AGGREGATE(15,6,(ROW(Tabelle2[Nutzung])-1)/(--SEARCH(Berechnung!$C$38,Tabelle2[Nutzung])>0),ROW()-1),1)),\"\")","v":"Watte (H)"}]
["Weichfaserplatten (H)",2,{"$f":"IFERROR(IF(OR(EXACT(Berechnung!$C$38,Tabelle2[Nutzung])),Tabelle2[[#This Row],[Nutzung]],INDEX(Tabelle2[Nutzung],_xlfn.AGGREGATE(15,6,(ROW(Tabelle2[Nutzung])-1)/(--SEARCH(Berechnung!$C$38,Tabelle2[Nutzung])>0),ROW()-1),1)),\"\")","v":"Weichfaserplatten (H)"}]
["Weine, Verkauf",1.8,{"$f":"IFERROR(IF(OR(EXACT(Berechnung!$C$38,Tabelle2[Nutzung])),Tabelle2[[#This Row],[Nutzung]],INDEX(Tabelle2[Nutzung],_xlfn.AGGREGATE(15,6,(ROW(Tabelle2[Nutzung])-1)/(--SEARCH(Berechnung!$C$38,Tabelle2[Nutzung])>0),ROW()-1),1)),\"\")","v":"Weine, Verkauf"}]
["Weinkeller",1.8,{"$f":"IFERROR(IF(OR(EXACT(Berechnung!$C$38,Tabelle2[Nutzung])),Tabelle2[[#This Row],[Nutzung]],INDEX(Tabelle2[Nutzung],_xlfn.AGGREGATE(15,6,(ROW(Tabelle2[Nutzung])-1)/(--SEARCH(Berechnung!$C$38,Tabelle2[Nutzung])>0),ROW()-1),1)),\"\")","v":"Weinkeller"}]
["Wellkarton (H)",1.5,{"$f":"IFERROR(IF(OR(EXACT(Berechnung!$C$38,Tabelle2[Nutzung])),Tabelle2[[#This Row],[Nutzung]],INDEX(Tabelle2[Nutzung],_xlfn.AGGREGATE(15,6,(ROW(Tabelle2[Nutzung])-1)/(--SEARCH(Berechnung!$C$38,Tabelle2[Nutzung])>0),ROW()-1),1)),\"\")","v":"Wellkarton (H)"}]
["Wirtschaftsgebäude",1.8,{"$f":"IFERROR(IF(OR(EXACT(Berechnung!$C$38,Tabelle2[Nutzung])),Tabelle2[[#This Row],[Nutzung]],INDEX(Tabelle2[Nutzung],_xlfn.AGGREGATE(15,6,(ROW(Tabelle2[Nutzung])-1)/(--SEARCH(Berechnung!$C$38,Tabelle2[Nutzung])>0),ROW()-1),1)),\"\")","v":"Wirtschaftsgebäude"}]
["Wohnungen, betreubares Wohnen",1.6,{"$f":"IFERROR(IF(OR(EXACT(Berechnung!$C$38,Tabelle2[Nutzung])),Tabelle2[[#This Row],[Nutzung]],INDEX(Tabelle2[Nutzung],_xlfn.AGGREGATE(15,6,(ROW(Tabelle2[Nutzung])-1)/(--SEARCH(Berechnung!$C$38,Tabelle2[Nutzung])>0),ROW()-1),1)),\"\")","v":"Wohnungen, betreubares Wohnen"}]
["Sonstige",null,{"$f":"IFERROR(IF(OR(EXACT(Berechnung!$C$38,Tabelle2[Nutzung])),Tabelle2[[#This Row],[Nutzung]],INDEX(Tabelle2[Nutzung],_xlfn.AGGREGATE(15,6,(ROW(Tabelle2[Nutzung])-1)/(--SEARCH(Berechnung!$C$38,Tabelle2[Nutzung])>0),ROW()-1),1)),\"\")","v":"Sonstige"}]

{"sheet":"Info Immobile Brandbelastung","index":3,"n_rows":5,"n_cols":2,"rows_kept":5,"cut":false,"hidden":false,"merged":[]}
["Beschreibung","qLWi in l/(m²min)"]
["Bitte Auswahl treffen!"]
["Wände und Decke nicht brennbar  ",0]
["Wände oder Decke brennbar",0.5]
["Wände und Decke brennbar",1]

{"sheet":"Info Zusätzl. Löschw.Entn.","index":4,"n_rows":6,"n_cols":2,"rows_kept":6,"cut":false,"hidden":false,"merged":[]}
["Beschreibung","Einheit"]
["Keine"]
["Löschteich oder offener Löschwasserbehälter ","m³"]
["Gedeckter Löschwasserbehälter ","m³"]
["Bach oder Fluss mit vorbereiteter Saugstelle ","l/min"]
["Brunnen ","l/min"]